Body name,Service Area,Dept,Expenses Type,Detailed Expenses Type,Transaction number,Expense Code,Date,Amount,Capital/Revenue,Supplier Name,Supplier ID
WANDSWORTH COUNCIL,CS,,SERVICES,CONSULTANTS FEES,722971,100534200,13-Aug-15,"23,565.00",Revenue,JONES LANG LASALLE,SP0008111
WANDSWORTH COUNCIL,CS,,PRINTING STAT & GEN OFFICE EXP,PRINTING REGISTRATION A FORM,722979,103033440,14-Aug-15,"11,012.00",Revenue,BANNER MANAGED COMMUNICATION,SP0003555
WANDSWORTH COUNCIL,CS,,COMMUNICATIONS & COMP,COMMUNICATIONS - POSTAGE,731820,103036000,21-Aug-15,"1,192.97",Revenue,ROYAL MAIL,SP0001067
WANDSWORTH COUNCIL,CS,,"EQUIPMENT, FURNITURE & MATS",FLOWERS,720240,103130170,06-Aug-15,646.00,Revenue,PATRICIA WONG,SP0002085
WANDSWORTH COUNCIL,CS,,"EQUIPMENT, FURNITURE & MATS",FLOWERS,727027,103130170,17-Aug-15,646.00,Revenue,PATRICIA WONG,SP0002085
WANDSWORTH COUNCIL,PH,,HEALTH,HIV HLTH SUPPORT SERVICE,735489,105241820,27-Aug-15,"4,037.50",Revenue,WEM CONSULTANCY LTD,SP0006617
WANDSWORTH COUNCIL,PH,,MISC,MISCELLANEOUS EXPENSES,722195,106338500,12-Aug-15,"2,380.00",Revenue,INTERMEDICAL (UK) LTD,SP0007594
WANDSWORTH COUNCIL,PH,,MISC,MISCELLANEOUS EXPENSES,722195,106338500,12-Aug-15,150.00,Revenue,INTERMEDICAL (UK) LTD,SP0007594
WANDSWORTH COUNCIL,PH,,MISC,MISCELLANEOUS EXPENSES,722195,106338500,12-Aug-15,12.00,Revenue,INTERMEDICAL (UK) LTD,SP0007594
WANDSWORTH COUNCIL,PH,,HEALTH,PRESCRIBING SERVICES,726287,106340550,17-Aug-15,579.05,Revenue,SALASJI LTD FG443 T/A DUMLERS PHARMACY,SP0005003
WANDSWORTH COUNCIL,PH,,HEALTH,PRESCRIBING SERVICES,726287,106340550,17-Aug-15,42.00,Revenue,SALASJI LTD FG443 T/A DUMLERS PHARMACY,SP0005003
WANDSWORTH COUNCIL,PH,,HEALTH,PRESCRIBING SERVICES,737098,106340550,28-Aug-15,28.00,Revenue,MARKRISE PHARMACY,SP0006464
WANDSWORTH COUNCIL,PH,,HEALTH,PRESCRIBING SERVICES,737098,106340550,28-Aug-15,479.60,Revenue,MARKRISE PHARMACY,SP0006464
WANDSWORTH COUNCIL,PH,,HEALTH,PRESCRIBING SERVICES,726284,106340550,17-Aug-15,"1,761.76",Revenue,PEARL CHEMIST LTD FDV93 T/A LORDS PHARMA,SP0008419
WANDSWORTH COUNCIL,PH,,HEALTH,PRESCRIBING SERVICES,726284,106340550,17-Aug-15,138.00,Revenue,PEARL CHEMIST LTD FDV93 T/A LORDS PHARMA,SP0008419
WANDSWORTH COUNCIL,PH,,HEALTH,THIRD PARTY PYMT - HEALTH,729297,106741130,19-Aug-15,"9,479.41",Revenue,THE BREASTFEEDING NETWORK LTD,SP0006832
WANDSWORTH COUNCIL,PH,,SERVICES,PROJECT WORK,731818,108034800,21-Aug-15,"12,440.95",Revenue,ROEHAMPTON UNIVERSITY,SP0000768
WANDSWORTH COUNCIL,PH,,SERVICES,PROJECT WORK,731446,108034800,21-Aug-15,996.00,Revenue,THE RAIN TRUST,SP0009013
WANDSWORTH COUNCIL,PH,,SERVICES,PROJECT WORK,726174,108034800,14-Aug-15,504.00,Revenue,SITE EQUIP,SP0010021
WANDSWORTH COUNCIL,PH,,SERVICES,PROJECT WORK,728449,108034800,19-Aug-15,"1,650.00",Revenue,THE STAGE BUS,SP0010029
WANDSWORTH COUNCIL,NGF HS,,SERVICES,HIPS,722479,110034460,13-Aug-15,840.00,Revenue,GORDON BROWN,SP0002176
WANDSWORTH COUNCIL,NGF CS,,PRIVATE,REFUSE COLLECTN & PEST CONTROL,724971,111045500,14-Aug-15,534.79,Revenue,SITA UK LTD,SP0000507
WANDSWORTH COUNCIL,NGF CS,,PRIVATE,REFUSE COLLECTN & PEST CONTROL,725213,111045500,14-Aug-15,534.79,Revenue,SITA UK LTD,SP0000507
WANDSWORTH COUNCIL,NGF CS,,PRIVATE,REFUSE COLLECTN & PEST CONTROL,727020,111045500,19-Aug-15,690.83,Revenue,SITA UK LTD,SP0000507
WANDSWORTH COUNCIL,NGF CS,,PRIVATE,REFUSE COLLECTN & PEST CONTROL,727021,111045500,19-Aug-15,690.83,Revenue,SITA UK LTD,SP0000507
WANDSWORTH COUNCIL,NGF CS,,PRIVATE,REFUSE COLLECTN & PEST CONTROL,729325,111045500,19-Aug-15,534.79,Revenue,SITA UK LTD,SP0000507
WANDSWORTH COUNCIL,NGF CS,,PRIVATE,REFUSE COLLECTN & PEST CONTROL,729328,111045500,19-Aug-15,690.83,Revenue,SITA UK LTD,SP0000507
WANDSWORTH COUNCIL,NGF CS,,PRIVATE,REFUSE COLLECTN & PEST CONTROL,729329,111045500,19-Aug-15,683.43,Revenue,SITA UK LTD,SP0000507
WANDSWORTH COUNCIL,NGF CS,,PRIVATE,REFUSE COLLECTN & PEST CONTROL,729334,111045500,19-Aug-15,690.83,Revenue,SITA UK LTD,SP0000507
WANDSWORTH COUNCIL,NGF CS,,PRIVATE,REFUSE COLLECTN & PEST CONTROL,729337,111045500,19-Aug-15,683.43,Revenue,SITA UK LTD,SP0000507
WANDSWORTH COUNCIL,NGF CS,,PRIVATE,REFUSE COLLECTN & PEST CONTROL,729340,111045500,19-Aug-15,"1,202.69",Revenue,SITA UK LTD,SP0000507
WANDSWORTH COUNCIL,NGF CS,,MISC,MISCELLANEOUS EXPENSES,736670,111938500,27-Aug-15,585.00,Revenue,COOLERAID LTD,SP0003654
WANDSWORTH COUNCIL,NGF CS,,CLEANING & DOMESTIC SUPPLIES,CLEANING CONTRACT,733471,113813020,24-Aug-15,"61,840.93",Revenue,OCEAN INTEGRATED SERVICES LTD,SP0001062
WANDSWORTH COUNCIL,NGF CS,,CLEANING & DOMESTIC SUPPLIES,CLEANING CONTRACT,725203,113813020,14-Aug-15,"1,689.35",Revenue,PHS GROUP PLC,SP0001063
WANDSWORTH COUNCIL,NGF CS,,CLEANING & DOMESTIC SUPPLIES,CLEANING CONTRACT,725207,113813020,14-Aug-15,"2,161.45",Revenue,PHS GROUP PLC,SP0001063
WANDSWORTH COUNCIL,NGF CS,,PRIVATE,GENERAL CONTRACT WORK,735667,114045370,26-Aug-15,"1,900.00",Revenue,ELECTROLOK COMPANY (SECURITY) LTD,SP0000966
WANDSWORTH COUNCIL,NGF CS,,COMMUNICATIONS & COMP,I.T. EQUIPMENT & MAINTENANCE,721262,114136210,07-Aug-15,500.00,Revenue,CAD-CAPTURE DATA SERVICES LTD,SP0004092
WANDSWORTH COUNCIL,NGF CDC,,"REPAIRS, ALTERATIONS & MTCE",REMOVALS & REORGANISATIONS,719760,114210140,05-Aug-15,"9,720.00",Revenue,JT & SONS RELOCATIONS,SP0005993
WANDSWORTH COUNCIL,NGF CDC,,"REPAIRS, ALTERATIONS & MTCE",REMOVALS & REORGANISATIONS,719760,114210140,05-Aug-15,972.00,Revenue,JT & SONS RELOCATIONS,SP0005993
WANDSWORTH COUNCIL,NGF CDC,,"REPAIRS, ALTERATIONS & MTCE",REMOVALS & REORGANISATIONS,721231,114210140,07-Aug-15,68.50,Revenue,JT & SONS RELOCATIONS,SP0005993
WANDSWORTH COUNCIL,NGF CDC,,"REPAIRS, ALTERATIONS & MTCE",REMOVALS & REORGANISATIONS,721231,114210140,07-Aug-15,685.00,Revenue,JT & SONS RELOCATIONS,SP0005993
WANDSWORTH COUNCIL,NGF CDC,,"REPAIRS, ALTERATIONS & MTCE",REMOVALS & REORGANISATIONS,725025,114210140,13-Aug-15,585.00,Revenue,JT & SONS RELOCATIONS,SP0005993
WANDSWORTH COUNCIL,NGF CDC,,"REPAIRS, ALTERATIONS & MTCE",REMOVALS & REORGANISATIONS,728741,114210140,18-Aug-15,"5,900.00",Revenue,JT & SONS RELOCATIONS,SP0005993
WANDSWORTH COUNCIL,NGF CDC,,"REPAIRS, ALTERATIONS & MTCE",REMOVALS & REORGANISATIONS,728741,114210140,18-Aug-15,590.00,Revenue,JT & SONS RELOCATIONS,SP0005993
WANDSWORTH COUNCIL,NGF CDC,,PRIVATE,GENERAL CONTRACT WORK,723228,11424537K07291,12-Aug-15,"3,432.00",Revenue,DH CROFTS LTD,SP0000076
WANDSWORTH COUNCIL,NGF CDC,,PRIVATE,GENERAL CONTRACT WORK,723229,11424537K07291,12-Aug-15,"5,046.98",Revenue,DH CROFTS LTD,SP0000076
WANDSWORTH COUNCIL,NGF CDC,,PRIVATE,GENERAL CONTRACT WORK,723230,11424537K07291,12-Aug-15,"10,496.88",Revenue,DH CROFTS LTD,SP0000076
WANDSWORTH COUNCIL,NGF CDC,,PRIVATE,GENERAL CONTRACT WORK,723232,11424537K07291,12-Aug-15,"4,268.10",Revenue,DH CROFTS LTD,SP0000076
WANDSWORTH COUNCIL,NGF CDC,,PRIVATE,GENERAL CONTRACT WORK,723233,11424537K07291,12-Aug-15,"6,268.40",Revenue,DH CROFTS LTD,SP0000076
WANDSWORTH COUNCIL,NGF CDC,,PRIVATE,GENERAL CONTRACT WORK,735633,11424537K07291,26-Aug-15,"1,072.61",Revenue,DH CROFTS LTD,SP0000076
WANDSWORTH COUNCIL,NGF CDC,,PRIVATE,GENERAL CONTRACT WORK,735634,11424537K07291,26-Aug-15,"1,569.36",Revenue,DH CROFTS LTD,SP0000076
WANDSWORTH COUNCIL,NGF CDC,,PRIVATE,GENERAL CONTRACT WORK,737376,11424537K07291,27-Aug-15,"2,773.42",Revenue,DH CROFTS LTD,SP0000076
WANDSWORTH COUNCIL,NGF CDC,,PRIVATE,GENERAL CONTRACT WORK,737377,11424537K07291,27-Aug-15,"1,419.78",Revenue,DH CROFTS LTD,SP0000076
WANDSWORTH COUNCIL,NGF CDC,,PRIVATE,GENERAL CONTRACT WORK,737378,11424537K07291,27-Aug-15,"10,120.00",Revenue,DH CROFTS LTD,SP0000076
WANDSWORTH COUNCIL,NGF CDC,,PRIVATE,GENERAL CONTRACT WORK,737379,11424537K07291,27-Aug-15,"8,342.19",Revenue,DH CROFTS LTD,SP0000076
WANDSWORTH COUNCIL,NGF CDC,,PRIVATE,GENERAL CONTRACT WORK,737380,11424537K07291,27-Aug-15,"1,500.00",Revenue,DH CROFTS LTD,SP0000076
WANDSWORTH COUNCIL,NGF CDC,,PRIVATE,GENERAL CONTRACT WORK,737381,11424537K07291,27-Aug-15,"4,210.14",Revenue,DH CROFTS LTD,SP0000076
WANDSWORTH COUNCIL,NGF CDC,,PRIVATE,GENERAL CONTRACT WORK,723040,11424537K07291,12-Aug-15,"3,325.00",Revenue,ACR LONDON LTD,SP0000193
WANDSWORTH COUNCIL,NGF CDC,,PRIVATE,GENERAL CONTRACT WORK,728216,11424537K07311,17-Aug-15,"4,968.00",Revenue,PHOENIX ECS LTD,SP0001284
WANDSWORTH COUNCIL,NGF CDC,,PRIVATE,GENERAL CONTRACT WORK,735635,11424537K07321,26-Aug-15,764.50,Revenue,DH CROFTS LTD,SP0000076
WANDSWORTH COUNCIL,NGF CDC,,PRIVATE,GENERAL CONTRACT WORK,723094,11424537K07341,12-Aug-15,"4,035.80",Revenue,DH CROFTS LTD,SP0000076
WANDSWORTH COUNCIL,NGF CDC,,PRIVATE,GENERAL CONTRACT WORK,723234,11424537K07341,12-Aug-15,"13,943.08",Revenue,DH CROFTS LTD,SP0000076
WANDSWORTH COUNCIL,NGF CDC,,PRIVATE,GENERAL CONTRACT WORK,728192,11424537K07341,17-Aug-15,932.85,Revenue,DH CROFTS LTD,SP0000076
WANDSWORTH COUNCIL,NGF CDC,,PRIVATE,GENERAL CONTRACT WORK,728193,11424537K07341,17-Aug-15,960.40,Revenue,DH CROFTS LTD,SP0000076
WANDSWORTH COUNCIL,NGF CDC,,PRIVATE,GENERAL CONTRACT WORK,735636,11424537K07341,26-Aug-15,"3,217.50",Revenue,DH CROFTS LTD,SP0000076
WANDSWORTH COUNCIL,NGF CDC,,PRIVATE,GENERAL CONTRACT WORK,735691,11424537K07341,26-Aug-15,"3,859.46",Revenue,DH CROFTS LTD,SP0000076
WANDSWORTH COUNCIL,NGF CDC,,PRIVATE,GENERAL CONTRACT WORK,735692,11424537K07341,26-Aug-15,"1,058.82",Revenue,DH CROFTS LTD,SP0000076
WANDSWORTH COUNCIL,NGF CDC,,PRIVATE,GENERAL CONTRACT WORK,735715,11424537K07341,26-Aug-15,"22,834.27",Revenue,DH CROFTS LTD,SP0000076
WANDSWORTH COUNCIL,NGF CDC,,PRIVATE,GENERAL CONTRACT WORK,735716,11424537K07341,26-Aug-15,"12,043.46",Revenue,DH CROFTS LTD,SP0000076
WANDSWORTH COUNCIL,NGF CDC,,PRIVATE,GENERAL CONTRACT WORK,737383,11424537K07341,27-Aug-15,907.67,Revenue,DH CROFTS LTD,SP0000076
WANDSWORTH COUNCIL,NGF CDC,,PRIVATE,GENERAL CONTRACT WORK,723041,11424537K07341,12-Aug-15,"23,165.90",Revenue,ACR LONDON LTD,SP0000193
WANDSWORTH COUNCIL,NGF CDC,,PRIVATE,GENERAL CONTRACT WORK,723043,11424537K07341,12-Aug-15,"1,731.78",Revenue,ACR LONDON LTD,SP0000193
WANDSWORTH COUNCIL,NGF CDC,,PRIVATE,GENERAL CONTRACT WORK,728217,11424537K07341,17-Aug-15,"6,571.15",Revenue,PHOENIX ECS LTD,SP0001284
WANDSWORTH COUNCIL,NGF CDC,,PRIVATE,GENERAL CONTRACT WORK,723100,11424537K07361,12-Aug-15,"4,312.00",Revenue,DH CROFTS LTD,SP0000076
WANDSWORTH COUNCIL,NGF CDC,,PRIVATE,GENERAL CONTRACT WORK,735656,11424537K07361,26-Aug-15,"8,841.43",Revenue,DH CROFTS LTD,SP0000076
WANDSWORTH COUNCIL,NGF CDC,,PRIVATE,GENERAL CONTRACT WORK,735657,11424537K07361,26-Aug-15,"10,793.19",Revenue,DH CROFTS LTD,SP0000076
WANDSWORTH COUNCIL,NGF CDC,,PRIVATE,GENERAL CONTRACT WORK,735658,11424537K07361,26-Aug-15,"14,645.25",Revenue,DH CROFTS LTD,SP0000076
WANDSWORTH COUNCIL,NGF CDC,,PRIVATE,GENERAL CONTRACT WORK,735717,11424537K07361,26-Aug-15,"11,115.00",Revenue,DH CROFTS LTD,SP0000076
WANDSWORTH COUNCIL,NGF CDC,,PRIVATE,GENERAL CONTRACT WORK,735718,11424537K07361,26-Aug-15,"11,100.32",Revenue,DH CROFTS LTD,SP0000076
WANDSWORTH COUNCIL,NGF CDC,,PRIVATE,GENERAL CONTRACT WORK,723044,11424537K07361,12-Aug-15,"2,347.84",Revenue,ACR LONDON LTD,SP0000193
WANDSWORTH COUNCIL,NGF CDC,,PRIVATE,GENERAL CONTRACT WORK,728218,11424537K07361,17-Aug-15,"5,254.00",Revenue,PHOENIX ECS LTD,SP0001284
WANDSWORTH COUNCIL,NGF CS,,PRINTING STAT & GEN OFFICE EXP,NEWSPAPERS & PERIODICALS,723076,115433300,12-Aug-15,967.70,Revenue,CHROMA-VISION LTD,SP0000996
WANDSWORTH COUNCIL,NGF CS,,OTHER AGENCIES,DISBURSEMENTS,731396,120643250,20-Aug-15,560.00,Revenue,ANGLIA DNA SERVICES LTD,SP0000216
WANDSWORTH COUNCIL,NGF CS,,OTHER AGENCIES,DISBURSEMENTS,722273,120643250,12-Aug-15,30.00,Revenue,SHARPE PRITCHARD LLP,SP0003677
WANDSWORTH COUNCIL,NGF CS,,OTHER AGENCIES,DISBURSEMENTS,722273,120643250,12-Aug-15,"6,862.48",Revenue,SHARPE PRITCHARD LLP,SP0003677
WANDSWORTH COUNCIL,NGF CS,,OTHER AGENCIES,DISBURSEMENTS,729302,120643250,19-Aug-15,55.00,Revenue,SHARPE PRITCHARD LLP,SP0003677
WANDSWORTH COUNCIL,NGF CS,,OTHER AGENCIES,DISBURSEMENTS,729302,120643250,19-Aug-15,922.48,Revenue,SHARPE PRITCHARD LLP,SP0003677
WANDSWORTH COUNCIL,NGF CS,,OTHER AGENCIES,DISBURSEMENTS,735049,120643250,27-Aug-15,"2,025.85",Revenue,SHARPE PRITCHARD LLP,SP0003677
WANDSWORTH COUNCIL,NGF CS,,OTHER AGENCIES,DISBURSEMENTS,735049,120643250,27-Aug-15,"6,199.17",Revenue,SHARPE PRITCHARD LLP,SP0003677
WANDSWORTH COUNCIL,NGF CS,,OTHER AGENCIES,DISBURSEMENTS,721205,120643250,07-Aug-15,500.00,Revenue,4 BRICK COURT MANAGEMENT LIMITED,SP0007380
WANDSWORTH COUNCIL,NGF CS,,OTHER AGENCIES,DISBURSEMENTS,721206,120643250,07-Aug-15,"1,550.00",Revenue,4 BRICK COURT MANAGEMENT LIMITED,SP0007380
WANDSWORTH COUNCIL,NGF CS,,OTHER AGENCIES,DISBURSEMENTS,722162,120643250,18-Aug-15,550.00,Revenue,4 BRICK COURT MANAGEMENT LIMITED,SP0007380
WANDSWORTH COUNCIL,NGF CS,,OTHER AGENCIES,DISBURSEMENTS,722168,120643250,11-Aug-15,"1,550.00",Revenue,4 BRICK COURT MANAGEMENT LIMITED,SP0007380
WANDSWORTH COUNCIL,NGF CS,,OTHER AGENCIES,DISBURSEMENTS,724951,120643250,17-Aug-15,650.00,Revenue,4 BRICK COURT MANAGEMENT LIMITED,SP0007380
WANDSWORTH COUNCIL,NGF CS,,OTHER AGENCIES,DISBURSEMENTS,724956,120643250,14-Aug-15,"1,300.00",Revenue,4 BRICK COURT MANAGEMENT LIMITED,SP0007380
WANDSWORTH COUNCIL,NGF CS,,OTHER AGENCIES,DISBURSEMENTS,731399,120643250,20-Aug-15,425.00,Revenue,4 BRICK COURT MANAGEMENT LIMITED,SP0007380
WANDSWORTH COUNCIL,NGF CS,,OTHER AGENCIES,DISBURSEMENTS,731400,120643250,20-Aug-15,500.00,Revenue,4 BRICK COURT MANAGEMENT LIMITED,SP0007380
WANDSWORTH COUNCIL,NGF CS,,OTHER AGENCIES,DISBURSEMENTS,731403,120643250,20-Aug-15,650.00,Revenue,4 BRICK COURT MANAGEMENT LIMITED,SP0007380
WANDSWORTH COUNCIL,NGF CS,,OTHER AGENCIES,DISBURSEMENTS,731404,120643250,20-Aug-15,"9,450.00",Revenue,4 BRICK COURT MANAGEMENT LIMITED,SP0007380
WANDSWORTH COUNCIL,NGF CS,,OTHER AGENCIES,DISBURSEMENTS,735499,120643250,27-Aug-15,455.00,Revenue,4 BRICK COURT MANAGEMENT LIMITED,SP0007380
WANDSWORTH COUNCIL,NGF CS,,OTHER AGENCIES,DISBURSEMENTS,731395,120643250,20-Aug-15,"1,805.00",Revenue,FIELD COURT CHAMBERS,SP0009008
WANDSWORTH COUNCIL,NGF CS,,OTHER AGENCIES,DISBURSEMENTS,724881,120643250,14-Aug-15,"1,350.00",Revenue,FIVE PAPER,SP0009057
WANDSWORTH COUNCIL,NGF CS,,OTHER AGENCIES,DISBURSEMENTS,731423,120643250,20-Aug-15,"2,500.00",Revenue,FIVE PAPER,SP0009057
WANDSWORTH COUNCIL,NGF CS,,OTHER AGENCIES,DISBURSEMENTS,735510,120643250,27-Aug-15,680.00,Revenue,FIVE PAPER,SP0009057
WANDSWORTH COUNCIL,NGF CS,,OTHER AGENCIES,DISBURSEMENTS,735514,120643250,27-Aug-15,"2,598.80",Revenue,DR MARTIN LOCK,SP0009184
WANDSWORTH COUNCIL,NGF CS,,OTHER AGENCIES,DISBURSEMENTS,735513,120643250,27-Aug-15,628.00,Revenue,DR JULET BUTLER T/A BUTLER CONSULTANCY L,SP0009243
WANDSWORTH COUNCIL,NGF CS,,OTHER AGENCIES,DISBURSEMENTS,721137,120643250,07-Aug-15,"3,696.67",Revenue,1 GARDEN COURT CHAMBERS,SP0009291
WANDSWORTH COUNCIL,NGF CS,,OTHER AGENCIES,DISBURSEMENTS,721207,120643250,07-Aug-15,575.00,Revenue,1 GARDEN COURT CHAMBERS,SP0009291
WANDSWORTH COUNCIL,NGF CS,,OTHER AGENCIES,DISBURSEMENTS,735501,120643250,27-Aug-15,950.00,Revenue,1 GARDEN COURT CHAMBERS,SP0009291
WANDSWORTH COUNCIL,NGF CS,,OTHER AGENCIES,DISBURSEMENTS,735507,120643250,27-Aug-15,500.00,Revenue,1 GARDEN COURT CHAMBERS,SP0009291
WANDSWORTH COUNCIL,NGF CS,,OTHER AGENCIES,DISBURSEMENTS,735508,120643250,27-Aug-15,"3,300.00",Revenue,1 GARDEN COURT CHAMBERS,SP0009291
WANDSWORTH COUNCIL,NGF CS,,OTHER AGENCIES,DISBURSEMENTS,735511,120643250,27-Aug-15,"1,920.00",Revenue,1 GARDEN COURT CHAMBERS,SP0009291
WANDSWORTH COUNCIL,NGF CS,,OTHER AGENCIES,DISBURSEMENTS,735528,120643250,27-Aug-15,472.50,Revenue,GARDEN COURT CHAMBERS,SP0009292
WANDSWORTH COUNCIL,NGF CS,,OTHER AGENCIES,DISBURSEMENTS,724880,120643250,14-Aug-15,550.00,Revenue,42 BEDFORD ROW CHAMBERS,SP0009440
WANDSWORTH COUNCIL,NGF CS,,OTHER AGENCIES,DISBURSEMENTS,731398,120643250,20-Aug-15,650.00,Revenue,42 BEDFORD ROW CHAMBERS,SP0009440
WANDSWORTH COUNCIL,NGF CS,,OTHER AGENCIES,DISBURSEMENTS,737790,120643250,28-Aug-15,575.00,Revenue,FOURTEEN,SP0009555
WANDSWORTH COUNCIL,NGF CS,,OTHER AGENCIES,DISBURSEMENTS,737791,120643250,28-Aug-15,750.00,Revenue,FOURTEEN,SP0009555
WANDSWORTH COUNCIL,NGF CS,,OTHER AGENCIES,DISBURSEMENTS,731424,120643250,20-Aug-15,"1,875.00",Revenue,CROWN OFFICE CHAMBERS,SP0009718
WANDSWORTH COUNCIL,NGF CS,,PRIVATE,"CONTRACT 6- HWYS, PLAN ETC",722526,120646170,12-Aug-15,"2,030.00",Revenue,A S B LAW,SP0003196
WANDSWORTH COUNCIL,NGF CS,,PRIVATE,"CONTRACT 6- HWYS, PLAN ETC",722568,120646170,12-Aug-15,"30,120.78",Revenue,SHARPE PRITCHARD LLP,SP0003677
WANDSWORTH COUNCIL,NGF CS,,PRIVATE,"CONTRACT 6- HWYS, PLAN ETC",729301,120646170,19-Aug-15,"30,120.78",Revenue,SHARPE PRITCHARD LLP,SP0003677
WANDSWORTH COUNCIL,NGF CS,,PRIVATE,"CONTRACT 6- HWYS, PLAN ETC",729303,120646170,19-Aug-15,"8,093.06",Revenue,SHARPE PRITCHARD LLP,SP0003677
WANDSWORTH COUNCIL,NGF CS,,OTHER AGENCIES,DISBURSEMENTS,728733,120743250,19-Aug-15,691.75,Revenue,LAMBERT SMITH HAMPTON,SP0002515
WANDSWORTH COUNCIL,NGF CS,,PRIVATE,LOT 1 - LLORD SERVS PROP MGMT,721139,120746180,07-Aug-15,"13,566.27",Revenue,LAMBERT SMITH HAMPTON,SP0002515
WANDSWORTH COUNCIL,NGF CS,,PRIVATE,LOT 1 - LLORD SERVS PROP MGMT,721140,120746180,07-Aug-15,"7,718.36",Revenue,LAMBERT SMITH HAMPTON,SP0002515
WANDSWORTH COUNCIL,NGF CS,,PRIVATE,LOT 1 - LLORD SERVS PROP MGMT,728730,120746180,19-Aug-15,"11,172.82",Revenue,LAMBERT SMITH HAMPTON,SP0002515
WANDSWORTH COUNCIL,NGF CS,,PRIVATE,LOT 1 - LLORD SERVS PROP MGMT,728731,120746180,19-Aug-15,"6,209.38",Revenue,LAMBERT SMITH HAMPTON,SP0002515
WANDSWORTH COUNCIL,NGF CS,,PRIVATE,LOT 1 - LLORD SERVS PROP MGMT,728732,120746180,19-Aug-15,"5,744.66",Revenue,LAMBERT SMITH HAMPTON,SP0002515
WANDSWORTH COUNCIL,NGF CS,,PRIVATE,LOT 2 - GEN VALUATIONS,721142,120746250,07-Aug-15,"1,370.37",Revenue,LAMBERT SMITH HAMPTON,SP0002515
WANDSWORTH COUNCIL,NGF CS,,DIRECT2,AGENCY STAFF,728722,120800510,19-Aug-15,"1,189.44",Revenue,COBALT CONSULTING (UK) LTD,SP0008002
WANDSWORTH COUNCIL,NGF CS,,COMMUNICATIONS & COMP,I.T. SOFTWARE,729519,121136240,26-Aug-15,"2,120.65",Revenue,SOFTWARE BOX LTD,SP0007589
WANDSWORTH COUNCIL,NGF CS,,PRINTING STAT & GEN OFFICE EXP,OUTWORK - MEDIA,717866,121333350,04-Aug-15,504.00,Revenue,NEWSQUEST MEDIA GROUP,SP0002120
WANDSWORTH COUNCIL,NGF CS,,PRINTING STAT & GEN OFFICE EXP,OUTWORK - WEB OFFSET,717873,121333580,04-Aug-15,"2,579.00",Revenue,WARNERS MIDLANDS PLC,SP0007709
WANDSWORTH COUNCIL,NGF CS,,PRINTING STAT & GEN OFFICE EXP,OUTWORK - WEB OFFSET,718640,121333580,04-Aug-15,"10,784.00",Revenue,WARNERS MIDLANDS PLC,SP0007709
WANDSWORTH COUNCIL,NGF CS,,PRINTING STAT & GEN OFFICE EXP,OUTWORK - LITHO,734482,121333590,25-Aug-15,842.00,Revenue,HALSTAN & CO LTD,SP0001850
WANDSWORTH COUNCIL,NGF CS,,PRINTING STAT & GEN OFFICE EXP,OUTWORK - LITHO,717853,121333590,04-Aug-15,450.00,Revenue,KALL KWIK,SP0003093
WANDSWORTH COUNCIL,NGF CS,,PRINTING STAT & GEN OFFICE EXP,OUTWORK - LITHO,718627,121333590,04-Aug-15,750.00,Revenue,KALL KWIK,SP0003093
WANDSWORTH COUNCIL,NGF CS,,PRINTING STAT & GEN OFFICE EXP,OUTWORK - LITHO,718628,121333590,04-Aug-15,494.00,Revenue,KALL KWIK,SP0003093
WANDSWORTH COUNCIL,NGF CS,,PRINTING STAT & GEN OFFICE EXP,OUTWORK - LITHO,734489,121333590,25-Aug-15,"1,207.50",Revenue,KALL KWIK,SP0003093
WANDSWORTH COUNCIL,NGF CS,,PRINTING STAT & GEN OFFICE EXP,OUTWORK - LITHO,718602,121333590,04-Aug-15,"2,178.00",Revenue,IMPRESS PRINT SERVICES LTD,SP0003209
WANDSWORTH COUNCIL,NGF CS,,PRINTING STAT & GEN OFFICE EXP,OUTWORK - LITHO,718606,121333590,04-Aug-15,430.00,Revenue,IMPRESS PRINT SERVICES LTD,SP0003209
WANDSWORTH COUNCIL,NGF CS,,PRINTING STAT & GEN OFFICE EXP,OUTWORK - LITHO,734483,121333590,25-Aug-15,862.00,Revenue,IMPRESS PRINT SERVICES LTD,SP0003209
WANDSWORTH COUNCIL,NGF CS,,PRINTING STAT & GEN OFFICE EXP,OUTWORK - LITHO,717843,121333590,04-Aug-15,545.18,Revenue,FINANCIAL DATA MANAGEMENT LTD,SP0007048
WANDSWORTH COUNCIL,NGF CS,,PRINTING STAT & GEN OFFICE EXP,OUTWORK - LITHO,717844,121333590,04-Aug-15,616.39,Revenue,FINANCIAL DATA MANAGEMENT LTD,SP0007048
WANDSWORTH COUNCIL,NGF CS,,PRINTING STAT & GEN OFFICE EXP,OUTWORK - LITHO,718600,121333590,04-Aug-15,498.00,Revenue,FINANCIAL DATA MANAGEMENT LTD,SP0007048
WANDSWORTH COUNCIL,NGF CS,,PRINTING STAT & GEN OFFICE EXP,OUTWORK - EXTERN NON FRAMEWORK,718635,121333600,04-Aug-15,"1,480.50",Revenue,LONDON LETTERBOX MARKETING,SP0000546
WANDSWORTH COUNCIL,NGF CS,,PRINTING STAT & GEN OFFICE EXP,OUTWORK - EXTERN NON FRAMEWORK,717872,121333600,04-Aug-15,876.00,Revenue,TIMESIGNS LTD,SP0002044
WANDSWORTH COUNCIL,NGF CS,,MISC,MISCELLANEOUS EXPENSES,734504,121338500,25-Aug-15,450.00,Revenue,LONDON LETTERBOX MARKETING,SP0000546
WANDSWORTH COUNCIL,NGF CS,,MISC,MISCELLANEOUS EXPENSES,734503,121338500,25-Aug-15,655.00,Revenue,LIBERTY SERVICES  LIMITED,SP0002024
WANDSWORTH COUNCIL,NGF CS,,MISC,MISCELLANEOUS EXPENSES,734508,121338500,25-Aug-15,"1,182.00",Revenue,SERVICE GRAPHICS LTD,SP0002101
WANDSWORTH COUNCIL,NGF CS,,MISC,MISCELLANEOUS EXPENSES,734509,121338500,25-Aug-15,870.00,Revenue,SERVICE GRAPHICS LTD,SP0002101
WANDSWORTH COUNCIL,NGF CDC,,PRINTING STAT & GEN OFFICE EXP,PUBLICITY,728025,122033470,19-Aug-15,749.00,Revenue,DOTMAILER LTD,SP0006264
WANDSWORTH COUNCIL,NGF CS,,INDIRECT,IN-SERVICE TRAINING-SLA,731469,123000740,24-Aug-15,650.00,Revenue,TRAINING SYNERGY LTD,SP0000312
WANDSWORTH COUNCIL,NGF CS,,INDIRECT,HEALTH CARE,726266,123200640,17-Aug-15,"119,035.31",Revenue,BUPA INSURANCE LIMITED,SP0008413
WANDSWORTH COUNCIL,NGF CS,,INDIRECT,CHILDCARE VOUCHERS,722184,123200650,10-Aug-15,116.59,Revenue,COMPUTERSHARE VOUCHER SERVICES,SP0003037
WANDSWORTH COUNCIL,NGF CS,,INDIRECT,CHILDCARE VOUCHERS,722185,123200650,10-Aug-15,693.36,Revenue,COMPUTERSHARE VOUCHER SERVICES,SP0003037
WANDSWORTH COUNCIL,NGF CS,,INDIRECT,CHILDCARE VOUCHERS,732942,123200650,24-Aug-15,122.45,Revenue,COMPUTERSHARE VOUCHER SERVICES,SP0003037
WANDSWORTH COUNCIL,NGF CS,,INDIRECT,CHILDCARE VOUCHERS,736667,123200650,28-Aug-15,"1,012.11",Revenue,COMPUTERSHARE VOUCHER SERVICES,SP0003037
WANDSWORTH COUNCIL,NGF CS,,SERVICES,OHS SESSIONAL DOCTOR,729350,123234690,19-Aug-15,"4,930.20",Revenue,HJM ASSOCIATES,SP0003667
WANDSWORTH COUNCIL,NGF CS,,MISC,MISCELLANEOUS EXPENSES,725746,123238500,14-Aug-15,"15,000.00",Revenue,THE HAY GROUP MANAGEMENT LTD,SP0007231
WANDSWORTH COUNCIL,NGF CDC,,MISC,MISCELLANEOUS EXPENSES,733473,124038500,24-Aug-15,740.00,Revenue,DTS JEWELLERY LTD,SP0002367
WANDSWORTH COUNCIL,NGF CS,,INDIRECT,TRAINING - EXTERNAL COURSES,730532,124700770,21-Aug-15,520.00,Revenue,SOLACE,SP0003129
WANDSWORTH COUNCIL,PH,,MISC,REALLOCATE,724991,125038890,14-Aug-15,81.37,Revenue,HAZELMERE CONSULTING LTD,SP0007883
WANDSWORTH COUNCIL,PH,,MISC,REALLOCATE,724991,125038890,14-Aug-15,"9,200.00",Revenue,HAZELMERE CONSULTING LTD,SP0007883
WANDSWORTH COUNCIL,PH,,SERVICES,PROJECT WORK,717275,125134800,06-Aug-15,"2,168.36",Revenue,REFER-ALL LTD,SP0006505
WANDSWORTH COUNCIL,NGF CS,,COMMUNICATIONS & COMP,I.T. EQUIPMENT & MAINTENANCE,718595,126036210,04-Aug-15,30.60,Revenue,SUNA COMMUNICATION LTD,SP0000491
WANDSWORTH COUNCIL,NGF CS,,COMMUNICATIONS & COMP,I.T. EQUIPMENT & MAINTENANCE,718595,126036210,04-Aug-15,187.00,Revenue,SUNA COMMUNICATION LTD,SP0000491
WANDSWORTH COUNCIL,NGF CS,,COMMUNICATIONS & COMP,I.T. EQUIPMENT & MAINTENANCE,718595,126036210,04-Aug-15,176.00,Revenue,SUNA COMMUNICATION LTD,SP0000491
WANDSWORTH COUNCIL,NGF CS,,COMMUNICATIONS & COMP,I.T. EQUIPMENT & MAINTENANCE,718595,126036210,04-Aug-15,46.00,Revenue,SUNA COMMUNICATION LTD,SP0000491
WANDSWORTH COUNCIL,NGF CS,,GRANTS & SUBSCRIPTIONS,SUBSCRIPTIONS,729606,126037640,25-Aug-15,"19,500.00",Revenue,THE CORPORATE EXECUTIVE BOARD COMPANY,SP0009810
WANDSWORTH COUNCIL,NGF CS,,"EQUIPMENT, FURNITURE & MATS",CCTV CONTROL ROOM DEVELOPMENT,726257,126130030,14-Aug-15,"6,052.60",Revenue,VIRGIN MEDIA BUSINESS,SP0003737
WANDSWORTH COUNCIL,NGF CS,,"EQUIPMENT, FURNITURE & MATS",CCTV CONTROL ROOM DEVELOPMENT,726260,126130030,14-Aug-15,"5,989.00",Revenue,VIRGIN MEDIA BUSINESS,SP0003737
WANDSWORTH COUNCIL,NGF CS,,"EQUIPMENT, FURNITURE & MATS",CCTV FIBRE RENTALS,734810,126130040,26-Aug-15,"5,548.75",Revenue,VODAFONE CORPORATE,SP0001107
WANDSWORTH COUNCIL,NGF CS,,"EQUIPMENT, FURNITURE & MATS",CCTV MAINTENANCE,734981,126130050,26-Aug-15,"62,707.00",Revenue,VODAFONE CORPORATE,SP0001107
WANDSWORTH COUNCIL,NGF CS,,"EQUIPMENT, FURNITURE & MATS",CCTV MAINTENANCE,734981,126130050,26-Aug-15,96.76,Revenue,VODAFONE CORPORATE,SP0001107
WANDSWORTH COUNCIL,NGF CS,,"EQUIPMENT, FURNITURE & MATS",CCTV MAINTENANCE,734983,126130050,27-Aug-15,"64,647.64",Revenue,VODAFONE CORPORATE,SP0001107
WANDSWORTH COUNCIL,NGF CS,,"EQUIPMENT, FURNITURE & MATS",CCTV MAINTENANCE,734983,126130050,27-Aug-15,382.09,Revenue,VODAFONE CORPORATE,SP0001107
WANDSWORTH COUNCIL,NGF CS,,"EQUIPMENT, FURNITURE & MATS",CONSUMABLES,720893,126130080,07-Aug-15,"1,088.54",Revenue,BT PAYMENT SERVICES LTD,SP0001093
WANDSWORTH COUNCIL,NGF CS,,"EQUIPMENT, FURNITURE & MATS",CONSUMABLES,720893,126130080,07-Aug-15,20.00,Revenue,BT PAYMENT SERVICES LTD,SP0001093
WANDSWORTH COUNCIL,NGF CS,,"EQUIPMENT, FURNITURE & MATS",CONSUMABLES,721786,126130080,10-Aug-15,"13,925.43",Revenue,BT PAYMENT SERVICES LTD,SP0001093
WANDSWORTH COUNCIL,NGF CS,,"EQUIPMENT, FURNITURE & MATS",CONSUMABLES,722569,126130080,11-Aug-15,"1,030.09",Revenue,BT PAYMENT SERVICES LTD,SP0001093
WANDSWORTH COUNCIL,NGF CS,,"EQUIPMENT, FURNITURE & MATS",CONSUMABLES,734651,126130080,25-Aug-15,784.53,Revenue,BT PAYMENT SERVICES LTD,SP0001093
WANDSWORTH COUNCIL,NGF CS,,"EQUIPMENT, FURNITURE & MATS",CONSUMABLES,734652,126130080,25-Aug-15,799.52,Revenue,BT PAYMENT SERVICES LTD,SP0001093
WANDSWORTH COUNCIL,NGF CS,,"EQUIPMENT, FURNITURE & MATS",CONSUMABLES,734658,126130080,25-Aug-15,"5,574.69",Revenue,BT PAYMENT SERVICES LTD,SP0001093
WANDSWORTH COUNCIL,NGF CS,,"EQUIPMENT, FURNITURE & MATS",CONSUMABLES,734979,126130080,25-Aug-15,436.97,Revenue,BT PAYMENT SERVICES LTD,SP0001093
WANDSWORTH COUNCIL,NGF CS,,"EQUIPMENT, FURNITURE & MATS",CONSUMABLES,735022,126130080,26-Aug-15,470.44,Revenue,BT PAYMENT SERVICES LTD,SP0001093
WANDSWORTH COUNCIL,NGF CS,,"EQUIPMENT, FURNITURE & MATS",CONSUMABLES,735024,126130080,26-Aug-15,"1,212.50",Revenue,BT PAYMENT SERVICES LTD,SP0001093
WANDSWORTH COUNCIL,NGF CS,,"EQUIPMENT, FURNITURE & MATS","EQUIPMENT, FURNITURE & MATS",734102,126330000,25-Aug-15,"1,180.00",Revenue,INCOM TELECOMMUNICATIONS,SP0000568
WANDSWORTH COUNCIL,NGF CS,,"EQUIPMENT, FURNITURE & MATS","EQUIPMENT, FURNITURE & MATS",734102,126330000,25-Aug-15,175.00,Revenue,INCOM TELECOMMUNICATIONS,SP0000568
WANDSWORTH COUNCIL,NGF CS,,"EQUIPMENT, FURNITURE & MATS","EQUIPMENT, FURNITURE & MATS",734102,126330000,25-Aug-15,355.00,Revenue,INCOM TELECOMMUNICATIONS,SP0000568
WANDSWORTH COUNCIL,NGF CS,,"EQUIPMENT, FURNITURE & MATS","EQUIPMENT, FURNITURE & MATS",734103,126330000,25-Aug-15,"1,650.00",Revenue,INCOM TELECOMMUNICATIONS,SP0000568
WANDSWORTH COUNCIL,NGF CS,,"EQUIPMENT, FURNITURE & MATS","EQUIPMENT, FURNITURE & MATS",734812,126330000,26-Aug-15,"3,375.00",Revenue,DAMOVO UK LTD,SP0000899
WANDSWORTH COUNCIL,NGF CS,,"EQUIPMENT, FURNITURE & MATS","EQUIPMENT, FURNITURE & MATS",733411,126330000,24-Aug-15,"1,000.00",Revenue,DV02 LTD,SP0004553
WANDSWORTH COUNCIL,NGF CS,,"EQUIPMENT, FURNITURE & MATS","EQUIPMENT, FURNITURE & MATS",733411,126330000,24-Aug-15,18.00,Revenue,DV02 LTD,SP0004553
WANDSWORTH COUNCIL,NGF CS,,"EQUIPMENT, FURNITURE & MATS","EQUIPMENT, FURNITURE & MATS",722229,126530000,12-Aug-15,"10,260.00",Revenue,LRQA LIMITED,SP0003365
WANDSWORTH COUNCIL,NGF CS,,COMMUNICATIONS & COMP,I.T. SOFTWARE,718713,126536240,04-Aug-15,"3,142.90",Revenue,SOFTWARE BOX LTD,SP0007589
WANDSWORTH COUNCIL,NGF CS,,COMMUNICATIONS & COMP,I.T. SOFTWARE,718713,126536240,04-Aug-15,"11,693.96",Revenue,SOFTWARE BOX LTD,SP0007589
WANDSWORTH COUNCIL,NGF CS,,COMMUNICATIONS & COMP,I.T. SOFTWARE,718713,126536240,04-Aug-15,"11,551.64",Revenue,SOFTWARE BOX LTD,SP0007589
WANDSWORTH COUNCIL,NGF CS,,"EQUIPMENT, FURNITURE & MATS","EQUIPMENT, FURNITURE & MATS",727978,126630000,17-Aug-15,"5,310.00",Revenue,JADU LIMITED LCB,SP0003050
WANDSWORTH COUNCIL,CS,,DIRECT2,AGENCY STAFF,720262,128000510,06-Aug-15,"13,950.32",Revenue,MATRIX SCM LIMITED,SP0004572
WANDSWORTH COUNCIL,CS,,DIRECT2,AGENCY STAFF,722245,128000510,12-Aug-15,"16,304.27",Revenue,MATRIX SCM LIMITED,SP0004572
WANDSWORTH COUNCIL,CS,,DIRECT2,AGENCY STAFF,728466,128000510,19-Aug-15,"15,205.87",Revenue,MATRIX SCM LIMITED,SP0004572
WANDSWORTH COUNCIL,CS,,INDIRECT,STAFF ADVERTISING - VACANCIES,721791,128000960,10-Aug-15,"3,644.14",Revenue,PENNA PLC,SP0006290
WANDSWORTH COUNCIL,CS,,INDIRECT,STAFF ADVERTISING - VACANCIES,722132,128000960,10-Aug-15,602.00,Revenue,PENNA PLC,SP0006290
WANDSWORTH COUNCIL,CS,,INDIRECT,STAFF ADVERTISING - VACANCIES,722213,128000960,10-Aug-15,550.03,Revenue,PENNA PLC,SP0006290
WANDSWORTH COUNCIL,CS,,INDIRECT,STAFF ADVERTISING - VACANCIES,724957,128000960,14-Aug-15,427.01,Revenue,PENNA PLC,SP0006290
WANDSWORTH COUNCIL,CS,,INDIRECT,STAFF ADVERTISING - VACANCIES,728114,128000960,19-Aug-15,"1,380.53",Revenue,PENNA PLC,SP0006290
WANDSWORTH COUNCIL,CS,,INDIRECT,STAFF ADVERTISING - VACANCIES,728761,128000960,19-Aug-15,696.50,Revenue,PENNA PLC,SP0006290
WANDSWORTH COUNCIL,CS,,INDIRECT,STAFF ADVERTISING - VACANCIES,728762,128000960,19-Aug-15,494.67,Revenue,PENNA PLC,SP0006290
WANDSWORTH COUNCIL,CS,,INDIRECT,STAFF ADVERTISING - VACANCIES,728764,128000960,19-Aug-15,840.50,Revenue,PENNA PLC,SP0006290
WANDSWORTH COUNCIL,CS,,INDIRECT,STAFF ADVERTISING - VACANCIES,732886,128000960,24-Aug-15,"1,363.00",Revenue,PENNA PLC,SP0006290
WANDSWORTH COUNCIL,CS,,INDIRECT,STAFF ADVERTISING - VACANCIES,735523,128000960,27-Aug-15,"2,246.56",Revenue,PENNA PLC,SP0006290
WANDSWORTH COUNCIL,CS,,INDIRECT,STAFF ADVERTISING - VACANCIES,735524,128000960,27-Aug-15,"2,246.56",Revenue,PENNA PLC,SP0006290
WANDSWORTH COUNCIL,CS,,INDIRECT,STAFF ADVERTISING - VACANCIES,735525,128000960,27-Aug-15,"2,196.09",Revenue,PENNA PLC,SP0006290
WANDSWORTH COUNCIL,CS,,INDIRECT,STAFF ADVERTISING - VACANCIES,736661,128000960,28-Aug-15,"1,810.50",Revenue,PENNA PLC,SP0006290
WANDSWORTH COUNCIL,CS,,INDIRECT,STAFF ADVERTISING - VACANCIES,736662,128000960,28-Aug-15,"5,752.25",Revenue,PENNA PLC,SP0006290
WANDSWORTH COUNCIL,CS,,HEALTH,THIRD PARTY PYMT - HEALTH,719241,128041130,06-Aug-15,"2,602.76",Revenue,CARE UK CLINICAL SERVICES LTD,SP0005790
WANDSWORTH COUNCIL,CS,,HEALTH,THIRD PARTY PYMT - HEALTH,719242,128041130,06-Aug-15,"2,306.08",Revenue,CARE UK CLINICAL SERVICES LTD,SP0005790
WANDSWORTH COUNCIL,ASC,SOCIAL SERVICES,HIRE,HIRE - TRANSPORT,734706,130020410,25-Aug-15,"1,957.50",Revenue,BECKETT CORPORATION LTD T/A TINAS CARS,SP0000729
WANDSWORTH COUNCIL,ASC,SOCIAL SERVICES,HIRE,HIRE - TRANSPORT,735386,130020410,26-Aug-15,"1,147.00",Revenue,A STAR TRANSPORT LTD,SP0000866
WANDSWORTH COUNCIL,ASC,SOCIAL SERVICES,PRIVATE,EXTERNAL DAYCARE,732794,130045290,21-Aug-15,588.00,Revenue,THE CHESTNUTS,SP0000182
WANDSWORTH COUNCIL,ASC,SOCIAL SERVICES,PRIVATE,EXTERNAL RESIDENTIAL CARE,730599,130045330,19-Aug-15,"9,211.43",Revenue,LONDON CARE PARTNERSHIP LTD,SP0001138
WANDSWORTH COUNCIL,ASC,SOCIAL SERVICES,VOL ASS,SUPPORTED HOUSING PROGRAMME,722736,130048030,11-Aug-15,"1,200.00",Revenue,ACT TOO LTD,SP0000855
WANDSWORTH COUNCIL,ASC,SOCIAL SERVICES,HIRE,HIRE - TRANSPORT,734701,130220410,25-Aug-15,717.82,Revenue,BECKETT CORPORATION LTD T/A TINAS CARS,SP0000729
WANDSWORTH COUNCIL,ASC,SOCIAL SERVICES,HIRE,HIRE - TRANSPORT,734702,130220410,25-Aug-15,496.62,Revenue,BECKETT CORPORATION LTD T/A TINAS CARS,SP0000729
WANDSWORTH COUNCIL,ASC,SOCIAL SERVICES,HIRE,HIRE - TRANSPORT,734705,130220410,25-Aug-15,772.73,Revenue,BECKETT CORPORATION LTD T/A TINAS CARS,SP0000729
WANDSWORTH COUNCIL,ASC,SOCIAL SERVICES,HIRE,HIRE - TRANSPORT,734708,130220410,25-Aug-15,472.80,Revenue,BECKETT CORPORATION LTD T/A TINAS CARS,SP0000729
WANDSWORTH COUNCIL,ASC,SOCIAL SERVICES,HIRE,HIRE - TRANSPORT,734709,130220410,25-Aug-15,539.62,Revenue,BECKETT CORPORATION LTD T/A TINAS CARS,SP0000729
WANDSWORTH COUNCIL,ASC,SOCIAL SERVICES,HIRE,HIRE - TRANSPORT,734710,130220410,25-Aug-15,135.60,Revenue,BECKETT CORPORATION LTD T/A TINAS CARS,SP0000729
WANDSWORTH COUNCIL,ASC,SOCIAL SERVICES,HIRE,HIRE - TRANSPORT,734711,130220410,25-Aug-15,472.80,Revenue,BECKETT CORPORATION LTD T/A TINAS CARS,SP0000729
WANDSWORTH COUNCIL,ASC,SOCIAL SERVICES,HIRE,HIRE - TRANSPORT,734712,130220410,25-Aug-15,597.73,Revenue,BECKETT CORPORATION LTD T/A TINAS CARS,SP0000729
WANDSWORTH COUNCIL,ASC,SOCIAL SERVICES,HIRE,HIRE - TRANSPORT,734716,130220410,25-Aug-15,"1,885.50",Revenue,BECKETT CORPORATION LTD T/A TINAS CARS,SP0000729
WANDSWORTH COUNCIL,ASC,SOCIAL SERVICES,HIRE,HIRE - TRANSPORT,734717,130220410,25-Aug-15,540.00,Revenue,BECKETT CORPORATION LTD T/A TINAS CARS,SP0000729
WANDSWORTH COUNCIL,ASC,SOCIAL SERVICES,HIRE,HIRE - TRANSPORT,734720,130220410,25-Aug-15,858.00,Revenue,BECKETT CORPORATION LTD T/A TINAS CARS,SP0000729
WANDSWORTH COUNCIL,ASC,SOCIAL SERVICES,HIRE,HIRE - TRANSPORT,734721,130220410,25-Aug-15,"2,000.00",Revenue,BECKETT CORPORATION LTD T/A TINAS CARS,SP0000729
WANDSWORTH COUNCIL,ASC,SOCIAL SERVICES,HIRE,HIRE - TRANSPORT,718544,130220410,04-Aug-15,795.00,Revenue,A STAR TRANSPORT LTD,SP0000866
WANDSWORTH COUNCIL,ASC,SOCIAL SERVICES,HIRE,HIRE - TRANSPORT,718547,130220410,04-Aug-15,728.00,Revenue,A STAR TRANSPORT LTD,SP0000866
WANDSWORTH COUNCIL,ASC,SOCIAL SERVICES,HIRE,HIRE - TRANSPORT,718548,130220410,04-Aug-15,752.00,Revenue,A STAR TRANSPORT LTD,SP0000866
WANDSWORTH COUNCIL,ASC,SOCIAL SERVICES,HIRE,HIRE - TRANSPORT,718550,130220410,04-Aug-15,"1,033.60",Revenue,A STAR TRANSPORT LTD,SP0000866
WANDSWORTH COUNCIL,ASC,SOCIAL SERVICES,HIRE,HIRE - TRANSPORT,718551,130220410,04-Aug-15,"1,033.20",Revenue,A STAR TRANSPORT LTD,SP0000866
WANDSWORTH COUNCIL,ASC,SOCIAL SERVICES,HIRE,HIRE - TRANSPORT,718553,130220410,04-Aug-15,"1,320.00",Revenue,A STAR TRANSPORT LTD,SP0000866
WANDSWORTH COUNCIL,ASC,SOCIAL SERVICES,HIRE,HIRE - TRANSPORT,718558,130220410,04-Aug-15,573.80,Revenue,A STAR TRANSPORT LTD,SP0000866
WANDSWORTH COUNCIL,ASC,SOCIAL SERVICES,HIRE,HIRE - TRANSPORT,735349,130220410,26-Aug-15,480.00,Revenue,A STAR TRANSPORT LTD,SP0000866
WANDSWORTH COUNCIL,ASC,SOCIAL SERVICES,HIRE,HIRE - TRANSPORT,735352,130220410,26-Aug-15,490.00,Revenue,A STAR TRANSPORT LTD,SP0000866
WANDSWORTH COUNCIL,ASC,SOCIAL SERVICES,HIRE,HIRE - TRANSPORT,735353,130220410,26-Aug-15,520.00,Revenue,A STAR TRANSPORT LTD,SP0000866
WANDSWORTH COUNCIL,ASC,SOCIAL SERVICES,HIRE,HIRE - TRANSPORT,735354,130220410,26-Aug-15,520.00,Revenue,A STAR TRANSPORT LTD,SP0000866
WANDSWORTH COUNCIL,ASC,SOCIAL SERVICES,HIRE,HIRE - TRANSPORT,735355,130220410,26-Aug-15,836.00,Revenue,A STAR TRANSPORT LTD,SP0000866
WANDSWORTH COUNCIL,ASC,SOCIAL SERVICES,HIRE,HIRE - TRANSPORT,735357,130220410,26-Aug-15,"1,216.00",Revenue,A STAR TRANSPORT LTD,SP0000866
WANDSWORTH COUNCIL,ASC,SOCIAL SERVICES,HIRE,HIRE - TRANSPORT,735360,130220410,26-Aug-15,"1,000.00",Revenue,A STAR TRANSPORT LTD,SP0000866
WANDSWORTH COUNCIL,ASC,SOCIAL SERVICES,HIRE,HIRE - TRANSPORT,735361,130220410,26-Aug-15,950.00,Revenue,A STAR TRANSPORT LTD,SP0000866
WANDSWORTH COUNCIL,ASC,SOCIAL SERVICES,HIRE,HIRE - TRANSPORT,735362,130220410,26-Aug-15,600.00,Revenue,A STAR TRANSPORT LTD,SP0000866
WANDSWORTH COUNCIL,ASC,SOCIAL SERVICES,HIRE,HIRE - TRANSPORT,735364,130220410,26-Aug-15,584.00,Revenue,A STAR TRANSPORT LTD,SP0000866
WANDSWORTH COUNCIL,ASC,SOCIAL SERVICES,HIRE,HIRE - TRANSPORT,735367,130220410,26-Aug-15,558.00,Revenue,A STAR TRANSPORT LTD,SP0000866
WANDSWORTH COUNCIL,ASC,SOCIAL SERVICES,HIRE,HIRE - TRANSPORT,735368,130220410,26-Aug-15,"1,192.00",Revenue,A STAR TRANSPORT LTD,SP0000866
WANDSWORTH COUNCIL,ASC,SOCIAL SERVICES,HIRE,HIRE - TRANSPORT,735372,130220410,26-Aug-15,752.16,Revenue,A STAR TRANSPORT LTD,SP0000866
WANDSWORTH COUNCIL,ASC,SOCIAL SERVICES,HIRE,HIRE - TRANSPORT,735373,130220410,26-Aug-15,572.00,Revenue,A STAR TRANSPORT LTD,SP0000866
WANDSWORTH COUNCIL,ASC,SOCIAL SERVICES,HIRE,HIRE - TRANSPORT,735374,130220410,26-Aug-15,930.00,Revenue,A STAR TRANSPORT LTD,SP0000866
WANDSWORTH COUNCIL,ASC,SOCIAL SERVICES,HIRE,HIRE - TRANSPORT,735375,130220410,26-Aug-15,500.00,Revenue,A STAR TRANSPORT LTD,SP0000866
WANDSWORTH COUNCIL,ASC,SOCIAL SERVICES,HIRE,HIRE - TRANSPORT,735378,130220410,26-Aug-15,613.20,Revenue,A STAR TRANSPORT LTD,SP0000866
WANDSWORTH COUNCIL,ASC,SOCIAL SERVICES,HIRE,HIRE - TRANSPORT,735381,130220410,26-Aug-15,396.00,Revenue,A STAR TRANSPORT LTD,SP0000866
WANDSWORTH COUNCIL,ASC,SOCIAL SERVICES,HIRE,HIRE - TRANSPORT,735388,130220410,26-Aug-15,520.00,Revenue,A STAR TRANSPORT LTD,SP0000866
WANDSWORTH COUNCIL,ASC,SOCIAL SERVICES,HIRE,HIRE - TRANSPORT,735390,130220410,26-Aug-15,573.80,Revenue,A STAR TRANSPORT LTD,SP0000866
WANDSWORTH COUNCIL,ASC,SOCIAL SERVICES,HIRE,HIRE - TRANSPORT,735394,130220410,26-Aug-15,546.36,Revenue,A STAR TRANSPORT LTD,SP0000866
WANDSWORTH COUNCIL,ASC,SOCIAL SERVICES,HIRE,HIRE - TRANSPORT,735397,130220410,26-Aug-15,566.28,Revenue,A STAR TRANSPORT LTD,SP0000866
WANDSWORTH COUNCIL,ASC,SOCIAL SERVICES,HIRE,HIRE - TRANSPORT,718537,130220410,04-Aug-15,"1,264.00",Revenue,GALPINS SERVICES LTD,SP0001368
WANDSWORTH COUNCIL,ASC,SOCIAL SERVICES,HIRE,HIRE - TRANSPORT,730825,130220410,19-Aug-15,613.80,Revenue,ADDISON LEE LTD,SP0003268
WANDSWORTH COUNCIL,ASC,SOCIAL SERVICES,HIRE,HIRE - TRANSPORT,730828,130220410,19-Aug-15,"1,327.89",Revenue,ADDISON LEE,SP0009711
WANDSWORTH COUNCIL,ASC,SOCIAL SERVICES,HIRE,HIRE - TRANSPORT,730830,130220410,19-Aug-15,"1,326.30",Revenue,ADDISON LEE,SP0009711
WANDSWORTH COUNCIL,ASC,SOCIAL SERVICES,HIRE,NEW TRANSPORT CONTRACT,734707,130220430,25-Aug-15,"1,957.50",Revenue,BECKETT CORPORATION LTD T/A TINAS CARS,SP0000729
WANDSWORTH COUNCIL,ASC,SOCIAL SERVICES,HIRE,NEW TRANSPORT CONTRACT,734710,130220430,25-Aug-15,495.20,Revenue,BECKETT CORPORATION LTD T/A TINAS CARS,SP0000729
WANDSWORTH COUNCIL,ASC,SOCIAL SERVICES,HIRE,NEW TRANSPORT CONTRACT,735349,130220430,26-Aug-15,96.00,Revenue,A STAR TRANSPORT LTD,SP0000866
WANDSWORTH COUNCIL,ASC,SOCIAL SERVICES,HIRE,NEW TRANSPORT CONTRACT,735381,130220430,26-Aug-15,132.00,Revenue,A STAR TRANSPORT LTD,SP0000866
WANDSWORTH COUNCIL,ASC,SOCIAL SERVICES,HEALTH,EXT RES S28A 100% OLD LONGSTAY,729102,130241010,18-Aug-15,"6,266.82",Revenue,VOYAGE CARE LTD,SP0000366
WANDSWORTH COUNCIL,ASC,SOCIAL SERVICES,HEALTH,EXT RES S28A 100% OLD LONGSTAY,729110,130241010,18-Aug-15,"9,174.85",Revenue,VOYAGE CARE LTD,SP0000366
WANDSWORTH COUNCIL,ASC,SOCIAL SERVICES,HEALTH,EXT RES S28A 100% OLD LONGSTAY,725074,130241010,13-Aug-15,"2,939.06",Revenue,PARKGATE MANOR,SP0000521
WANDSWORTH COUNCIL,ASC,SOCIAL SERVICES,HEALTH,EXT RES CARE S28A 100%,728835,130241090,18-Aug-15,"6,266.69",Revenue,VOYAGE CARE LTD,SP0000366
WANDSWORTH COUNCIL,ASC,SOCIAL SERVICES,HEALTH,EXT RES CARE S28A 100%,728836,130241090,18-Aug-15,"6,064.54",Revenue,VOYAGE CARE LTD,SP0000366
WANDSWORTH COUNCIL,ASC,SOCIAL SERVICES,HEALTH,EXT RES CARE S28A 100%,728837,130241090,18-Aug-15,"6,266.70",Revenue,VOYAGE CARE LTD,SP0000366
WANDSWORTH COUNCIL,ASC,SOCIAL SERVICES,HEALTH,EXT RES CARE S28A 100%,729103,130241090,18-Aug-15,"6,266.96",Revenue,VOYAGE CARE LTD,SP0000366
WANDSWORTH COUNCIL,ASC,SOCIAL SERVICES,HEALTH,EXT RES CARE S28A 100%,730561,130241090,19-Aug-15,"5,605.48",Revenue,VOYAGE CARE LTD,SP0000366
WANDSWORTH COUNCIL,ASC,SOCIAL SERVICES,HEALTH,EXT RES S28A OLD LONG STAY,729091,130241110,18-Aug-15,"2,975.96",Revenue,ELEANOR NURSING & SOCIAL CARE,SP0000110
WANDSWORTH COUNCIL,ASC,SOCIAL SERVICES,HEALTH,EXT RES S28A OLD LONG STAY,729092,130241110,18-Aug-15,"2,975.96",Revenue,ELEANOR NURSING & SOCIAL CARE,SP0000110
WANDSWORTH COUNCIL,ASC,SOCIAL SERVICES,HEALTH,EXT RES S28A OLD LONG STAY,717217,130241110,03-Aug-15,"4,351.72",Revenue,ANTHONY TOBY HOMES TRUST,SP0000755
WANDSWORTH COUNCIL,ASC,SOCIAL SERVICES,OTHER AGENCIES,ENABLERS/EDUCATION FEES,729129,130243280,18-Aug-15,"11,024.00",Revenue,CAMBIAN WHINFELL SCHOOL LTD,SP0008913
WANDSWORTH COUNCIL,ASC,SOCIAL SERVICES,OTHER AGENCIES,ENABLERS/EDUCATION FEES,729130,130243280,18-Aug-15,"11,024.00",Revenue,CAMBIAN WHINFELL SCHOOL LTD,SP0008913
WANDSWORTH COUNCIL,ASC,SOCIAL SERVICES,OTHER AGENCIES,EXTERNAL LODGINGS,718542,130243320,04-Aug-15,"1,085.00",Revenue,M RAZA T/A CLOCK HOUSE HOTEL,SP0001280
WANDSWORTH COUNCIL,ASC,SOCIAL SERVICES,OTHER AGENCIES,EXTERNAL OUTREACH,730844,130243330,19-Aug-15,806.84,Revenue,RAINBOW MEDICAL SERVICES,SP0000037
WANDSWORTH COUNCIL,ASC,SOCIAL SERVICES,OTHER AGENCIES,EXTERNAL OUTREACH,718541,130243330,04-Aug-15,"1,064.00",Revenue,PROTOCOL EDUCATION  LTD,SP0000171
WANDSWORTH COUNCIL,ASC,SOCIAL SERVICES,OTHER AGENCIES,EXTERNAL OUTREACH,729007,130243330,18-Aug-15,950.00,Revenue,PROTOCOL EDUCATION  LTD,SP0000171
WANDSWORTH COUNCIL,ASC,SOCIAL SERVICES,OTHER AGENCIES,EXTERNAL OUTREACH,729012,130243330,18-Aug-15,826.50,Revenue,PROTOCOL EDUCATION  LTD,SP0000171
WANDSWORTH COUNCIL,ASC,SOCIAL SERVICES,OTHER AGENCIES,EXTERNAL OUTREACH,734611,130243330,25-Aug-15,959.50,Revenue,PROTOCOL EDUCATION  LTD,SP0000171
WANDSWORTH COUNCIL,ASC,SOCIAL SERVICES,OTHER AGENCIES,EXTERNAL OUTREACH,737283,130243330,27-Aug-15,"2,185.32",Revenue,C M CARE LTD,SP0000455
WANDSWORTH COUNCIL,ASC,SOCIAL SERVICES,OTHER AGENCIES,EXTERNAL OUTREACH,737286,130243330,27-Aug-15,"1,287.20",Revenue,C M CARE LTD,SP0000455
WANDSWORTH COUNCIL,ASC,SOCIAL SERVICES,OTHER AGENCIES,EXTERNAL OUTREACH,737288,130243330,27-Aug-15,576.00,Revenue,C M CARE LTD,SP0000455
WANDSWORTH COUNCIL,ASC,SOCIAL SERVICES,OTHER AGENCIES,EXTERNAL OUTREACH,737289,130243330,27-Aug-15,"1,540.00",Revenue,C M CARE LTD,SP0000455
WANDSWORTH COUNCIL,ASC,SOCIAL SERVICES,OTHER AGENCIES,EXTERNAL OUTREACH,732801,130243330,21-Aug-15,299.10,Revenue,GENERATE OPPORTUNITIES LTD,SP0000503
WANDSWORTH COUNCIL,ASC,SOCIAL SERVICES,OTHER AGENCIES,EXTERNAL OUTREACH,732805,130243330,21-Aug-15,797.60,Revenue,GENERATE OPPORTUNITIES LTD,SP0000503
WANDSWORTH COUNCIL,ASC,SOCIAL SERVICES,OTHER AGENCIES,EXTERNAL OUTREACH,732808,130243330,21-Aug-15,598.20,Revenue,GENERATE OPPORTUNITIES LTD,SP0000503
WANDSWORTH COUNCIL,ASC,SOCIAL SERVICES,OTHER AGENCIES,EXTERNAL OUTREACH,732811,130243330,21-Aug-15,598.20,Revenue,GENERATE OPPORTUNITIES LTD,SP0000503
WANDSWORTH COUNCIL,ASC,SOCIAL SERVICES,OTHER AGENCIES,EXTERNAL OUTREACH,732818,130243330,21-Aug-15,"1,196.40",Revenue,GENERATE OPPORTUNITIES LTD,SP0000503
WANDSWORTH COUNCIL,ASC,SOCIAL SERVICES,OTHER AGENCIES,EXTERNAL OUTREACH,732822,130243330,21-Aug-15,797.60,Revenue,GENERATE OPPORTUNITIES LTD,SP0000503
WANDSWORTH COUNCIL,ASC,SOCIAL SERVICES,OTHER AGENCIES,EXTERNAL OUTREACH,732823,130243330,21-Aug-15,919.40,Revenue,GENERATE OPPORTUNITIES LTD,SP0000503
WANDSWORTH COUNCIL,ASC,SOCIAL SERVICES,OTHER AGENCIES,EXTERNAL OUTREACH,732827,130243330,21-Aug-15,997.00,Revenue,GENERATE OPPORTUNITIES LTD,SP0000503
WANDSWORTH COUNCIL,ASC,SOCIAL SERVICES,OTHER AGENCIES,EXTERNAL OUTREACH,732834,130243330,21-Aug-15,897.30,Revenue,GENERATE OPPORTUNITIES LTD,SP0000503
WANDSWORTH COUNCIL,ASC,SOCIAL SERVICES,OTHER AGENCIES,EXTERNAL OUTREACH,732836,130243330,21-Aug-15,418.74,Revenue,GENERATE OPPORTUNITIES LTD,SP0000503
WANDSWORTH COUNCIL,ASC,SOCIAL SERVICES,OTHER AGENCIES,EXTERNAL OUTREACH,732838,130243330,21-Aug-15,997.00,Revenue,GENERATE OPPORTUNITIES LTD,SP0000503
WANDSWORTH COUNCIL,ASC,SOCIAL SERVICES,OTHER AGENCIES,EXTERNAL OUTREACH,732842,130243330,21-Aug-15,"2,791.60",Revenue,GENERATE OPPORTUNITIES LTD,SP0000503
WANDSWORTH COUNCIL,ASC,SOCIAL SERVICES,OTHER AGENCIES,EXTERNAL OUTREACH,732848,130243330,21-Aug-15,402.80,Revenue,GENERATE OPPORTUNITIES LTD,SP0000503
WANDSWORTH COUNCIL,ASC,SOCIAL SERVICES,OTHER AGENCIES,EXTERNAL OUTREACH,732851,130243330,21-Aug-15,402.80,Revenue,GENERATE OPPORTUNITIES LTD,SP0000503
WANDSWORTH COUNCIL,ASC,SOCIAL SERVICES,OTHER AGENCIES,EXTERNAL OUTREACH,732852,130243330,21-Aug-15,"3,106.90",Revenue,GENERATE OPPORTUNITIES LTD,SP0000503
WANDSWORTH COUNCIL,ASC,SOCIAL SERVICES,OTHER AGENCIES,EXTERNAL OUTREACH,734596,130243330,25-Aug-15,691.32,Revenue,SOUTHSIDE PARTNERSHIP,SP0000692
WANDSWORTH COUNCIL,ASC,SOCIAL SERVICES,OTHER AGENCIES,EXTERNAL OUTREACH,734601,130243330,25-Aug-15,691.32,Revenue,SOUTHSIDE PARTNERSHIP,SP0000692
WANDSWORTH COUNCIL,ASC,SOCIAL SERVICES,OTHER AGENCIES,EXTERNAL OUTREACH,722737,130243330,11-Aug-15,600.00,Revenue,ACT TOO LTD,SP0000855
WANDSWORTH COUNCIL,ASC,SOCIAL SERVICES,OTHER AGENCIES,EXTERNAL OUTREACH,722739,130243330,11-Aug-15,720.00,Revenue,ACT TOO LTD,SP0000855
WANDSWORTH COUNCIL,ASC,SOCIAL SERVICES,OTHER AGENCIES,EXTERNAL OUTREACH,734614,130243330,25-Aug-15,"1,200.00",Revenue,ROYAL ASSOCIATION FOR DEAF PEOPLE,SP0001251
WANDSWORTH COUNCIL,ASC,SOCIAL SERVICES,OTHER AGENCIES,EXTERNAL OUTREACH,728896,130243330,18-Aug-15,331.20,Revenue,THE BRANDON TRUST,SP0005337
WANDSWORTH COUNCIL,ASC,SOCIAL SERVICES,OTHER AGENCIES,EXTERNAL OUTREACH,728911,130243330,18-Aug-15,757.92,Revenue,THE BRANDON TRUST,SP0005337
WANDSWORTH COUNCIL,ASC,SOCIAL SERVICES,OTHER AGENCIES,EXTERNAL OUTREACH,728944,130243330,18-Aug-15,631.60,Revenue,THE BRANDON TRUST,SP0005337
WANDSWORTH COUNCIL,ASC,SOCIAL SERVICES,OTHER AGENCIES,EXTERNAL OUTREACH,728957,130243330,18-Aug-15,568.44,Revenue,THE BRANDON TRUST,SP0005337
WANDSWORTH COUNCIL,ASC,SOCIAL SERVICES,OTHER AGENCIES,EXTERNAL OUTREACH,728958,130243330,18-Aug-15,505.28,Revenue,THE BRANDON TRUST,SP0005337
WANDSWORTH COUNCIL,ASC,SOCIAL SERVICES,OTHER AGENCIES,EXTERNAL OUTREACH,728959,130243330,18-Aug-15,189.48,Revenue,THE BRANDON TRUST,SP0005337
WANDSWORTH COUNCIL,ASC,SOCIAL SERVICES,OTHER AGENCIES,EXTERNAL OUTREACH,728965,130243330,18-Aug-15,947.40,Revenue,THE BRANDON TRUST,SP0005337
WANDSWORTH COUNCIL,ASC,SOCIAL SERVICES,OTHER AGENCIES,EXTERNAL OUTREACH,728966,130243330,18-Aug-15,"1,170.80",Revenue,THE BRANDON TRUST,SP0005337
WANDSWORTH COUNCIL,ASC,SOCIAL SERVICES,OTHER AGENCIES,EXTERNAL OUTREACH,728986,130243330,18-Aug-15,189.48,Revenue,THE BRANDON TRUST,SP0005337
WANDSWORTH COUNCIL,ASC,SOCIAL SERVICES,OTHER AGENCIES,EXTERNAL OUTREACH,728998,130243330,18-Aug-15,694.76,Revenue,THE BRANDON TRUST,SP0005337
WANDSWORTH COUNCIL,ASC,SOCIAL SERVICES,OTHER AGENCIES,EXTERNAL OUTREACH,738829,130243330,28-Aug-15,"2,640.00",Revenue,RELIABLE PERSONNEL LTD,SP0005657
WANDSWORTH COUNCIL,ASC,SOCIAL SERVICES,PRIVATE,EXTERNAL DAYCARE,728848,130245290,18-Aug-15,"1,999.41",Revenue,CMG HOMES LTD,SP0000075
WANDSWORTH COUNCIL,ASC,SOCIAL SERVICES,PRIVATE,EXTERNAL DAYCARE,725162,130245290,13-Aug-15,"1,011.36",Revenue,COUNTRY CARE,SP0000090
WANDSWORTH COUNCIL,ASC,SOCIAL SERVICES,PRIVATE,EXTERNAL DAYCARE,735336,130245290,26-Aug-15,"1,268.93",Revenue,RESIDENTIAL CARE SERVICES T/A FRANKLYN L,SP0000147
WANDSWORTH COUNCIL,ASC,SOCIAL SERVICES,PRIVATE,EXTERNAL DAYCARE,730587,130245290,19-Aug-15,40.00,Revenue,THE CHESTNUTS,SP0000182
WANDSWORTH COUNCIL,ASC,SOCIAL SERVICES,PRIVATE,EXTERNAL DAYCARE,717254,130245290,03-Aug-15,878.48,Revenue,ORCHARD VALE TRUST,SP0000214
WANDSWORTH COUNCIL,ASC,SOCIAL SERVICES,PRIVATE,EXTERNAL DAYCARE,735335,130245290,26-Aug-15,878.48,Revenue,ORCHARD VALE TRUST,SP0000214
WANDSWORTH COUNCIL,ASC,SOCIAL SERVICES,PRIVATE,EXTERNAL DAYCARE,738774,130245290,28-Aug-15,"1,736.84",Revenue,ST MARYS RESIDENTIAL HOME,SP0000215
WANDSWORTH COUNCIL,ASC,SOCIAL SERVICES,PRIVATE,EXTERNAL DAYCARE,738775,130245290,28-Aug-15,708.52,Revenue,ST MARYS RESIDENTIAL HOME,SP0000215
WANDSWORTH COUNCIL,ASC,SOCIAL SERVICES,PRIVATE,EXTERNAL DAYCARE,738779,130245290,28-Aug-15,956.80,Revenue,ST MARYS RESIDENTIAL HOME,SP0000215
WANDSWORTH COUNCIL,ASC,SOCIAL SERVICES,PRIVATE,EXTERNAL DAYCARE,738781,130245290,28-Aug-15,534.28,Revenue,ST MARYS RESIDENTIAL HOME,SP0000215
WANDSWORTH COUNCIL,ASC,SOCIAL SERVICES,PRIVATE,EXTERNAL DAYCARE,717258,130245290,03-Aug-15,938.80,Revenue,NAS SERVICES LIMITED,SP0000217
WANDSWORTH COUNCIL,ASC,SOCIAL SERVICES,PRIVATE,EXTERNAL DAYCARE,717259,130245290,03-Aug-15,"2,032.04",Revenue,NAS SERVICES LIMITED,SP0000217
WANDSWORTH COUNCIL,ASC,SOCIAL SERVICES,PRIVATE,EXTERNAL DAYCARE,717260,130245290,03-Aug-15,"2,032.04",Revenue,NAS SERVICES LIMITED,SP0000217
WANDSWORTH COUNCIL,ASC,SOCIAL SERVICES,PRIVATE,EXTERNAL DAYCARE,717261,130245290,03-Aug-15,"2,032.04",Revenue,NAS SERVICES LIMITED,SP0000217
WANDSWORTH COUNCIL,ASC,SOCIAL SERVICES,PRIVATE,EXTERNAL DAYCARE,717262,130245290,03-Aug-15,"2,032.04",Revenue,NAS SERVICES LIMITED,SP0000217
WANDSWORTH COUNCIL,ASC,SOCIAL SERVICES,PRIVATE,EXTERNAL DAYCARE,720434,130245290,06-Aug-15,546.00,Revenue,PARCHMENT TRUST LTD,SP0000255
WANDSWORTH COUNCIL,ASC,SOCIAL SERVICES,PRIVATE,EXTERNAL DAYCARE,718534,130245290,04-Aug-15,806.04,Revenue,CRAEGMOOR FACILITIES CO LTD,SP0000306
WANDSWORTH COUNCIL,ASC,SOCIAL SERVICES,PRIVATE,EXTERNAL DAYCARE,725108,130245290,13-Aug-15,594.30,Revenue,SHARE COMMUNITY,SP0000329
WANDSWORTH COUNCIL,ASC,SOCIAL SERVICES,PRIVATE,EXTERNAL DAYCARE,725109,130245290,13-Aug-15,891.45,Revenue,SHARE COMMUNITY,SP0000329
WANDSWORTH COUNCIL,ASC,SOCIAL SERVICES,PRIVATE,EXTERNAL DAYCARE,725110,130245290,13-Aug-15,594.30,Revenue,SHARE COMMUNITY,SP0000329
WANDSWORTH COUNCIL,ASC,SOCIAL SERVICES,PRIVATE,EXTERNAL DAYCARE,725111,130245290,13-Aug-15,"1,188.55",Revenue,SHARE COMMUNITY,SP0000329
WANDSWORTH COUNCIL,ASC,SOCIAL SERVICES,PRIVATE,EXTERNAL DAYCARE,725112,130245290,13-Aug-15,891.45,Revenue,SHARE COMMUNITY,SP0000329
WANDSWORTH COUNCIL,ASC,SOCIAL SERVICES,PRIVATE,EXTERNAL DAYCARE,725115,130245290,13-Aug-15,891.45,Revenue,SHARE COMMUNITY,SP0000329
WANDSWORTH COUNCIL,ASC,SOCIAL SERVICES,PRIVATE,EXTERNAL DAYCARE,725116,130245290,13-Aug-15,594.30,Revenue,SHARE COMMUNITY,SP0000329
WANDSWORTH COUNCIL,ASC,SOCIAL SERVICES,PRIVATE,EXTERNAL DAYCARE,725117,130245290,13-Aug-15,"1,188.55",Revenue,SHARE COMMUNITY,SP0000329
WANDSWORTH COUNCIL,ASC,SOCIAL SERVICES,PRIVATE,EXTERNAL DAYCARE,725118,130245290,13-Aug-15,"1,188.55",Revenue,SHARE COMMUNITY,SP0000329
WANDSWORTH COUNCIL,ASC,SOCIAL SERVICES,PRIVATE,EXTERNAL DAYCARE,725119,130245290,13-Aug-15,"1,485.70",Revenue,SHARE COMMUNITY,SP0000329
WANDSWORTH COUNCIL,ASC,SOCIAL SERVICES,PRIVATE,EXTERNAL DAYCARE,725120,130245290,13-Aug-15,891.45,Revenue,SHARE COMMUNITY,SP0000329
WANDSWORTH COUNCIL,ASC,SOCIAL SERVICES,PRIVATE,EXTERNAL DAYCARE,725121,130245290,13-Aug-15,742.85,Revenue,SHARE COMMUNITY,SP0000329
WANDSWORTH COUNCIL,ASC,SOCIAL SERVICES,PRIVATE,EXTERNAL DAYCARE,725122,130245290,13-Aug-15,891.45,Revenue,SHARE COMMUNITY,SP0000329
WANDSWORTH COUNCIL,ASC,SOCIAL SERVICES,PRIVATE,EXTERNAL DAYCARE,725123,130245290,13-Aug-15,"1,188.55",Revenue,SHARE COMMUNITY,SP0000329
WANDSWORTH COUNCIL,ASC,SOCIAL SERVICES,PRIVATE,EXTERNAL DAYCARE,725126,130245290,13-Aug-15,891.45,Revenue,SHARE COMMUNITY,SP0000329
WANDSWORTH COUNCIL,ASC,SOCIAL SERVICES,PRIVATE,EXTERNAL DAYCARE,725128,130245290,13-Aug-15,742.85,Revenue,SHARE COMMUNITY,SP0000329
WANDSWORTH COUNCIL,ASC,SOCIAL SERVICES,PRIVATE,EXTERNAL DAYCARE,725129,130245290,13-Aug-15,891.45,Revenue,SHARE COMMUNITY,SP0000329
WANDSWORTH COUNCIL,ASC,SOCIAL SERVICES,PRIVATE,EXTERNAL DAYCARE,725130,130245290,13-Aug-15,891.45,Revenue,SHARE COMMUNITY,SP0000329
WANDSWORTH COUNCIL,ASC,SOCIAL SERVICES,PRIVATE,EXTERNAL DAYCARE,725131,130245290,13-Aug-15,594.30,Revenue,SHARE COMMUNITY,SP0000329
WANDSWORTH COUNCIL,ASC,SOCIAL SERVICES,PRIVATE,EXTERNAL DAYCARE,725133,130245290,13-Aug-15,891.45,Revenue,SHARE COMMUNITY,SP0000329
WANDSWORTH COUNCIL,ASC,SOCIAL SERVICES,PRIVATE,EXTERNAL DAYCARE,725134,130245290,13-Aug-15,594.30,Revenue,SHARE COMMUNITY,SP0000329
WANDSWORTH COUNCIL,ASC,SOCIAL SERVICES,PRIVATE,EXTERNAL DAYCARE,725135,130245290,13-Aug-15,594.30,Revenue,SHARE COMMUNITY,SP0000329
WANDSWORTH COUNCIL,ASC,SOCIAL SERVICES,PRIVATE,EXTERNAL DAYCARE,725138,130245290,13-Aug-15,891.45,Revenue,SHARE COMMUNITY,SP0000329
WANDSWORTH COUNCIL,ASC,SOCIAL SERVICES,PRIVATE,EXTERNAL DAYCARE,725139,130245290,13-Aug-15,891.45,Revenue,SHARE COMMUNITY,SP0000329
WANDSWORTH COUNCIL,ASC,SOCIAL SERVICES,PRIVATE,EXTERNAL DAYCARE,734546,130245290,25-Aug-15,594.30,Revenue,SHARE COMMUNITY,SP0000329
WANDSWORTH COUNCIL,ASC,SOCIAL SERVICES,PRIVATE,EXTERNAL DAYCARE,734547,130245290,25-Aug-15,891.45,Revenue,SHARE COMMUNITY,SP0000329
WANDSWORTH COUNCIL,ASC,SOCIAL SERVICES,PRIVATE,EXTERNAL DAYCARE,734549,130245290,25-Aug-15,594.40,Revenue,SHARE COMMUNITY,SP0000329
WANDSWORTH COUNCIL,ASC,SOCIAL SERVICES,PRIVATE,EXTERNAL DAYCARE,734551,130245290,25-Aug-15,594.30,Revenue,SHARE COMMUNITY,SP0000329
WANDSWORTH COUNCIL,ASC,SOCIAL SERVICES,PRIVATE,EXTERNAL DAYCARE,734552,130245290,25-Aug-15,891.45,Revenue,SHARE COMMUNITY,SP0000329
WANDSWORTH COUNCIL,ASC,SOCIAL SERVICES,PRIVATE,EXTERNAL DAYCARE,734555,130245290,25-Aug-15,891.45,Revenue,SHARE COMMUNITY,SP0000329
WANDSWORTH COUNCIL,ASC,SOCIAL SERVICES,PRIVATE,EXTERNAL DAYCARE,734556,130245290,25-Aug-15,"1,188.55",Revenue,SHARE COMMUNITY,SP0000329
WANDSWORTH COUNCIL,ASC,SOCIAL SERVICES,PRIVATE,EXTERNAL DAYCARE,734557,130245290,25-Aug-15,891.45,Revenue,SHARE COMMUNITY,SP0000329
WANDSWORTH COUNCIL,ASC,SOCIAL SERVICES,PRIVATE,EXTERNAL DAYCARE,734558,130245290,25-Aug-15,594.30,Revenue,SHARE COMMUNITY,SP0000329
WANDSWORTH COUNCIL,ASC,SOCIAL SERVICES,PRIVATE,EXTERNAL DAYCARE,734559,130245290,25-Aug-15,594.30,Revenue,SHARE COMMUNITY,SP0000329
WANDSWORTH COUNCIL,ASC,SOCIAL SERVICES,PRIVATE,EXTERNAL DAYCARE,734560,130245290,25-Aug-15,594.30,Revenue,SHARE COMMUNITY,SP0000329
WANDSWORTH COUNCIL,ASC,SOCIAL SERVICES,PRIVATE,EXTERNAL DAYCARE,734561,130245290,25-Aug-15,891.45,Revenue,SHARE COMMUNITY,SP0000329
WANDSWORTH COUNCIL,ASC,SOCIAL SERVICES,PRIVATE,EXTERNAL DAYCARE,734562,130245290,25-Aug-15,891.45,Revenue,SHARE COMMUNITY,SP0000329
WANDSWORTH COUNCIL,ASC,SOCIAL SERVICES,PRIVATE,EXTERNAL DAYCARE,734563,130245290,25-Aug-15,594.30,Revenue,SHARE COMMUNITY,SP0000329
WANDSWORTH COUNCIL,ASC,SOCIAL SERVICES,PRIVATE,EXTERNAL DAYCARE,734566,130245290,25-Aug-15,891.45,Revenue,SHARE COMMUNITY,SP0000329
WANDSWORTH COUNCIL,ASC,SOCIAL SERVICES,PRIVATE,EXTERNAL DAYCARE,734567,130245290,25-Aug-15,594.30,Revenue,SHARE COMMUNITY,SP0000329
WANDSWORTH COUNCIL,ASC,SOCIAL SERVICES,PRIVATE,EXTERNAL DAYCARE,725106,130245290,13-Aug-15,973.60,Revenue,DOLPHIN HOMES LTD,SP0000331
WANDSWORTH COUNCIL,ASC,SOCIAL SERVICES,PRIVATE,EXTERNAL DAYCARE,725107,130245290,13-Aug-15,973.60,Revenue,DOLPHIN HOMES LTD,SP0000331
WANDSWORTH COUNCIL,ASC,SOCIAL SERVICES,PRIVATE,EXTERNAL DAYCARE,718863,130245290,04-Aug-15,"2,000.16",Revenue,NORWOOD SCHOOLS LTD,SP0000332
WANDSWORTH COUNCIL,ASC,SOCIAL SERVICES,PRIVATE,EXTERNAL DAYCARE,718864,130245290,04-Aug-15,"2,055.64",Revenue,NORWOOD SCHOOLS LTD,SP0000332
WANDSWORTH COUNCIL,ASC,SOCIAL SERVICES,PRIVATE,EXTERNAL DAYCARE,718865,130245290,04-Aug-15,980.00,Revenue,THE MANOR,SP0000340
WANDSWORTH COUNCIL,ASC,SOCIAL SERVICES,PRIVATE,EXTERNAL DAYCARE,725104,130245290,13-Aug-15,"1,654.08",Revenue,VOYAGE CARE LTD,SP0000366
WANDSWORTH COUNCIL,ASC,SOCIAL SERVICES,PRIVATE,EXTERNAL DAYCARE,730721,130245290,19-Aug-15,"1,654.08",Revenue,VOYAGE CARE LTD,SP0000366
WANDSWORTH COUNCIL,ASC,SOCIAL SERVICES,PRIVATE,EXTERNAL DAYCARE,717264,130245290,03-Aug-15,"1,057.00",Revenue,ST DAVIDS CARE IN THE COMMUNITY,SP0000379
WANDSWORTH COUNCIL,ASC,SOCIAL SERVICES,PRIVATE,EXTERNAL DAYCARE,717265,130245290,03-Aug-15,"1,057.00",Revenue,ST DAVIDS CARE IN THE COMMUNITY,SP0000379
WANDSWORTH COUNCIL,ASC,SOCIAL SERVICES,PRIVATE,EXTERNAL DAYCARE,717266,130245290,03-Aug-15,"1,057.00",Revenue,ST DAVIDS CARE IN THE COMMUNITY,SP0000379
WANDSWORTH COUNCIL,ASC,SOCIAL SERVICES,PRIVATE,EXTERNAL DAYCARE,726680,130245290,14-Aug-15,760.00,Revenue,WANDSWORTH BENGALI WELFARE ASSOCIATION,SP0000479
WANDSWORTH COUNCIL,ASC,SOCIAL SERVICES,PRIVATE,EXTERNAL DAYCARE,729140,130245290,18-Aug-15,"6,360.30",Revenue,GENERATE OPPORTUNITIES LTD,SP0000503
WANDSWORTH COUNCIL,ASC,SOCIAL SERVICES,PRIVATE,EXTERNAL DAYCARE,732796,130245290,21-Aug-15,720.00,Revenue,GENERATE OPPORTUNITIES LTD,SP0000503
WANDSWORTH COUNCIL,ASC,SOCIAL SERVICES,PRIVATE,EXTERNAL DAYCARE,732797,130245290,21-Aug-15,800.00,Revenue,GENERATE OPPORTUNITIES LTD,SP0000503
WANDSWORTH COUNCIL,ASC,SOCIAL SERVICES,PRIVATE,EXTERNAL DAYCARE,732801,130245290,21-Aug-15,700.00,Revenue,GENERATE OPPORTUNITIES LTD,SP0000503
WANDSWORTH COUNCIL,ASC,SOCIAL SERVICES,PRIVATE,EXTERNAL DAYCARE,732802,130245290,21-Aug-15,600.00,Revenue,GENERATE OPPORTUNITIES LTD,SP0000503
WANDSWORTH COUNCIL,ASC,SOCIAL SERVICES,PRIVATE,EXTERNAL DAYCARE,732804,130245290,21-Aug-15,"1,000.00",Revenue,GENERATE OPPORTUNITIES LTD,SP0000503
WANDSWORTH COUNCIL,ASC,SOCIAL SERVICES,PRIVATE,EXTERNAL DAYCARE,732814,130245290,21-Aug-15,720.00,Revenue,GENERATE OPPORTUNITIES LTD,SP0000503
WANDSWORTH COUNCIL,ASC,SOCIAL SERVICES,PRIVATE,EXTERNAL DAYCARE,732820,130245290,21-Aug-15,700.00,Revenue,GENERATE OPPORTUNITIES LTD,SP0000503
WANDSWORTH COUNCIL,ASC,SOCIAL SERVICES,PRIVATE,EXTERNAL DAYCARE,732821,130245290,21-Aug-15,720.00,Revenue,GENERATE OPPORTUNITIES LTD,SP0000503
WANDSWORTH COUNCIL,ASC,SOCIAL SERVICES,PRIVATE,EXTERNAL DAYCARE,732824,130245290,21-Aug-15,"1,375.00",Revenue,GENERATE OPPORTUNITIES LTD,SP0000503
WANDSWORTH COUNCIL,ASC,SOCIAL SERVICES,PRIVATE,EXTERNAL DAYCARE,732835,130245290,21-Aug-15,600.00,Revenue,GENERATE OPPORTUNITIES LTD,SP0000503
WANDSWORTH COUNCIL,ASC,SOCIAL SERVICES,PRIVATE,EXTERNAL DAYCARE,732836,130245290,21-Aug-15,698.86,Revenue,GENERATE OPPORTUNITIES LTD,SP0000503
WANDSWORTH COUNCIL,ASC,SOCIAL SERVICES,PRIVATE,EXTERNAL DAYCARE,732837,130245290,21-Aug-15,600.00,Revenue,GENERATE OPPORTUNITIES LTD,SP0000503
WANDSWORTH COUNCIL,ASC,SOCIAL SERVICES,PRIVATE,EXTERNAL DAYCARE,732848,130245290,21-Aug-15,196.00,Revenue,GENERATE OPPORTUNITIES LTD,SP0000503
WANDSWORTH COUNCIL,ASC,SOCIAL SERVICES,PRIVATE,EXTERNAL DAYCARE,732851,130245290,21-Aug-15,350.00,Revenue,GENERATE OPPORTUNITIES LTD,SP0000503
WANDSWORTH COUNCIL,ASC,SOCIAL SERVICES,PRIVATE,EXTERNAL DAYCARE,732852,130245290,21-Aug-15,-13.15,Revenue,GENERATE OPPORTUNITIES LTD,SP0000503
WANDSWORTH COUNCIL,ASC,SOCIAL SERVICES,PRIVATE,EXTERNAL DAYCARE,729144,130245290,18-Aug-15,"1,956.10",Revenue,THE REGARD PARTNERSHIP,SP0000588
WANDSWORTH COUNCIL,ASC,SOCIAL SERVICES,PRIVATE,EXTERNAL DAYCARE,729145,130245290,18-Aug-15,"1,371.44",Revenue,THE REGARD PARTNERSHIP,SP0000588
WANDSWORTH COUNCIL,ASC,SOCIAL SERVICES,PRIVATE,EXTERNAL DAYCARE,734571,130245290,25-Aug-15,"1,956.10",Revenue,THE REGARD PARTNERSHIP,SP0000588
WANDSWORTH COUNCIL,ASC,SOCIAL SERVICES,PRIVATE,EXTERNAL DAYCARE,734572,130245290,25-Aug-15,"1,371.44",Revenue,THE REGARD PARTNERSHIP,SP0000588
WANDSWORTH COUNCIL,ASC,SOCIAL SERVICES,PRIVATE,EXTERNAL DAYCARE,730724,130245290,19-Aug-15,870.60,Revenue,ASHFIELD CARE HOMES LTD,SP0000590
WANDSWORTH COUNCIL,ASC,SOCIAL SERVICES,PRIVATE,EXTERNAL DAYCARE,725145,130245290,13-Aug-15,997.50,Revenue,DORSET SCOPE,SP0000591
WANDSWORTH COUNCIL,ASC,SOCIAL SERVICES,PRIVATE,EXTERNAL DAYCARE,718872,130245290,04-Aug-15,616.00,Revenue,THRIVE,SP0000601
WANDSWORTH COUNCIL,ASC,SOCIAL SERVICES,PRIVATE,EXTERNAL DAYCARE,721774,130245290,07-Aug-15,602.56,Revenue,HIGH HURLANDS HOMES,SP0000668
WANDSWORTH COUNCIL,ASC,SOCIAL SERVICES,PRIVATE,EXTERNAL DAYCARE,726678,130245290,14-Aug-15,602.56,Revenue,HIGH HURLANDS HOMES,SP0000668
WANDSWORTH COUNCIL,ASC,SOCIAL SERVICES,PRIVATE,EXTERNAL DAYCARE,721778,130245290,07-Aug-15,812.00,Revenue,CREST COOPERATIVE LTD,SP0000683
WANDSWORTH COUNCIL,ASC,SOCIAL SERVICES,PRIVATE,EXTERNAL DAYCARE,729142,130245290,18-Aug-15,"1,057.00",Revenue,THE MANOR HOUSE,SP0000728
WANDSWORTH COUNCIL,ASC,SOCIAL SERVICES,PRIVATE,EXTERNAL DAYCARE,717255,130245290,03-Aug-15,"1,149.33",Revenue,ANTHONY TOBY HOMES TRUST,SP0000755
WANDSWORTH COUNCIL,ASC,SOCIAL SERVICES,PRIVATE,EXTERNAL DAYCARE,735334,130245290,26-Aug-15,"1,149.33",Revenue,ANTHONY TOBY HOMES TRUST,SP0000755
WANDSWORTH COUNCIL,ASC,SOCIAL SERVICES,PRIVATE,EXTERNAL DAYCARE,725056,130245290,13-Aug-15,527.36,Revenue,UNITED RESPONSE,SP0000797
WANDSWORTH COUNCIL,ASC,SOCIAL SERVICES,PRIVATE,EXTERNAL DAYCARE,725105,130245290,13-Aug-15,540.00,Revenue,PROSPECTS,SP0000800
WANDSWORTH COUNCIL,ASC,SOCIAL SERVICES,PRIVATE,EXTERNAL DAYCARE,735981,130245290,26-Aug-15,515.52,Revenue,MENCAP OPEN DOOR,SP0000832
WANDSWORTH COUNCIL,ASC,SOCIAL SERVICES,PRIVATE,EXTERNAL DAYCARE,736033,130245290,26-Aug-15,504.80,Revenue,MENCAP OPEN DOOR,SP0000832
WANDSWORTH COUNCIL,ASC,SOCIAL SERVICES,PRIVATE,EXTERNAL DAYCARE,730810,130245290,19-Aug-15,"1,586.84",Revenue,STALLCOMBE HOUSE,SP0000843
WANDSWORTH COUNCIL,ASC,SOCIAL SERVICES,PRIVATE,EXTERNAL DAYCARE,730811,130245290,19-Aug-15,"1,586.84",Revenue,STALLCOMBE HOUSE,SP0000843
WANDSWORTH COUNCIL,ASC,SOCIAL SERVICES,PRIVATE,EXTERNAL DAYCARE,720418,130245290,06-Aug-15,833.52,Revenue,SCOPE,SP0000852
WANDSWORTH COUNCIL,ASC,SOCIAL SERVICES,PRIVATE,EXTERNAL DAYCARE,721771,130245290,07-Aug-15,814.03,Revenue,SCOPE,SP0000852
WANDSWORTH COUNCIL,ASC,SOCIAL SERVICES,PRIVATE,EXTERNAL DAYCARE,735337,130245290,26-Aug-15,814.03,Revenue,SCOPE,SP0000852
WANDSWORTH COUNCIL,ASC,SOCIAL SERVICES,PRIVATE,EXTERNAL DAYCARE,735338,130245290,26-Aug-15,814.03,Revenue,SCOPE,SP0000852
WANDSWORTH COUNCIL,ASC,SOCIAL SERVICES,PRIVATE,EXTERNAL DAYCARE,730725,130245290,19-Aug-15,738.72,Revenue,ACT TOO LTD,SP0000855
WANDSWORTH COUNCIL,ASC,SOCIAL SERVICES,PRIVATE,EXTERNAL DAYCARE,730728,130245290,19-Aug-15,738.72,Revenue,ACT TOO LTD,SP0000855
WANDSWORTH COUNCIL,ASC,SOCIAL SERVICES,PRIVATE,EXTERNAL DAYCARE,730729,130245290,19-Aug-15,738.72,Revenue,ACT TOO LTD,SP0000855
WANDSWORTH COUNCIL,ASC,SOCIAL SERVICES,PRIVATE,EXTERNAL DAYCARE,730734,130245290,19-Aug-15,923.40,Revenue,ACT TOO LTD,SP0000855
WANDSWORTH COUNCIL,ASC,SOCIAL SERVICES,PRIVATE,EXTERNAL DAYCARE,730737,130245290,19-Aug-15,738.72,Revenue,ACT TOO LTD,SP0000855
WANDSWORTH COUNCIL,ASC,SOCIAL SERVICES,PRIVATE,EXTERNAL DAYCARE,730739,130245290,19-Aug-15,738.72,Revenue,ACT TOO LTD,SP0000855
WANDSWORTH COUNCIL,ASC,SOCIAL SERVICES,PRIVATE,EXTERNAL DAYCARE,730740,130245290,19-Aug-15,554.04,Revenue,ACT TOO LTD,SP0000855
WANDSWORTH COUNCIL,ASC,SOCIAL SERVICES,PRIVATE,EXTERNAL DAYCARE,730743,130245290,19-Aug-15,554.04,Revenue,ACT TOO LTD,SP0000855
WANDSWORTH COUNCIL,ASC,SOCIAL SERVICES,PRIVATE,EXTERNAL DAYCARE,730744,130245290,19-Aug-15,554.04,Revenue,ACT TOO LTD,SP0000855
WANDSWORTH COUNCIL,ASC,SOCIAL SERVICES,PRIVATE,EXTERNAL DAYCARE,730745,130245290,19-Aug-15,554.04,Revenue,ACT TOO LTD,SP0000855
WANDSWORTH COUNCIL,ASC,SOCIAL SERVICES,PRIVATE,EXTERNAL DAYCARE,730746,130245290,19-Aug-15,554.04,Revenue,ACT TOO LTD,SP0000855
WANDSWORTH COUNCIL,ASC,SOCIAL SERVICES,PRIVATE,EXTERNAL DAYCARE,730747,130245290,19-Aug-15,"1,108.08",Revenue,ACT TOO LTD,SP0000855
WANDSWORTH COUNCIL,ASC,SOCIAL SERVICES,PRIVATE,EXTERNAL DAYCARE,730749,130245290,19-Aug-15,738.72,Revenue,ACT TOO LTD,SP0000855
WANDSWORTH COUNCIL,ASC,SOCIAL SERVICES,PRIVATE,EXTERNAL DAYCARE,730750,130245290,19-Aug-15,738.72,Revenue,ACT TOO LTD,SP0000855
WANDSWORTH COUNCIL,ASC,SOCIAL SERVICES,PRIVATE,EXTERNAL DAYCARE,730751,130245290,19-Aug-15,554.04,Revenue,ACT TOO LTD,SP0000855
WANDSWORTH COUNCIL,ASC,SOCIAL SERVICES,PRIVATE,EXTERNAL DAYCARE,730755,130245290,19-Aug-15,554.04,Revenue,ACT TOO LTD,SP0000855
WANDSWORTH COUNCIL,ASC,SOCIAL SERVICES,PRIVATE,EXTERNAL DAYCARE,730758,130245290,19-Aug-15,554.04,Revenue,ACT TOO LTD,SP0000855
WANDSWORTH COUNCIL,ASC,SOCIAL SERVICES,PRIVATE,EXTERNAL DAYCARE,730759,130245290,19-Aug-15,554.04,Revenue,ACT TOO LTD,SP0000855
WANDSWORTH COUNCIL,ASC,SOCIAL SERVICES,PRIVATE,EXTERNAL DAYCARE,730761,130245290,19-Aug-15,554.04,Revenue,ACT TOO LTD,SP0000855
WANDSWORTH COUNCIL,ASC,SOCIAL SERVICES,PRIVATE,EXTERNAL DAYCARE,730765,130245290,19-Aug-15,923.40,Revenue,ACT TOO LTD,SP0000855
WANDSWORTH COUNCIL,ASC,SOCIAL SERVICES,PRIVATE,EXTERNAL DAYCARE,730766,130245290,19-Aug-15,554.04,Revenue,ACT TOO LTD,SP0000855
WANDSWORTH COUNCIL,ASC,SOCIAL SERVICES,PRIVATE,EXTERNAL DAYCARE,730772,130245290,19-Aug-15,923.40,Revenue,ACT TOO LTD,SP0000855
WANDSWORTH COUNCIL,ASC,SOCIAL SERVICES,PRIVATE,EXTERNAL DAYCARE,730774,130245290,19-Aug-15,554.04,Revenue,ACT TOO LTD,SP0000855
WANDSWORTH COUNCIL,ASC,SOCIAL SERVICES,PRIVATE,EXTERNAL DAYCARE,730777,130245290,19-Aug-15,923.40,Revenue,ACT TOO LTD,SP0000855
WANDSWORTH COUNCIL,ASC,SOCIAL SERVICES,PRIVATE,EXTERNAL DAYCARE,730778,130245290,19-Aug-15,554.04,Revenue,ACT TOO LTD,SP0000855
WANDSWORTH COUNCIL,ASC,SOCIAL SERVICES,PRIVATE,EXTERNAL DAYCARE,730779,130245290,19-Aug-15,"1,108.08",Revenue,ACT TOO LTD,SP0000855
WANDSWORTH COUNCIL,ASC,SOCIAL SERVICES,PRIVATE,EXTERNAL DAYCARE,730780,130245290,19-Aug-15,738.72,Revenue,ACT TOO LTD,SP0000855
WANDSWORTH COUNCIL,ASC,SOCIAL SERVICES,PRIVATE,EXTERNAL DAYCARE,730784,130245290,19-Aug-15,554.04,Revenue,ACT TOO LTD,SP0000855
WANDSWORTH COUNCIL,ASC,SOCIAL SERVICES,PRIVATE,EXTERNAL DAYCARE,730785,130245290,19-Aug-15,554.04,Revenue,ACT TOO LTD,SP0000855
WANDSWORTH COUNCIL,ASC,SOCIAL SERVICES,PRIVATE,EXTERNAL DAYCARE,730789,130245290,19-Aug-15,554.04,Revenue,ACT TOO LTD,SP0000855
WANDSWORTH COUNCIL,ASC,SOCIAL SERVICES,PRIVATE,EXTERNAL DAYCARE,730796,130245290,19-Aug-15,738.72,Revenue,ACT TOO LTD,SP0000855
WANDSWORTH COUNCIL,ASC,SOCIAL SERVICES,PRIVATE,EXTERNAL DAYCARE,730799,130245290,19-Aug-15,554.04,Revenue,ACT TOO LTD,SP0000855
WANDSWORTH COUNCIL,ASC,SOCIAL SERVICES,PRIVATE,EXTERNAL DAYCARE,738766,130245290,28-Aug-15,"1,416.24",Revenue,WINSLOW COURT,SP0000886
WANDSWORTH COUNCIL,ASC,SOCIAL SERVICES,PRIVATE,EXTERNAL DAYCARE,738767,130245290,28-Aug-15,"1,416.24",Revenue,WINSLOW COURT,SP0000886
WANDSWORTH COUNCIL,ASC,SOCIAL SERVICES,PRIVATE,EXTERNAL DAYCARE,721775,130245290,07-Aug-15,797.47,Revenue,ORIONE CARE,SP0000961
WANDSWORTH COUNCIL,ASC,SOCIAL SERVICES,PRIVATE,EXTERNAL DAYCARE,721777,130245290,07-Aug-15,609.83,Revenue,ORIONE CARE,SP0000961
WANDSWORTH COUNCIL,ASC,SOCIAL SERVICES,PRIVATE,EXTERNAL DAYCARE,734568,130245290,25-Aug-15,891.29,Revenue,ORIONE CARE,SP0000961
WANDSWORTH COUNCIL,ASC,SOCIAL SERVICES,PRIVATE,EXTERNAL DAYCARE,734570,130245290,25-Aug-15,656.74,Revenue,ORIONE CARE,SP0000961
WANDSWORTH COUNCIL,ASC,SOCIAL SERVICES,PRIVATE,EXTERNAL DAYCARE,728846,130245290,18-Aug-15,"1,138.40",Revenue,RIDGEWOOD CARE SERVICES LTD,SP0000969
WANDSWORTH COUNCIL,ASC,SOCIAL SERVICES,PRIVATE,EXTERNAL DAYCARE,735324,130245290,26-Aug-15,"1,200.00",Revenue,RIDGEWOOD CARE SERVICES LTD,SP0000969
WANDSWORTH COUNCIL,ASC,SOCIAL SERVICES,PRIVATE,EXTERNAL DAYCARE,718531,130245290,04-Aug-15,"1,044.40",Revenue,SCOPE,SP0000991
WANDSWORTH COUNCIL,ASC,SOCIAL SERVICES,PRIVATE,EXTERNAL DAYCARE,718532,130245290,04-Aug-15,746.00,Revenue,SCOPE,SP0000991
WANDSWORTH COUNCIL,ASC,SOCIAL SERVICES,PRIVATE,EXTERNAL DAYCARE,725153,130245290,13-Aug-15,895.20,Revenue,SCOPE,SP0000991
WANDSWORTH COUNCIL,ASC,SOCIAL SERVICES,PRIVATE,EXTERNAL DAYCARE,725154,130245290,13-Aug-15,596.80,Revenue,SCOPE,SP0000991
WANDSWORTH COUNCIL,ASC,SOCIAL SERVICES,PRIVATE,EXTERNAL DAYCARE,730565,130245290,19-Aug-15,"1,273.00",Revenue,SUSSEX HEALTH CARE,SP0001115
WANDSWORTH COUNCIL,ASC,SOCIAL SERVICES,PRIVATE,EXTERNAL DAYCARE,730594,130245290,19-Aug-15,"1,551.24",Revenue,LONDON CARE PARTNERSHIP LTD,SP0001138
WANDSWORTH COUNCIL,ASC,SOCIAL SERVICES,PRIVATE,EXTERNAL DAYCARE,725148,130245290,13-Aug-15,869.40,Revenue,HARROW MENCAP,SP0001347
WANDSWORTH COUNCIL,ASC,SOCIAL SERVICES,PRIVATE,EXTERNAL DAYCARE,728851,130245290,18-Aug-15,563.04,Revenue,WORKSHOP 305,SP0001403
WANDSWORTH COUNCIL,ASC,SOCIAL SERVICES,PRIVATE,EXTERNAL DAYCARE,728852,130245290,18-Aug-15,"1,126.08",Revenue,WORKSHOP 305,SP0001403
WANDSWORTH COUNCIL,ASC,SOCIAL SERVICES,PRIVATE,EXTERNAL DAYCARE,728859,130245290,18-Aug-15,962.88,Revenue,WORKSHOP 305,SP0001403
WANDSWORTH COUNCIL,ASC,SOCIAL SERVICES,PRIVATE,EXTERNAL DAYCARE,728862,130245290,18-Aug-15,722.16,Revenue,WORKSHOP 305,SP0001403
WANDSWORTH COUNCIL,ASC,SOCIAL SERVICES,PRIVATE,EXTERNAL DAYCARE,728868,130245290,18-Aug-15,844.56,Revenue,WORKSHOP 305,SP0001403
WANDSWORTH COUNCIL,ASC,SOCIAL SERVICES,PRIVATE,EXTERNAL DAYCARE,728869,130245290,18-Aug-15,722.16,Revenue,WORKSHOP 305,SP0001403
WANDSWORTH COUNCIL,ASC,SOCIAL SERVICES,PRIVATE,EXTERNAL DAYCARE,728875,130245290,18-Aug-15,563.04,Revenue,WORKSHOP 305,SP0001403
WANDSWORTH COUNCIL,ASC,SOCIAL SERVICES,PRIVATE,EXTERNAL DAYCARE,728876,130245290,18-Aug-15,722.16,Revenue,WORKSHOP 305,SP0001403
WANDSWORTH COUNCIL,ASC,SOCIAL SERVICES,PRIVATE,EXTERNAL DAYCARE,728877,130245290,18-Aug-15,722.16,Revenue,WORKSHOP 305,SP0001403
WANDSWORTH COUNCIL,ASC,SOCIAL SERVICES,PRIVATE,EXTERNAL DAYCARE,728888,130245290,18-Aug-15,962.88,Revenue,WORKSHOP 305,SP0001403
WANDSWORTH COUNCIL,ASC,SOCIAL SERVICES,PRIVATE,EXTERNAL DAYCARE,735986,130245290,26-Aug-15,563.04,Revenue,WORKSHOP 305,SP0001403
WANDSWORTH COUNCIL,ASC,SOCIAL SERVICES,PRIVATE,EXTERNAL DAYCARE,735987,130245290,26-Aug-15,563.04,Revenue,WORKSHOP 305,SP0001403
WANDSWORTH COUNCIL,ASC,SOCIAL SERVICES,PRIVATE,EXTERNAL DAYCARE,738785,130245290,28-Aug-15,563.04,Revenue,WORKSHOP 305,SP0001403
WANDSWORTH COUNCIL,ASC,SOCIAL SERVICES,PRIVATE,EXTERNAL DAYCARE,738786,130245290,28-Aug-15,"1,126.08",Revenue,WORKSHOP 305,SP0001403
WANDSWORTH COUNCIL,ASC,SOCIAL SERVICES,PRIVATE,EXTERNAL DAYCARE,738793,130245290,28-Aug-15,962.88,Revenue,WORKSHOP 305,SP0001403
WANDSWORTH COUNCIL,ASC,SOCIAL SERVICES,PRIVATE,EXTERNAL DAYCARE,738797,130245290,28-Aug-15,722.16,Revenue,WORKSHOP 305,SP0001403
WANDSWORTH COUNCIL,ASC,SOCIAL SERVICES,PRIVATE,EXTERNAL DAYCARE,738803,130245290,28-Aug-15,844.56,Revenue,WORKSHOP 305,SP0001403
WANDSWORTH COUNCIL,ASC,SOCIAL SERVICES,PRIVATE,EXTERNAL DAYCARE,738804,130245290,28-Aug-15,722.16,Revenue,WORKSHOP 305,SP0001403
WANDSWORTH COUNCIL,ASC,SOCIAL SERVICES,PRIVATE,EXTERNAL DAYCARE,738807,130245290,28-Aug-15,661.98,Revenue,WORKSHOP 305,SP0001403
WANDSWORTH COUNCIL,ASC,SOCIAL SERVICES,PRIVATE,EXTERNAL DAYCARE,738810,130245290,28-Aug-15,563.04,Revenue,WORKSHOP 305,SP0001403
WANDSWORTH COUNCIL,ASC,SOCIAL SERVICES,PRIVATE,EXTERNAL DAYCARE,738811,130245290,28-Aug-15,722.16,Revenue,WORKSHOP 305,SP0001403
WANDSWORTH COUNCIL,ASC,SOCIAL SERVICES,PRIVATE,EXTERNAL DAYCARE,738812,130245290,28-Aug-15,722.16,Revenue,WORKSHOP 305,SP0001403
WANDSWORTH COUNCIL,ASC,SOCIAL SERVICES,PRIVATE,EXTERNAL DAYCARE,738817,130245290,28-Aug-15,563.04,Revenue,WORKSHOP 305,SP0001403
WANDSWORTH COUNCIL,ASC,SOCIAL SERVICES,PRIVATE,EXTERNAL DAYCARE,738824,130245290,28-Aug-15,962.88,Revenue,WORKSHOP 305,SP0001403
WANDSWORTH COUNCIL,ASC,SOCIAL SERVICES,PRIVATE,EXTERNAL DAYCARE,725097,130245290,13-Aug-15,650.00,Revenue,THE CAMDEN SOCIETY,SP0001674
WANDSWORTH COUNCIL,ASC,SOCIAL SERVICES,PRIVATE,EXTERNAL DAYCARE,725098,130245290,13-Aug-15,650.00,Revenue,THE CAMDEN SOCIETY,SP0001674
WANDSWORTH COUNCIL,ASC,SOCIAL SERVICES,PRIVATE,EXTERNAL DAYCARE,725099,130245290,13-Aug-15,650.00,Revenue,THE CAMDEN SOCIETY,SP0001674
WANDSWORTH COUNCIL,ASC,SOCIAL SERVICES,PRIVATE,EXTERNAL DAYCARE,725100,130245290,13-Aug-15,650.00,Revenue,THE CAMDEN SOCIETY,SP0001674
WANDSWORTH COUNCIL,ASC,SOCIAL SERVICES,PRIVATE,EXTERNAL DAYCARE,725101,130245290,13-Aug-15,650.00,Revenue,THE CAMDEN SOCIETY,SP0001674
WANDSWORTH COUNCIL,ASC,SOCIAL SERVICES,PRIVATE,EXTERNAL DAYCARE,734575,130245290,25-Aug-15,550.00,Revenue,KENT COUNTY COUNCIL (KCC),SP0002270
WANDSWORTH COUNCIL,ASC,SOCIAL SERVICES,PRIVATE,EXTERNAL DAYCARE,721773,130245290,07-Aug-15,453.87,Revenue,LUCKETTS FARM LIMNITED T/A THE JOHN GRAH,SP0009847
WANDSWORTH COUNCIL,ASC,SOCIAL SERVICES,PRIVATE,EXTERNAL HOMECARE,732783,130245300,21-Aug-15,735.45,Revenue,ASIAN ELDERS SUPPORT SCHEME,SP0000190
WANDSWORTH COUNCIL,ASC,SOCIAL SERVICES,PRIVATE,EXTERNAL HOMECARE,730633,130245300,19-Aug-15,627.44,Revenue,MUSHKIL AASAAN LTD,SP0000978
WANDSWORTH COUNCIL,ASC,SOCIAL SERVICES,PRIVATE,EXTERNAL HOMECARE,730700,130245300,19-Aug-15,780.02,Revenue,MUSHKIL AASAAN LTD,SP0000978
WANDSWORTH COUNCIL,ASC,SOCIAL SERVICES,PRIVATE,EXTERNAL HOMECARE,721762,130245300,07-Aug-15,638.98,Revenue,SOMA HEALTHCARE LTD,SP0001116
WANDSWORTH COUNCIL,ASC,SOCIAL SERVICES,PRIVATE,EXTERNAL HOMECARE,733908,130245300,24-Aug-15,"3,232.00",Revenue,CHRISTIES CARE LTD,SP0005440
WANDSWORTH COUNCIL,ASC,SOCIAL SERVICES,PRIVATE,EXTERNAL HOMECARE,721535,130245300,07-Aug-15,"2,001.99",Revenue,LONDON HOMECARE LTD,SP0009029
WANDSWORTH COUNCIL,ASC,SOCIAL SERVICES,PRIVATE,EXTERNAL HOMECARE,721543,130245300,07-Aug-15,"1,658.94",Revenue,LONDON HOMECARE LTD,SP0009029
WANDSWORTH COUNCIL,ASC,SOCIAL SERVICES,PRIVATE,EXTERNAL HOMECARE,721568,130245300,07-Aug-15,718.16,Revenue,LONDON HOMECARE LTD,SP0009029
WANDSWORTH COUNCIL,ASC,SOCIAL SERVICES,PRIVATE,EXTERNAL HOMECARE,721618,130245300,07-Aug-15,639.35,Revenue,LONDON HOMECARE LTD,SP0009029
WANDSWORTH COUNCIL,ASC,SOCIAL SERVICES,PRIVATE,EXTERNAL HOMECARE,721669,130245300,07-Aug-15,719.78,Revenue,LONDON HOMECARE LTD,SP0009029
WANDSWORTH COUNCIL,ASC,SOCIAL SERVICES,PRIVATE,EXTERNAL HOMECARE,738741,130245300,28-Aug-15,612.41,Revenue,LONDON HOMECARE LTD,SP0009029
WANDSWORTH COUNCIL,ASC,SOCIAL SERVICES,PRIVATE,EXTERNAL HOMECARE,738742,130245300,28-Aug-15,612.41,Revenue,LONDON HOMECARE LTD,SP0009029
WANDSWORTH COUNCIL,ASC,SOCIAL SERVICES,PRIVATE,EXTERNAL NURSING CARE,728827,130245310,18-Aug-15,"6,111.24",Revenue,WINGHAM COURT,SP0000025
WANDSWORTH COUNCIL,ASC,SOCIAL SERVICES,PRIVATE,EXTERNAL NURSING CARE,728787,130245310,18-Aug-15,"4,181.88",Revenue,VOYAGE CARE LTD,SP0000366
WANDSWORTH COUNCIL,ASC,SOCIAL SERVICES,PRIVATE,EXTERNAL NURSING CARE,728788,130245310,18-Aug-15,"4,181.88",Revenue,VOYAGE CARE LTD,SP0000366
WANDSWORTH COUNCIL,ASC,SOCIAL SERVICES,PRIVATE,EXTERNAL NURSING CARE,728789,130245310,18-Aug-15,"4,181.88",Revenue,VOYAGE CARE LTD,SP0000366
WANDSWORTH COUNCIL,ASC,SOCIAL SERVICES,PRIVATE,EXTERNAL NURSING CARE,729104,130245310,18-Aug-15,"7,889.72",Revenue,VOYAGE CARE LTD,SP0000366
WANDSWORTH COUNCIL,ASC,SOCIAL SERVICES,PRIVATE,EXTERNAL NURSING CARE,732747,130245310,21-Aug-15,"3,065.88",Revenue,YEW TREE NURSING HOME,SP0000454
WANDSWORTH COUNCIL,ASC,SOCIAL SERVICES,PRIVATE,EXTERNAL NURSING CARE,738730,130245310,28-Aug-15,"3,065.88",Revenue,YEW TREE NURSING HOME,SP0000454
WANDSWORTH COUNCIL,ASC,SOCIAL SERVICES,PRIVATE,EXTERNAL NURSING CARE,728816,130245310,18-Aug-15,"14,185.99",Revenue,THE COMMUNITY CARE COMPANY UK LTD,SP0000576
WANDSWORTH COUNCIL,ASC,SOCIAL SERVICES,PRIVATE,EXTERNAL NURSING CARE,726801,130245310,14-Aug-15,"2,815.48",Revenue,TRINITY COURT NURSING HOME,SP0001001
WANDSWORTH COUNCIL,ASC,SOCIAL SERVICES,PRIVATE,EXTERNAL NURSING CARE,730573,130245310,19-Aug-15,"8,454.90",Revenue,SUSSEX HEALTH CARE,SP0001115
WANDSWORTH COUNCIL,ASC,SOCIAL SERVICES,PRIVATE,EXTERNAL NURSING CARE,726826,130245310,14-Aug-15,"2,675.12",Revenue,YORK COURT CARE HOME,SP0006091
WANDSWORTH COUNCIL,ASC,SOCIAL SERVICES,PRIVATE,EXTERNAL RESIDENTIAL CARE,723022,130245330,12-Aug-15,"26,672.81",Revenue,REDACTED PERSONAL DATA,RG0000001
WANDSWORTH COUNCIL,ASC,SOCIAL SERVICES,PRIVATE,EXTERNAL RESIDENTIAL CARE,726606,130245330,14-Aug-15,"5,632.12",Revenue,CMG HOMES LTD,SP0000075
WANDSWORTH COUNCIL,ASC,SOCIAL SERVICES,PRIVATE,EXTERNAL RESIDENTIAL CARE,726607,130245330,14-Aug-15,"6,007.12",Revenue,CMG HOMES LTD,SP0000075
WANDSWORTH COUNCIL,ASC,SOCIAL SERVICES,PRIVATE,EXTERNAL RESIDENTIAL CARE,726608,130245330,14-Aug-15,"5,553.00",Revenue,CMG HOMES LTD,SP0000075
WANDSWORTH COUNCIL,ASC,SOCIAL SERVICES,PRIVATE,EXTERNAL RESIDENTIAL CARE,726609,130245330,14-Aug-15,"4,230.66",Revenue,CMG HOMES LTD,SP0000075
WANDSWORTH COUNCIL,ASC,SOCIAL SERVICES,PRIVATE,EXTERNAL RESIDENTIAL CARE,726610,130245330,14-Aug-15,"3,880.00",Revenue,CMG HOMES LTD,SP0000075
WANDSWORTH COUNCIL,ASC,SOCIAL SERVICES,PRIVATE,EXTERNAL RESIDENTIAL CARE,726611,130245330,14-Aug-15,"8,061.00",Revenue,CMG HOMES LTD,SP0000075
WANDSWORTH COUNCIL,ASC,SOCIAL SERVICES,PRIVATE,EXTERNAL RESIDENTIAL CARE,726612,130245330,14-Aug-15,"4,866.36",Revenue,CMG HOMES LTD,SP0000075
WANDSWORTH COUNCIL,ASC,SOCIAL SERVICES,PRIVATE,EXTERNAL RESIDENTIAL CARE,726613,130245330,14-Aug-15,"4,646.00",Revenue,CMG HOMES LTD,SP0000075
WANDSWORTH COUNCIL,ASC,SOCIAL SERVICES,PRIVATE,EXTERNAL RESIDENTIAL CARE,726614,130245330,14-Aug-15,"4,415.60",Revenue,CMG HOMES LTD,SP0000075
WANDSWORTH COUNCIL,ASC,SOCIAL SERVICES,PRIVATE,EXTERNAL RESIDENTIAL CARE,729084,130245330,18-Aug-15,"5,632.12",Revenue,CMG HOMES LTD,SP0000075
WANDSWORTH COUNCIL,ASC,SOCIAL SERVICES,PRIVATE,EXTERNAL RESIDENTIAL CARE,729085,130245330,18-Aug-15,"1,489.97",Revenue,CMG HOMES LTD,SP0000075
WANDSWORTH COUNCIL,ASC,SOCIAL SERVICES,PRIVATE,EXTERNAL RESIDENTIAL CARE,729086,130245330,18-Aug-15,"6,007.12",Revenue,CMG HOMES LTD,SP0000075
WANDSWORTH COUNCIL,ASC,SOCIAL SERVICES,PRIVATE,EXTERNAL RESIDENTIAL CARE,729087,130245330,18-Aug-15,"5,553.00",Revenue,CMG HOMES LTD,SP0000075
WANDSWORTH COUNCIL,ASC,SOCIAL SERVICES,PRIVATE,EXTERNAL RESIDENTIAL CARE,729088,130245330,18-Aug-15,"4,258.94",Revenue,CMG HOMES LTD,SP0000075
WANDSWORTH COUNCIL,ASC,SOCIAL SERVICES,PRIVATE,EXTERNAL RESIDENTIAL CARE,729089,130245330,18-Aug-15,"4,866.36",Revenue,CMG HOMES LTD,SP0000075
WANDSWORTH COUNCIL,ASC,SOCIAL SERVICES,PRIVATE,EXTERNAL RESIDENTIAL CARE,729090,130245330,18-Aug-15,"4,646.00",Revenue,CMG HOMES LTD,SP0000075
WANDSWORTH COUNCIL,ASC,SOCIAL SERVICES,PRIVATE,EXTERNAL RESIDENTIAL CARE,729093,130245330,18-Aug-15,"7,094.29",Revenue,CMG HOMES LTD,SP0000075
WANDSWORTH COUNCIL,ASC,SOCIAL SERVICES,PRIVATE,EXTERNAL RESIDENTIAL CARE,729097,130245330,18-Aug-15,"4,415.60",Revenue,CMG HOMES LTD,SP0000075
WANDSWORTH COUNCIL,ASC,SOCIAL SERVICES,PRIVATE,EXTERNAL RESIDENTIAL CARE,734515,130245330,25-Aug-15,"2,378.60",Revenue,CMG HOMES LTD,SP0000075
WANDSWORTH COUNCIL,ASC,SOCIAL SERVICES,PRIVATE,EXTERNAL RESIDENTIAL CARE,734516,130245330,25-Aug-15,"3,917.68",Revenue,CMG HOMES LTD,SP0000075
WANDSWORTH COUNCIL,ASC,SOCIAL SERVICES,PRIVATE,EXTERNAL RESIDENTIAL CARE,734517,130245330,25-Aug-15,"3,880.00",Revenue,CMG HOMES LTD,SP0000075
WANDSWORTH COUNCIL,ASC,SOCIAL SERVICES,PRIVATE,EXTERNAL RESIDENTIAL CARE,734518,130245330,25-Aug-15,"8,061.00",Revenue,CMG HOMES LTD,SP0000075
WANDSWORTH COUNCIL,ASC,SOCIAL SERVICES,PRIVATE,EXTERNAL RESIDENTIAL CARE,734519,130245330,25-Aug-15,"7,132.84",Revenue,CMG HOMES LTD,SP0000075
WANDSWORTH COUNCIL,ASC,SOCIAL SERVICES,PRIVATE,EXTERNAL RESIDENTIAL CARE,728798,130245330,18-Aug-15,"3,449.46",Revenue,COUNTRY CARE,SP0000090
WANDSWORTH COUNCIL,ASC,SOCIAL SERVICES,PRIVATE,EXTERNAL RESIDENTIAL CARE,730553,130245330,19-Aug-15,"6,642.86",Revenue,NATIONAL SOCIETY FOR EPILEPSY,SP0000120
WANDSWORTH COUNCIL,ASC,SOCIAL SERVICES,PRIVATE,EXTERNAL RESIDENTIAL CARE,726837,130245330,14-Aug-15,"2,162.32",Revenue,SANCTUARY CARE LTD,SP0000121
WANDSWORTH COUNCIL,ASC,SOCIAL SERVICES,PRIVATE,EXTERNAL RESIDENTIAL CARE,733629,130245330,24-Aug-15,"3,975.08",Revenue,CENTRUST CARE HOMES LTD,SP0000141
WANDSWORTH COUNCIL,ASC,SOCIAL SERVICES,PRIVATE,EXTERNAL RESIDENTIAL CARE,717208,130245330,03-Aug-15,"4,343.46",Revenue,FRANCES TAYLOR FOUNDATION,SP0000142
WANDSWORTH COUNCIL,ASC,SOCIAL SERVICES,PRIVATE,EXTERNAL RESIDENTIAL CARE,717209,130245330,03-Aug-15,"4,203.35",Revenue,FRANCES TAYLOR FOUNDATION,SP0000142
WANDSWORTH COUNCIL,ASC,SOCIAL SERVICES,PRIVATE,EXTERNAL RESIDENTIAL CARE,717213,130245330,03-Aug-15,"4,835.90",Revenue,FRANCES TAYLOR FOUNDATION,SP0000142
WANDSWORTH COUNCIL,ASC,SOCIAL SERVICES,PRIVATE,EXTERNAL RESIDENTIAL CARE,717214,130245330,03-Aug-15,"4,343.45",Revenue,FRANCES TAYLOR FOUNDATION,SP0000142
WANDSWORTH COUNCIL,ASC,SOCIAL SERVICES,PRIVATE,EXTERNAL RESIDENTIAL CARE,717215,130245330,03-Aug-15,"4,191.15",Revenue,FRANCES TAYLOR FOUNDATION,SP0000142
WANDSWORTH COUNCIL,ASC,SOCIAL SERVICES,PRIVATE,EXTERNAL RESIDENTIAL CARE,717216,130245330,03-Aug-15,"4,259.13",Revenue,FRANCES TAYLOR FOUNDATION,SP0000142
WANDSWORTH COUNCIL,ASC,SOCIAL SERVICES,PRIVATE,EXTERNAL RESIDENTIAL CARE,728804,130245330,18-Aug-15,"9,223.48",Revenue,THE MAPLES,SP0000154
WANDSWORTH COUNCIL,ASC,SOCIAL SERVICES,PRIVATE,EXTERNAL RESIDENTIAL CARE,733628,130245330,24-Aug-15,"9,315.59",Revenue,TANGLEWOOD CARE HOME,SP0000167
WANDSWORTH COUNCIL,ASC,SOCIAL SERVICES,PRIVATE,EXTERNAL RESIDENTIAL CARE,730587,130245330,19-Aug-15,"4,520.06",Revenue,THE CHESTNUTS,SP0000182
WANDSWORTH COUNCIL,ASC,SOCIAL SERVICES,PRIVATE,EXTERNAL RESIDENTIAL CARE,730588,130245330,19-Aug-15,"5,555.20",Revenue,THE CHESTNUTS,SP0000182
WANDSWORTH COUNCIL,ASC,SOCIAL SERVICES,PRIVATE,EXTERNAL RESIDENTIAL CARE,733610,130245330,24-Aug-15,"31,774.60",Revenue,TRELOAR SCHOOL,SP0000200
WANDSWORTH COUNCIL,ASC,SOCIAL SERVICES,PRIVATE,EXTERNAL RESIDENTIAL CARE,717202,130245330,03-Aug-15,"1,647.40",Revenue,ORCHARD VALE TRUST,SP0000214
WANDSWORTH COUNCIL,ASC,SOCIAL SERVICES,PRIVATE,EXTERNAL RESIDENTIAL CARE,732752,130245330,21-Aug-15,"1,647.40",Revenue,ORCHARD VALE TRUST,SP0000214
WANDSWORTH COUNCIL,ASC,SOCIAL SERVICES,PRIVATE,EXTERNAL RESIDENTIAL CARE,717205,130245330,03-Aug-15,"3,393.85",Revenue,ST MARYS RESIDENTIAL HOME,SP0000215
WANDSWORTH COUNCIL,ASC,SOCIAL SERVICES,PRIVATE,EXTERNAL RESIDENTIAL CARE,717206,130245330,03-Aug-15,"3,569.83",Revenue,ST MARYS RESIDENTIAL HOME,SP0000215
WANDSWORTH COUNCIL,ASC,SOCIAL SERVICES,PRIVATE,EXTERNAL RESIDENTIAL CARE,738705,130245330,28-Aug-15,"3,961.80",Revenue,ST MARYS RESIDENTIAL HOME,SP0000215
WANDSWORTH COUNCIL,ASC,SOCIAL SERVICES,PRIVATE,EXTERNAL RESIDENTIAL CARE,738706,130245330,28-Aug-15,"3,898.74",Revenue,ST MARYS RESIDENTIAL HOME,SP0000215
WANDSWORTH COUNCIL,ASC,SOCIAL SERVICES,PRIVATE,EXTERNAL RESIDENTIAL CARE,738707,130245330,28-Aug-15,"3,569.83",Revenue,ST MARYS RESIDENTIAL HOME,SP0000215
WANDSWORTH COUNCIL,ASC,SOCIAL SERVICES,PRIVATE,EXTERNAL RESIDENTIAL CARE,738708,130245330,28-Aug-15,"3,711.64",Revenue,ST MARYS RESIDENTIAL HOME,SP0000215
WANDSWORTH COUNCIL,ASC,SOCIAL SERVICES,PRIVATE,EXTERNAL RESIDENTIAL CARE,738709,130245330,28-Aug-15,"3,134.19",Revenue,ST MARYS RESIDENTIAL HOME,SP0000215
WANDSWORTH COUNCIL,ASC,SOCIAL SERVICES,PRIVATE,EXTERNAL RESIDENTIAL CARE,738710,130245330,28-Aug-15,"5,040.24",Revenue,ST MARYS RESIDENTIAL HOME,SP0000215
WANDSWORTH COUNCIL,ASC,SOCIAL SERVICES,PRIVATE,EXTERNAL RESIDENTIAL CARE,738711,130245330,28-Aug-15,"3,619.79",Revenue,ST MARYS RESIDENTIAL HOME,SP0000215
WANDSWORTH COUNCIL,ASC,SOCIAL SERVICES,PRIVATE,EXTERNAL RESIDENTIAL CARE,738712,130245330,28-Aug-15,"3,582.71",Revenue,ST MARYS RESIDENTIAL HOME,SP0000215
WANDSWORTH COUNCIL,ASC,SOCIAL SERVICES,PRIVATE,EXTERNAL RESIDENTIAL CARE,738713,130245330,28-Aug-15,"3,345.95",Revenue,ST MARYS RESIDENTIAL HOME,SP0000215
WANDSWORTH COUNCIL,ASC,SOCIAL SERVICES,PRIVATE,EXTERNAL RESIDENTIAL CARE,738714,130245330,28-Aug-15,"3,532.45",Revenue,ST MARYS RESIDENTIAL HOME,SP0000215
WANDSWORTH COUNCIL,ASC,SOCIAL SERVICES,PRIVATE,EXTERNAL RESIDENTIAL CARE,738715,130245330,28-Aug-15,"2,313.48",Revenue,ST MARYS RESIDENTIAL HOME,SP0000215
WANDSWORTH COUNCIL,ASC,SOCIAL SERVICES,PRIVATE,EXTERNAL RESIDENTIAL CARE,738716,130245330,28-Aug-15,"3,246.05",Revenue,ST MARYS RESIDENTIAL HOME,SP0000215
WANDSWORTH COUNCIL,ASC,SOCIAL SERVICES,PRIVATE,EXTERNAL RESIDENTIAL CARE,738717,130245330,28-Aug-15,"3,482.26",Revenue,ST MARYS RESIDENTIAL HOME,SP0000215
WANDSWORTH COUNCIL,ASC,SOCIAL SERVICES,PRIVATE,EXTERNAL RESIDENTIAL CARE,717222,130245330,03-Aug-15,"1,814.93",Revenue,NAS SERVICES LIMITED,SP0000217
WANDSWORTH COUNCIL,ASC,SOCIAL SERVICES,PRIVATE,EXTERNAL RESIDENTIAL CARE,717223,130245330,03-Aug-15,"3,387.88",Revenue,NAS SERVICES LIMITED,SP0000217
WANDSWORTH COUNCIL,ASC,SOCIAL SERVICES,PRIVATE,EXTERNAL RESIDENTIAL CARE,717224,130245330,03-Aug-15,"3,387.88",Revenue,NAS SERVICES LIMITED,SP0000217
WANDSWORTH COUNCIL,ASC,SOCIAL SERVICES,PRIVATE,EXTERNAL RESIDENTIAL CARE,717225,130245330,03-Aug-15,"3,387.88",Revenue,NAS SERVICES LIMITED,SP0000217
WANDSWORTH COUNCIL,ASC,SOCIAL SERVICES,PRIVATE,EXTERNAL RESIDENTIAL CARE,717226,130245330,03-Aug-15,"3,387.88",Revenue,NAS SERVICES LIMITED,SP0000217
WANDSWORTH COUNCIL,ASC,SOCIAL SERVICES,PRIVATE,EXTERNAL RESIDENTIAL CARE,725078,130245330,13-Aug-15,"3,724.72",Revenue,HAYDON PARK LODGE LTD,SP0000231
WANDSWORTH COUNCIL,ASC,SOCIAL SERVICES,PRIVATE,EXTERNAL RESIDENTIAL CARE,735794,130245330,26-Aug-15,"4,689.36",Revenue,CAMERON LODGE LIMITED,SP0000271
WANDSWORTH COUNCIL,ASC,SOCIAL SERVICES,PRIVATE,EXTERNAL RESIDENTIAL CARE,730566,130245330,19-Aug-15,"8,046.54",Revenue,BROOKDALE CARE,SP0000282
WANDSWORTH COUNCIL,ASC,SOCIAL SERVICES,PRIVATE,EXTERNAL RESIDENTIAL CARE,718302,130245330,04-Aug-15,"3,029.72",Revenue,CRAEGMOOR FACILITIES CO LTD,SP0000306
WANDSWORTH COUNCIL,ASC,SOCIAL SERVICES,PRIVATE,EXTERNAL RESIDENTIAL CARE,728793,130245330,18-Aug-15,"5,997.91",Revenue,RESIDENTIAL COMMUNITY CARE,SP0000315
WANDSWORTH COUNCIL,ASC,SOCIAL SERVICES,PRIVATE,EXTERNAL RESIDENTIAL CARE,725061,130245330,13-Aug-15,"4,946.29",Revenue,DOLPHIN HOMES LTD,SP0000331
WANDSWORTH COUNCIL,ASC,SOCIAL SERVICES,PRIVATE,EXTERNAL RESIDENTIAL CARE,725062,130245330,13-Aug-15,"3,893.95",Revenue,DOLPHIN HOMES LTD,SP0000331
WANDSWORTH COUNCIL,ASC,SOCIAL SERVICES,PRIVATE,EXTERNAL RESIDENTIAL CARE,718272,130245330,04-Aug-15,"6,154.44",Revenue,NORWOOD SCHOOLS LTD,SP0000332
WANDSWORTH COUNCIL,ASC,SOCIAL SERVICES,PRIVATE,EXTERNAL RESIDENTIAL CARE,718273,130245330,04-Aug-15,"6,409.80",Revenue,NORWOOD SCHOOLS LTD,SP0000332
WANDSWORTH COUNCIL,ASC,SOCIAL SERVICES,PRIVATE,EXTERNAL RESIDENTIAL CARE,718732,130245330,04-Aug-15,"2,409.62",Revenue,THE MANOR,SP0000340
WANDSWORTH COUNCIL,ASC,SOCIAL SERVICES,PRIVATE,EXTERNAL RESIDENTIAL CARE,728799,130245330,18-Aug-15,"2,571.36",Revenue,HEYWOODS GRANGE LTD,SP0000361
WANDSWORTH COUNCIL,ASC,SOCIAL SERVICES,PRIVATE,EXTERNAL RESIDENTIAL CARE,728800,130245330,18-Aug-15,"3,210.71",Revenue,HEYWOODS GRANGE LTD,SP0000361
WANDSWORTH COUNCIL,ASC,SOCIAL SERVICES,PRIVATE,EXTERNAL RESIDENTIAL CARE,725069,130245330,13-Aug-15,"4,546.45",Revenue,VOYAGE CARE LTD,SP0000366
WANDSWORTH COUNCIL,ASC,SOCIAL SERVICES,PRIVATE,EXTERNAL RESIDENTIAL CARE,729106,130245330,18-Aug-15,"7,444.36",Revenue,VOYAGE CARE LTD,SP0000366
WANDSWORTH COUNCIL,ASC,SOCIAL SERVICES,PRIVATE,EXTERNAL RESIDENTIAL CARE,729107,130245330,18-Aug-15,"6,091.77",Revenue,VOYAGE CARE LTD,SP0000366
WANDSWORTH COUNCIL,ASC,SOCIAL SERVICES,PRIVATE,EXTERNAL RESIDENTIAL CARE,729108,130245330,18-Aug-15,"6,127.81",Revenue,VOYAGE CARE LTD,SP0000366
WANDSWORTH COUNCIL,ASC,SOCIAL SERVICES,PRIVATE,EXTERNAL RESIDENTIAL CARE,729109,130245330,18-Aug-15,"7,370.96",Revenue,VOYAGE CARE LTD,SP0000366
WANDSWORTH COUNCIL,ASC,SOCIAL SERVICES,PRIVATE,EXTERNAL RESIDENTIAL CARE,730584,130245330,19-Aug-15,"2,177.99",Revenue,ST DAVIDS CARE IN THE COMMUNITY,SP0000379
WANDSWORTH COUNCIL,ASC,SOCIAL SERVICES,PRIVATE,EXTERNAL RESIDENTIAL CARE,730585,130245330,19-Aug-15,"2,624.99",Revenue,ST DAVIDS CARE IN THE COMMUNITY,SP0000379
WANDSWORTH COUNCIL,ASC,SOCIAL SERVICES,PRIVATE,EXTERNAL RESIDENTIAL CARE,730586,130245330,19-Aug-15,"2,177.99",Revenue,ST DAVIDS CARE IN THE COMMUNITY,SP0000379
WANDSWORTH COUNCIL,ASC,SOCIAL SERVICES,PRIVATE,EXTERNAL RESIDENTIAL CARE,730575,130245330,19-Aug-15,"5,646.12",Revenue,ESSEX CARE CONSORTIUM,SP0000387
WANDSWORTH COUNCIL,ASC,SOCIAL SERVICES,PRIVATE,EXTERNAL RESIDENTIAL CARE,718303,130245330,04-Aug-15,"3,135.60",Revenue,POTENSIAL LTD,SP0000395
WANDSWORTH COUNCIL,ASC,SOCIAL SERVICES,PRIVATE,EXTERNAL RESIDENTIAL CARE,717203,130245330,03-Aug-15,"3,976.44",Revenue,KENILWORTH RESIDENTIAL HOME,SP0000432
WANDSWORTH COUNCIL,ASC,SOCIAL SERVICES,PRIVATE,EXTERNAL RESIDENTIAL CARE,717204,130245330,03-Aug-15,"4,150.04",Revenue,KENILWORTH RESIDENTIAL HOME,SP0000432
WANDSWORTH COUNCIL,ASC,SOCIAL SERVICES,PRIVATE,EXTERNAL RESIDENTIAL CARE,738731,130245330,28-Aug-15,"4,415.14",Revenue,THE WELL HOUSE,SP0000448
WANDSWORTH COUNCIL,ASC,SOCIAL SERVICES,PRIVATE,EXTERNAL RESIDENTIAL CARE,738732,130245330,28-Aug-15,"4,667.40",Revenue,THE WELL HOUSE,SP0000448
WANDSWORTH COUNCIL,ASC,SOCIAL SERVICES,PRIVATE,EXTERNAL RESIDENTIAL CARE,721489,130245330,07-Aug-15,"5,210.48",Revenue,MACINTYRE CARE,SP0000473
WANDSWORTH COUNCIL,ASC,SOCIAL SERVICES,PRIVATE,EXTERNAL RESIDENTIAL CARE,721490,130245330,07-Aug-15,"3,759.64",Revenue,MACINTYRE CARE,SP0000473
WANDSWORTH COUNCIL,ASC,SOCIAL SERVICES,PRIVATE,EXTERNAL RESIDENTIAL CARE,721491,130245330,07-Aug-15,"5,429.64",Revenue,MACINTYRE CARE,SP0000473
WANDSWORTH COUNCIL,ASC,SOCIAL SERVICES,PRIVATE,EXTERNAL RESIDENTIAL CARE,721493,130245330,07-Aug-15,"3,759.64",Revenue,MACINTYRE CARE,SP0000473
WANDSWORTH COUNCIL,ASC,SOCIAL SERVICES,PRIVATE,EXTERNAL RESIDENTIAL CARE,721494,130245330,07-Aug-15,"5,192.48",Revenue,MACINTYRE CARE,SP0000473
WANDSWORTH COUNCIL,ASC,SOCIAL SERVICES,PRIVATE,EXTERNAL RESIDENTIAL CARE,721495,130245330,07-Aug-15,"3,750.72",Revenue,MACINTYRE CARE,SP0000473
WANDSWORTH COUNCIL,ASC,SOCIAL SERVICES,PRIVATE,EXTERNAL RESIDENTIAL CARE,721496,130245330,07-Aug-15,"3,813.84",Revenue,MACINTYRE CARE,SP0000473
WANDSWORTH COUNCIL,ASC,SOCIAL SERVICES,PRIVATE,EXTERNAL RESIDENTIAL CARE,721497,130245330,07-Aug-15,"4,998.84",Revenue,MACINTYRE CARE,SP0000473
WANDSWORTH COUNCIL,ASC,SOCIAL SERVICES,PRIVATE,EXTERNAL RESIDENTIAL CARE,721498,130245330,07-Aug-15,"5,097.20",Revenue,MACINTYRE CARE,SP0000473
WANDSWORTH COUNCIL,ASC,SOCIAL SERVICES,PRIVATE,EXTERNAL RESIDENTIAL CARE,721499,130245330,07-Aug-15,"2,301.48",Revenue,MACINTYRE CARE,SP0000473
WANDSWORTH COUNCIL,ASC,SOCIAL SERVICES,PRIVATE,EXTERNAL RESIDENTIAL CARE,721500,130245330,07-Aug-15,"8,054.44",Revenue,MACINTYRE CARE,SP0000473
WANDSWORTH COUNCIL,ASC,SOCIAL SERVICES,PRIVATE,EXTERNAL RESIDENTIAL CARE,721501,130245330,07-Aug-15,"5,030.56",Revenue,MACINTYRE CARE,SP0000473
WANDSWORTH COUNCIL,ASC,SOCIAL SERVICES,PRIVATE,EXTERNAL RESIDENTIAL CARE,721502,130245330,07-Aug-15,"5,429.76",Revenue,MACINTYRE CARE,SP0000473
WANDSWORTH COUNCIL,ASC,SOCIAL SERVICES,PRIVATE,EXTERNAL RESIDENTIAL CARE,721503,130245330,07-Aug-15,"4,296.00",Revenue,MACINTYRE CARE,SP0000473
WANDSWORTH COUNCIL,ASC,SOCIAL SERVICES,PRIVATE,EXTERNAL RESIDENTIAL CARE,721507,130245330,07-Aug-15,"4,909.16",Revenue,MACINTYRE CARE,SP0000473
WANDSWORTH COUNCIL,ASC,SOCIAL SERVICES,PRIVATE,EXTERNAL RESIDENTIAL CARE,721508,130245330,07-Aug-15,"4,909.16",Revenue,MACINTYRE CARE,SP0000473
WANDSWORTH COUNCIL,ASC,SOCIAL SERVICES,PRIVATE,EXTERNAL RESIDENTIAL CARE,721510,130245330,07-Aug-15,"4,907.76",Revenue,MACINTYRE CARE,SP0000473
WANDSWORTH COUNCIL,ASC,SOCIAL SERVICES,PRIVATE,EXTERNAL RESIDENTIAL CARE,721511,130245330,07-Aug-15,"4,907.76",Revenue,MACINTYRE CARE,SP0000473
WANDSWORTH COUNCIL,ASC,SOCIAL SERVICES,PRIVATE,EXTERNAL RESIDENTIAL CARE,721512,130245330,07-Aug-15,"4,907.76",Revenue,MACINTYRE CARE,SP0000473
WANDSWORTH COUNCIL,ASC,SOCIAL SERVICES,PRIVATE,EXTERNAL RESIDENTIAL CARE,721513,130245330,07-Aug-15,"5,030.56",Revenue,MACINTYRE CARE,SP0000473
WANDSWORTH COUNCIL,ASC,SOCIAL SERVICES,PRIVATE,EXTERNAL RESIDENTIAL CARE,721514,130245330,07-Aug-15,"4,907.76",Revenue,MACINTYRE CARE,SP0000473
WANDSWORTH COUNCIL,ASC,SOCIAL SERVICES,PRIVATE,EXTERNAL RESIDENTIAL CARE,734525,130245330,25-Aug-15,"8,982.39",Revenue,SURREY & BORDERS PARTNERSHIP NHS TRUST,SP0000501
WANDSWORTH COUNCIL,ASC,SOCIAL SERVICES,PRIVATE,EXTERNAL RESIDENTIAL CARE,734526,130245330,25-Aug-15,"5,622.80",Revenue,SURREY & BORDERS PARTNERSHIP NHS TRUST,SP0000501
WANDSWORTH COUNCIL,ASC,SOCIAL SERVICES,PRIVATE,EXTERNAL RESIDENTIAL CARE,718270,130245330,04-Aug-15,"7,717.76",Revenue,LORING HALL LIMITED,SP0000511
WANDSWORTH COUNCIL,ASC,SOCIAL SERVICES,PRIVATE,EXTERNAL RESIDENTIAL CARE,729113,130245330,18-Aug-15,"7,717.76",Revenue,LORING HALL LIMITED,SP0000511
WANDSWORTH COUNCIL,ASC,SOCIAL SERVICES,PRIVATE,EXTERNAL RESIDENTIAL CARE,732741,130245330,21-Aug-15,"8,370.84",Revenue,AIMS CARE PARTNERSHIP,SP0000561
WANDSWORTH COUNCIL,ASC,SOCIAL SERVICES,PRIVATE,EXTERNAL RESIDENTIAL CARE,725072,130245330,13-Aug-15,"8,569.28",Revenue,SEEABILITY,SP0000572
WANDSWORTH COUNCIL,ASC,SOCIAL SERVICES,PRIVATE,EXTERNAL RESIDENTIAL CARE,730583,130245330,19-Aug-15,"7,597.04",Revenue,SEEABILITY,SP0000572
WANDSWORTH COUNCIL,ASC,SOCIAL SERVICES,PRIVATE,EXTERNAL RESIDENTIAL CARE,718299,130245330,04-Aug-15,"6,191.31",Revenue,THE COMMUNITY CARE COMPANY UK LTD,SP0000576
WANDSWORTH COUNCIL,ASC,SOCIAL SERVICES,PRIVATE,EXTERNAL RESIDENTIAL CARE,726617,130245330,14-Aug-15,"7,019.64",Revenue,THE COMMUNITY CARE COMPANY UK LTD,SP0000576
WANDSWORTH COUNCIL,ASC,SOCIAL SERVICES,PRIVATE,EXTERNAL RESIDENTIAL CARE,728795,130245330,18-Aug-15,"5,644.30",Revenue,THE COMMUNITY CARE COMPANY UK LTD,SP0000576
WANDSWORTH COUNCIL,ASC,SOCIAL SERVICES,PRIVATE,EXTERNAL RESIDENTIAL CARE,728796,130245330,18-Aug-15,"7,122.03",Revenue,THE COMMUNITY CARE COMPANY UK LTD,SP0000576
WANDSWORTH COUNCIL,ASC,SOCIAL SERVICES,PRIVATE,EXTERNAL RESIDENTIAL CARE,728797,130245330,18-Aug-15,"6,002.71",Revenue,THE COMMUNITY CARE COMPANY UK LTD,SP0000576
WANDSWORTH COUNCIL,ASC,SOCIAL SERVICES,PRIVATE,EXTERNAL RESIDENTIAL CARE,730549,130245330,19-Aug-15,"7,203.16",Revenue,THE COMMUNITY CARE COMPANY UK LTD,SP0000576
WANDSWORTH COUNCIL,ASC,SOCIAL SERVICES,PRIVATE,EXTERNAL RESIDENTIAL CARE,730576,130245330,19-Aug-15,"6,188.66",Revenue,THE COMMUNITY CARE COMPANY UK LTD,SP0000576
WANDSWORTH COUNCIL,ASC,SOCIAL SERVICES,PRIVATE,EXTERNAL RESIDENTIAL CARE,733691,130245330,24-Aug-15,"6,641.44",Revenue,BIRCC,SP0000584
WANDSWORTH COUNCIL,ASC,SOCIAL SERVICES,PRIVATE,EXTERNAL RESIDENTIAL CARE,725050,130245330,13-Aug-15,"5,875.84",Revenue,THE REGARD PARTNERSHIP,SP0000588
WANDSWORTH COUNCIL,ASC,SOCIAL SERVICES,PRIVATE,EXTERNAL RESIDENTIAL CARE,728822,130245330,18-Aug-15,"5,875.84",Revenue,THE REGARD PARTNERSHIP,SP0000588
WANDSWORTH COUNCIL,ASC,SOCIAL SERVICES,PRIVATE,EXTERNAL RESIDENTIAL CARE,729122,130245330,18-Aug-15,"7,483.54",Revenue,THE REGARD PARTNERSHIP,SP0000588
WANDSWORTH COUNCIL,ASC,SOCIAL SERVICES,PRIVATE,EXTERNAL RESIDENTIAL CARE,729123,130245330,18-Aug-15,"6,756.50",Revenue,THE REGARD PARTNERSHIP,SP0000588
WANDSWORTH COUNCIL,ASC,SOCIAL SERVICES,PRIVATE,EXTERNAL RESIDENTIAL CARE,729124,130245330,18-Aug-15,"7,044.31",Revenue,THE REGARD PARTNERSHIP,SP0000588
WANDSWORTH COUNCIL,ASC,SOCIAL SERVICES,PRIVATE,EXTERNAL RESIDENTIAL CARE,729125,130245330,18-Aug-15,"7,144.16",Revenue,THE REGARD PARTNERSHIP,SP0000588
WANDSWORTH COUNCIL,ASC,SOCIAL SERVICES,PRIVATE,EXTERNAL RESIDENTIAL CARE,729126,130245330,18-Aug-15,"7,872.24",Revenue,THE REGARD PARTNERSHIP,SP0000588
WANDSWORTH COUNCIL,ASC,SOCIAL SERVICES,PRIVATE,EXTERNAL RESIDENTIAL CARE,729128,130245330,18-Aug-15,"5,894.88",Revenue,THE REGARD PARTNERSHIP,SP0000588
WANDSWORTH COUNCIL,ASC,SOCIAL SERVICES,PRIVATE,EXTERNAL RESIDENTIAL CARE,733684,130245330,24-Aug-15,"7,483.53",Revenue,THE REGARD PARTNERSHIP,SP0000588
WANDSWORTH COUNCIL,ASC,SOCIAL SERVICES,PRIVATE,EXTERNAL RESIDENTIAL CARE,733685,130245330,24-Aug-15,"7,044.22",Revenue,THE REGARD PARTNERSHIP,SP0000588
WANDSWORTH COUNCIL,ASC,SOCIAL SERVICES,PRIVATE,EXTERNAL RESIDENTIAL CARE,733686,130245330,24-Aug-15,"7,144.17",Revenue,THE REGARD PARTNERSHIP,SP0000588
WANDSWORTH COUNCIL,ASC,SOCIAL SERVICES,PRIVATE,EXTERNAL RESIDENTIAL CARE,733687,130245330,24-Aug-15,"6,756.49",Revenue,THE REGARD PARTNERSHIP,SP0000588
WANDSWORTH COUNCIL,ASC,SOCIAL SERVICES,PRIVATE,EXTERNAL RESIDENTIAL CARE,733688,130245330,24-Aug-15,"7,872.23",Revenue,THE REGARD PARTNERSHIP,SP0000588
WANDSWORTH COUNCIL,ASC,SOCIAL SERVICES,PRIVATE,EXTERNAL RESIDENTIAL CARE,719259,130245330,05-Aug-15,"10,118.48",Revenue,EVERGREEN PARTNERSHIP,SP0000597
WANDSWORTH COUNCIL,ASC,SOCIAL SERVICES,PRIVATE,EXTERNAL RESIDENTIAL CARE,738681,130245330,28-Aug-15,"4,792.20",Revenue,LAETUS LODGE,SP0000600
WANDSWORTH COUNCIL,ASC,SOCIAL SERVICES,PRIVATE,EXTERNAL RESIDENTIAL CARE,738682,130245330,28-Aug-15,"6,096.48",Revenue,LAETUS LODGE,SP0000600
WANDSWORTH COUNCIL,ASC,SOCIAL SERVICES,PRIVATE,EXTERNAL RESIDENTIAL CARE,738683,130245330,28-Aug-15,"3,759.76",Revenue,LAETUS LODGE,SP0000600
WANDSWORTH COUNCIL,ASC,SOCIAL SERVICES,PRIVATE,EXTERNAL RESIDENTIAL CARE,738684,130245330,28-Aug-15,"6,193.48",Revenue,LAETUS LODGE,SP0000600
WANDSWORTH COUNCIL,ASC,SOCIAL SERVICES,PRIVATE,EXTERNAL RESIDENTIAL CARE,738685,130245330,28-Aug-15,"3,669.12",Revenue,LAETUS LODGE,SP0000600
WANDSWORTH COUNCIL,ASC,SOCIAL SERVICES,PRIVATE,EXTERNAL RESIDENTIAL CARE,738686,130245330,28-Aug-15,"3,759.76",Revenue,LAETUS LODGE,SP0000600
WANDSWORTH COUNCIL,ASC,SOCIAL SERVICES,PRIVATE,EXTERNAL RESIDENTIAL CARE,738687,130245330,28-Aug-15,"5,238.16",Revenue,LAETUS LODGE,SP0000600
WANDSWORTH COUNCIL,ASC,SOCIAL SERVICES,PRIVATE,EXTERNAL RESIDENTIAL CARE,738688,130245330,28-Aug-15,"4,558.48",Revenue,LAETUS LODGE,SP0000600
WANDSWORTH COUNCIL,ASC,SOCIAL SERVICES,PRIVATE,EXTERNAL RESIDENTIAL CARE,733596,130245330,24-Aug-15,"3,454.38",Revenue,MENCAP,SP0000604
WANDSWORTH COUNCIL,ASC,SOCIAL SERVICES,PRIVATE,EXTERNAL RESIDENTIAL CARE,733597,130245330,24-Aug-15,"3,454.38",Revenue,MENCAP,SP0000604
WANDSWORTH COUNCIL,ASC,SOCIAL SERVICES,PRIVATE,EXTERNAL RESIDENTIAL CARE,733601,130245330,24-Aug-15,"2,391.83",Revenue,MENCAP,SP0000604
WANDSWORTH COUNCIL,ASC,SOCIAL SERVICES,PRIVATE,EXTERNAL RESIDENTIAL CARE,733627,130245330,24-Aug-15,"8,060.31",Revenue,HEALTHLINC INDIVIDUAL CARE,SP0000617
WANDSWORTH COUNCIL,ASC,SOCIAL SERVICES,PRIVATE,EXTERNAL RESIDENTIAL CARE,718271,130245330,04-Aug-15,"3,659.52",Revenue,METROPOLITAN HOUSING TRUST,SP0000626
WANDSWORTH COUNCIL,ASC,SOCIAL SERVICES,PRIVATE,EXTERNAL RESIDENTIAL CARE,732751,130245330,21-Aug-15,"1,028.57",Revenue,METROPOLITAN HOUSING TRUST,SP0000626
WANDSWORTH COUNCIL,ASC,SOCIAL SERVICES,PRIVATE,EXTERNAL RESIDENTIAL CARE,726958,130245330,14-Aug-15,"2,986.12",Revenue,BUPA CARE SERVICES BACS RECEIPTS,SP0000644
WANDSWORTH COUNCIL,ASC,SOCIAL SERVICES,PRIVATE,EXTERNAL RESIDENTIAL CARE,725038,130245330,13-Aug-15,"6,234.49",Revenue,SUSSEX AUTISTIC COMMUNITY TRUST(CARE SER,SP0000652
WANDSWORTH COUNCIL,ASC,SOCIAL SERVICES,PRIVATE,EXTERNAL RESIDENTIAL CARE,725039,130245330,13-Aug-15,"6,234.50",Revenue,SUSSEX AUTISTIC COMMUNITY TRUST(CARE SER,SP0000652
WANDSWORTH COUNCIL,ASC,SOCIAL SERVICES,PRIVATE,EXTERNAL RESIDENTIAL CARE,725087,130245330,13-Aug-15,"2,395.60",Revenue,LIVABILITY,SP0000669
WANDSWORTH COUNCIL,ASC,SOCIAL SERVICES,PRIVATE,EXTERNAL RESIDENTIAL CARE,732753,130245330,21-Aug-15,"11,322.96",Revenue,LOVING CARE LTD,SP0000670
WANDSWORTH COUNCIL,ASC,SOCIAL SERVICES,PRIVATE,EXTERNAL RESIDENTIAL CARE,732754,130245330,21-Aug-15,"11,282.12",Revenue,LOVING CARE LTD,SP0000670
WANDSWORTH COUNCIL,ASC,SOCIAL SERVICES,PRIVATE,EXTERNAL RESIDENTIAL CARE,732755,130245330,21-Aug-15,"11,475.84",Revenue,LOVING CARE LTD,SP0000670
WANDSWORTH COUNCIL,ASC,SOCIAL SERVICES,PRIVATE,EXTERNAL RESIDENTIAL CARE,732756,130245330,21-Aug-15,"11,017.24",Revenue,LOVING CARE LTD,SP0000670
WANDSWORTH COUNCIL,ASC,SOCIAL SERVICES,PRIVATE,EXTERNAL RESIDENTIAL CARE,732757,130245330,21-Aug-15,"11,475.88",Revenue,LOVING CARE LTD,SP0000670
WANDSWORTH COUNCIL,ASC,SOCIAL SERVICES,PRIVATE,EXTERNAL RESIDENTIAL CARE,732758,130245330,21-Aug-15,"11,475.88",Revenue,LOVING CARE LTD,SP0000670
WANDSWORTH COUNCIL,ASC,SOCIAL SERVICES,PRIVATE,EXTERNAL RESIDENTIAL CARE,732759,130245330,21-Aug-15,"11,170.12",Revenue,LOVING CARE LTD,SP0000670
WANDSWORTH COUNCIL,ASC,SOCIAL SERVICES,PRIVATE,EXTERNAL RESIDENTIAL CARE,730590,130245330,19-Aug-15,"5,133.28",Revenue,WHITMORE VALE HOUSING ASSOCIATION LTD,SP0000694
WANDSWORTH COUNCIL,ASC,SOCIAL SERVICES,PRIVATE,EXTERNAL RESIDENTIAL CARE,729114,130245330,18-Aug-15,"3,099.03",Revenue,THE MANOR HOUSE,SP0000728
WANDSWORTH COUNCIL,ASC,SOCIAL SERVICES,PRIVATE,EXTERNAL RESIDENTIAL CARE,718300,130245330,04-Aug-15,"8,576.73",Revenue,RALEIGH HOUSE LTD,SP0000760
WANDSWORTH COUNCIL,ASC,SOCIAL SERVICES,PRIVATE,EXTERNAL RESIDENTIAL CARE,718301,130245330,04-Aug-15,"7,763.34",Revenue,RALEIGH HOUSE LTD,SP0000760
WANDSWORTH COUNCIL,ASC,SOCIAL SERVICES,PRIVATE,EXTERNAL RESIDENTIAL CARE,718734,130245330,04-Aug-15,"8,576.73",Revenue,RALEIGH HOUSE LTD,SP0000760
WANDSWORTH COUNCIL,ASC,SOCIAL SERVICES,PRIVATE,EXTERNAL RESIDENTIAL CARE,718735,130245330,04-Aug-15,"7,763.33",Revenue,RALEIGH HOUSE LTD,SP0000760
WANDSWORTH COUNCIL,ASC,SOCIAL SERVICES,PRIVATE,EXTERNAL RESIDENTIAL CARE,734512,130245330,25-Aug-15,"4,835.04",Revenue,WHITE ROSE CARE,SP0000780
WANDSWORTH COUNCIL,ASC,SOCIAL SERVICES,PRIVATE,EXTERNAL RESIDENTIAL CARE,734513,130245330,25-Aug-15,"4,835.04",Revenue,WHITE ROSE CARE,SP0000780
WANDSWORTH COUNCIL,ASC,SOCIAL SERVICES,PRIVATE,EXTERNAL RESIDENTIAL CARE,734514,130245330,25-Aug-15,"4,835.04",Revenue,WHITE ROSE CARE,SP0000780
WANDSWORTH COUNCIL,ASC,SOCIAL SERVICES,PRIVATE,EXTERNAL RESIDENTIAL CARE,728802,130245330,18-Aug-15,"6,103.44",Revenue,GLENCARE GROUP,SP0000791
WANDSWORTH COUNCIL,ASC,SOCIAL SERVICES,PRIVATE,EXTERNAL RESIDENTIAL CARE,728803,130245330,18-Aug-15,"3,806.64",Revenue,GLENCARE GROUP,SP0000791
WANDSWORTH COUNCIL,ASC,SOCIAL SERVICES,PRIVATE,EXTERNAL RESIDENTIAL CARE,728824,130245330,18-Aug-15,"3,806.64",Revenue,GLENCARE GROUP,SP0000791
WANDSWORTH COUNCIL,ASC,SOCIAL SERVICES,PRIVATE,EXTERNAL RESIDENTIAL CARE,722714,130245330,11-Aug-15,"2,267.32",Revenue,FREEWAYS TRUST LTD,SP0000793
WANDSWORTH COUNCIL,ASC,SOCIAL SERVICES,PRIVATE,EXTERNAL RESIDENTIAL CARE,722715,130245330,11-Aug-15,"2,267.32",Revenue,FREEWAYS TRUST LTD,SP0000793
WANDSWORTH COUNCIL,ASC,SOCIAL SERVICES,PRIVATE,EXTERNAL RESIDENTIAL CARE,725051,130245330,13-Aug-15,"3,140.56",Revenue,UNITED RESPONSE,SP0000797
WANDSWORTH COUNCIL,ASC,SOCIAL SERVICES,PRIVATE,EXTERNAL RESIDENTIAL CARE,725058,130245330,13-Aug-15,"3,151.20",Revenue,PROSPECTS,SP0000800
WANDSWORTH COUNCIL,ASC,SOCIAL SERVICES,PRIVATE,EXTERNAL RESIDENTIAL CARE,721515,130245330,07-Aug-15,"3,970.56",Revenue,BEECH LODGE,SP0000807
WANDSWORTH COUNCIL,ASC,SOCIAL SERVICES,PRIVATE,EXTERNAL RESIDENTIAL CARE,721516,130245330,07-Aug-15,"3,970.56",Revenue,BEECH LODGE,SP0000807
WANDSWORTH COUNCIL,ASC,SOCIAL SERVICES,PRIVATE,EXTERNAL RESIDENTIAL CARE,721517,130245330,07-Aug-15,"3,970.56",Revenue,BEECH LODGE,SP0000807
WANDSWORTH COUNCIL,ASC,SOCIAL SERVICES,PRIVATE,EXTERNAL RESIDENTIAL CARE,733623,130245330,24-Aug-15,"3,970.57",Revenue,BEECH LODGE,SP0000807
WANDSWORTH COUNCIL,ASC,SOCIAL SERVICES,PRIVATE,EXTERNAL RESIDENTIAL CARE,733624,130245330,24-Aug-15,"3,970.57",Revenue,BEECH LODGE,SP0000807
WANDSWORTH COUNCIL,ASC,SOCIAL SERVICES,PRIVATE,EXTERNAL RESIDENTIAL CARE,733625,130245330,24-Aug-15,"3,970.57",Revenue,BEECH LODGE,SP0000807
WANDSWORTH COUNCIL,ASC,SOCIAL SERVICES,PRIVATE,EXTERNAL RESIDENTIAL CARE,726628,130245330,14-Aug-15,"8,051.14",Revenue,FIRCROFT,SP0000840
WANDSWORTH COUNCIL,ASC,SOCIAL SERVICES,PRIVATE,EXTERNAL RESIDENTIAL CARE,730578,130245330,19-Aug-15,"3,257.27",Revenue,STALLCOMBE HOUSE,SP0000843
WANDSWORTH COUNCIL,ASC,SOCIAL SERVICES,PRIVATE,EXTERNAL RESIDENTIAL CARE,730579,130245330,19-Aug-15,"3,257.26",Revenue,STALLCOMBE HOUSE,SP0000843
WANDSWORTH COUNCIL,ASC,SOCIAL SERVICES,PRIVATE,EXTERNAL RESIDENTIAL CARE,721479,130245330,07-Aug-15,"2,618.37",Revenue,SCOPE,SP0000852
WANDSWORTH COUNCIL,ASC,SOCIAL SERVICES,PRIVATE,EXTERNAL RESIDENTIAL CARE,721480,130245330,07-Aug-15,"2,761.31",Revenue,SCOPE,SP0000852
WANDSWORTH COUNCIL,ASC,SOCIAL SERVICES,PRIVATE,EXTERNAL RESIDENTIAL CARE,730592,130245330,19-Aug-15,"2,618.36",Revenue,SCOPE,SP0000852
WANDSWORTH COUNCIL,ASC,SOCIAL SERVICES,PRIVATE,EXTERNAL RESIDENTIAL CARE,730593,130245330,19-Aug-15,"2,763.53",Revenue,SCOPE,SP0000852
WANDSWORTH COUNCIL,ASC,SOCIAL SERVICES,PRIVATE,EXTERNAL RESIDENTIAL CARE,728813,130245330,18-Aug-15,"11,311.24",Revenue,ASHCROFT CARE SERVICES,SP0000872
WANDSWORTH COUNCIL,ASC,SOCIAL SERVICES,PRIVATE,EXTERNAL RESIDENTIAL CARE,725033,130245330,13-Aug-15,"4,472.68",Revenue,229 MITCHAM LANE LTD,SP0000884
WANDSWORTH COUNCIL,ASC,SOCIAL SERVICES,PRIVATE,EXTERNAL RESIDENTIAL CARE,725034,130245330,13-Aug-15,"5,236.30",Revenue,229 MITCHAM LANE LTD,SP0000884
WANDSWORTH COUNCIL,ASC,SOCIAL SERVICES,PRIVATE,EXTERNAL RESIDENTIAL CARE,725036,130245330,13-Aug-15,"5,559.01",Revenue,229 MITCHAM LANE LTD,SP0000884
WANDSWORTH COUNCIL,ASC,SOCIAL SERVICES,PRIVATE,EXTERNAL RESIDENTIAL CARE,725037,130245330,13-Aug-15,"5,236.30",Revenue,229 MITCHAM LANE LTD,SP0000884
WANDSWORTH COUNCIL,ASC,SOCIAL SERVICES,PRIVATE,EXTERNAL RESIDENTIAL CARE,734527,130245330,25-Aug-15,"5,819.32",Revenue,WINSLOW COURT,SP0000886
WANDSWORTH COUNCIL,ASC,SOCIAL SERVICES,PRIVATE,EXTERNAL RESIDENTIAL CARE,738703,130245330,28-Aug-15,"5,599.36",Revenue,WINSLOW COURT,SP0000886
WANDSWORTH COUNCIL,ASC,SOCIAL SERVICES,PRIVATE,EXTERNAL RESIDENTIAL CARE,738704,130245330,28-Aug-15,"5,819.32",Revenue,WINSLOW COURT,SP0000886
WANDSWORTH COUNCIL,ASC,SOCIAL SERVICES,PRIVATE,EXTERNAL RESIDENTIAL CARE,730574,130245330,19-Aug-15,"5,250.96",Revenue,TRACS,SP0000914
WANDSWORTH COUNCIL,ASC,SOCIAL SERVICES,PRIVATE,EXTERNAL RESIDENTIAL CARE,725045,130245330,13-Aug-15,"7,271.56",Revenue,CORICH COMMUNITY CARE LTD,SP0000915
WANDSWORTH COUNCIL,ASC,SOCIAL SERVICES,PRIVATE,EXTERNAL RESIDENTIAL CARE,730570,130245330,19-Aug-15,"2,405.52",Revenue,HILL PARK AUTISTIC TRUST,SP0000926
WANDSWORTH COUNCIL,ASC,SOCIAL SERVICES,PRIVATE,EXTERNAL RESIDENTIAL CARE,725081,130245330,13-Aug-15,"2,930.00",Revenue,MISSION CARE,SP0000958
WANDSWORTH COUNCIL,ASC,SOCIAL SERVICES,PRIVATE,EXTERNAL RESIDENTIAL CARE,728820,130245330,18-Aug-15,"4,027.12",Revenue,DOWNING (CHERTSEY ROAD) LTD,SP0000959
WANDSWORTH COUNCIL,ASC,SOCIAL SERVICES,PRIVATE,EXTERNAL RESIDENTIAL CARE,721518,130245330,07-Aug-15,"3,990.71",Revenue,CHERRY LODGE,SP0000965
WANDSWORTH COUNCIL,ASC,SOCIAL SERVICES,PRIVATE,EXTERNAL RESIDENTIAL CARE,733626,130245330,24-Aug-15,"3,990.72",Revenue,CHERRY LODGE,SP0000965
WANDSWORTH COUNCIL,ASC,SOCIAL SERVICES,PRIVATE,EXTERNAL RESIDENTIAL CARE,735323,130245330,26-Aug-15,"3,538.76",Revenue,RIDGEWOOD CARE SERVICES LTD,SP0000969
WANDSWORTH COUNCIL,ASC,SOCIAL SERVICES,PRIVATE,EXTERNAL RESIDENTIAL CARE,735324,130245330,26-Aug-15,"3,742.44",Revenue,RIDGEWOOD CARE SERVICES LTD,SP0000969
WANDSWORTH COUNCIL,ASC,SOCIAL SERVICES,PRIVATE,EXTERNAL RESIDENTIAL CARE,725070,130245330,13-Aug-15,"4,359.83",Revenue,LEONARD CHESHIRE,SP0000976
WANDSWORTH COUNCIL,ASC,SOCIAL SERVICES,PRIVATE,EXTERNAL RESIDENTIAL CARE,725071,130245330,13-Aug-15,"6,402.96",Revenue,LEONARD CHESHIRE,SP0000976
WANDSWORTH COUNCIL,ASC,SOCIAL SERVICES,PRIVATE,EXTERNAL RESIDENTIAL CARE,732739,130245330,21-Aug-15,"5,389.70",Revenue,CREDITON CARE & SUPPORT HOMES,SP0000998
WANDSWORTH COUNCIL,ASC,SOCIAL SERVICES,PRIVATE,EXTERNAL RESIDENTIAL CARE,722718,130245330,11-Aug-15,"5,544.13",Revenue,M JINGREE T/A SUNLIGHT HOUSE,SP0001024
WANDSWORTH COUNCIL,ASC,SOCIAL SERVICES,PRIVATE,EXTERNAL RESIDENTIAL CARE,725052,130245330,13-Aug-15,"2,743.88",Revenue,THE HOME FARM TRUST LTD,SP0001048
WANDSWORTH COUNCIL,ASC,SOCIAL SERVICES,PRIVATE,EXTERNAL RESIDENTIAL CARE,725053,130245330,13-Aug-15,"2,323.00",Revenue,THE HOME FARM TRUST LTD,SP0001048
WANDSWORTH COUNCIL,ASC,SOCIAL SERVICES,PRIVATE,EXTERNAL RESIDENTIAL CARE,725054,130245330,13-Aug-15,"2,457.40",Revenue,THE HOME FARM TRUST LTD,SP0001048
WANDSWORTH COUNCIL,ASC,SOCIAL SERVICES,PRIVATE,EXTERNAL RESIDENTIAL CARE,728821,130245330,18-Aug-15,"3,708.20",Revenue,THE HOME FARM TRUST LTD,SP0001048
WANDSWORTH COUNCIL,ASC,SOCIAL SERVICES,PRIVATE,EXTERNAL RESIDENTIAL CARE,725055,130245330,13-Aug-15,"4,630.48",Revenue,ALLIED CARE (MHS) LTD,SP0001069
WANDSWORTH COUNCIL,ASC,SOCIAL SERVICES,PRIVATE,EXTERNAL RESIDENTIAL CARE,730563,130245330,19-Aug-15,"4,332.78",Revenue,ALLIED CARE (MHS) LTD,SP0001069
WANDSWORTH COUNCIL,ASC,SOCIAL SERVICES,PRIVATE,EXTERNAL RESIDENTIAL CARE,730568,130245330,19-Aug-15,"7,054.98",Revenue,ALLIED CARE (MHS) LTD,SP0001069
WANDSWORTH COUNCIL,ASC,SOCIAL SERVICES,PRIVATE,EXTERNAL RESIDENTIAL CARE,730569,130245330,19-Aug-15,"5,000.30",Revenue,ALLIED CARE (MHS) LTD,SP0001069
WANDSWORTH COUNCIL,ASC,SOCIAL SERVICES,PRIVATE,EXTERNAL RESIDENTIAL CARE,729105,130245330,18-Aug-15,"12,485.03",Revenue,ILG LTD,SP0001103
WANDSWORTH COUNCIL,ASC,SOCIAL SERVICES,PRIVATE,EXTERNAL RESIDENTIAL CARE,738689,130245330,28-Aug-15,"7,395.80",Revenue,TOTTERDOWN,SP0001113
WANDSWORTH COUNCIL,ASC,SOCIAL SERVICES,PRIVATE,EXTERNAL RESIDENTIAL CARE,738690,130245330,28-Aug-15,"3,671.24",Revenue,TOTTERDOWN,SP0001113
WANDSWORTH COUNCIL,ASC,SOCIAL SERVICES,PRIVATE,EXTERNAL RESIDENTIAL CARE,729100,130245330,18-Aug-15,"6,186.62",Revenue,SUSSEX HEALTH CARE,SP0001115
WANDSWORTH COUNCIL,ASC,SOCIAL SERVICES,PRIVATE,EXTERNAL RESIDENTIAL CARE,730565,130245330,19-Aug-15,"7,342.12",Revenue,SUSSEX HEALTH CARE,SP0001115
WANDSWORTH COUNCIL,ASC,SOCIAL SERVICES,PRIVATE,EXTERNAL RESIDENTIAL CARE,730594,130245330,19-Aug-15,"6,916.63",Revenue,LONDON CARE PARTNERSHIP LTD,SP0001138
WANDSWORTH COUNCIL,ASC,SOCIAL SERVICES,PRIVATE,EXTERNAL RESIDENTIAL CARE,730595,130245330,19-Aug-15,"8,835.00",Revenue,LONDON CARE PARTNERSHIP LTD,SP0001138
WANDSWORTH COUNCIL,ASC,SOCIAL SERVICES,PRIVATE,EXTERNAL RESIDENTIAL CARE,730596,130245330,19-Aug-15,"8,192.86",Revenue,LONDON CARE PARTNERSHIP LTD,SP0001138
WANDSWORTH COUNCIL,ASC,SOCIAL SERVICES,PRIVATE,EXTERNAL RESIDENTIAL CARE,730597,130245330,19-Aug-15,"8,303.57",Revenue,LONDON CARE PARTNERSHIP LTD,SP0001138
WANDSWORTH COUNCIL,ASC,SOCIAL SERVICES,PRIVATE,EXTERNAL RESIDENTIAL CARE,730598,130245330,19-Aug-15,"8,303.57",Revenue,LONDON CARE PARTNERSHIP LTD,SP0001138
WANDSWORTH COUNCIL,ASC,SOCIAL SERVICES,PRIVATE,EXTERNAL RESIDENTIAL CARE,726627,130245330,14-Aug-15,"6,616.96",Revenue,CHOICE CARE GROUP,SP0001367
WANDSWORTH COUNCIL,ASC,SOCIAL SERVICES,PRIVATE,EXTERNAL RESIDENTIAL CARE,725079,130245330,13-Aug-15,"6,679.26",Revenue,HOME FROM HOME CARE LIMITED,SP0001373
WANDSWORTH COUNCIL,ASC,SOCIAL SERVICES,PRIVATE,EXTERNAL RESIDENTIAL CARE,730577,130245330,19-Aug-15,"4,967.48",Revenue,LARKFIELD HALL LTD T/A PEPENBURY,SP0001378
WANDSWORTH COUNCIL,ASC,SOCIAL SERVICES,PRIVATE,EXTERNAL RESIDENTIAL CARE,726618,130245330,14-Aug-15,"8,500.00",Revenue,MIGHOUSE RESIDENTIAL CARE HOME LTD,SP0001402
WANDSWORTH COUNCIL,ASC,SOCIAL SERVICES,PRIVATE,EXTERNAL RESIDENTIAL CARE,725088,130245330,13-Aug-15,"8,784.65",Revenue,ROOKERY HOVE PRIORY,SP0001498
WANDSWORTH COUNCIL,ASC,SOCIAL SERVICES,PRIVATE,EXTERNAL RESIDENTIAL CARE,726629,130245330,14-Aug-15,"7,523.88",Revenue,MCCH SOCIETY LIMITED,SP0001531
WANDSWORTH COUNCIL,ASC,SOCIAL SERVICES,PRIVATE,EXTERNAL RESIDENTIAL CARE,726630,130245330,14-Aug-15,"7,523.88",Revenue,MCCH SOCIETY LIMITED,SP0001531
WANDSWORTH COUNCIL,ASC,SOCIAL SERVICES,PRIVATE,EXTERNAL RESIDENTIAL CARE,726631,130245330,14-Aug-15,"7,523.88",Revenue,MCCH SOCIETY LIMITED,SP0001531
WANDSWORTH COUNCIL,ASC,SOCIAL SERVICES,PRIVATE,EXTERNAL RESIDENTIAL CARE,726632,130245330,14-Aug-15,"7,523.88",Revenue,MCCH SOCIETY LIMITED,SP0001531
WANDSWORTH COUNCIL,ASC,SOCIAL SERVICES,PRIVATE,EXTERNAL RESIDENTIAL CARE,728817,130245330,18-Aug-15,"3,631.95",Revenue,CARE UNLIMITED GROUP LTD,SP0001575
WANDSWORTH COUNCIL,ASC,SOCIAL SERVICES,PRIVATE,EXTERNAL RESIDENTIAL CARE,725086,130245330,13-Aug-15,"4,383.40",Revenue,NUTLEY HALL LTD,SP0001581
WANDSWORTH COUNCIL,ASC,SOCIAL SERVICES,PRIVATE,EXTERNAL RESIDENTIAL CARE,728819,130245330,18-Aug-15,"16,385.71",Revenue,CONDOVER COLLEGE LTD,SP0001641
WANDSWORTH COUNCIL,ASC,SOCIAL SERVICES,PRIVATE,EXTERNAL RESIDENTIAL CARE,728790,130245330,18-Aug-15,"8,532.57",Revenue,ACH OF LONDON LLP,SP0001688
WANDSWORTH COUNCIL,ASC,SOCIAL SERVICES,PRIVATE,EXTERNAL RESIDENTIAL CARE,728791,130245330,18-Aug-15,"5,095.91",Revenue,ACH OF LONDON LLP,SP0001688
WANDSWORTH COUNCIL,ASC,SOCIAL SERVICES,PRIVATE,EXTERNAL RESIDENTIAL CARE,718280,130245330,04-Aug-15,"10,219.46",Revenue,SALISBURY SUPPORT 4 AUTISM LTD,SP0001691
WANDSWORTH COUNCIL,ASC,SOCIAL SERVICES,PRIVATE,EXTERNAL RESIDENTIAL CARE,734522,130245330,25-Aug-15,"7,581.49",Revenue,PATHWAY HEALTHCARE,SP0001779
WANDSWORTH COUNCIL,ASC,SOCIAL SERVICES,PRIVATE,EXTERNAL RESIDENTIAL CARE,734523,130245330,25-Aug-15,"7,134.21",Revenue,PATHWAY HEALTHCARE,SP0001779
WANDSWORTH COUNCIL,ASC,SOCIAL SERVICES,PRIVATE,EXTERNAL RESIDENTIAL CARE,726616,130245330,14-Aug-15,"6,408.96",Revenue,THE BRANDON TRUST,SP0005337
WANDSWORTH COUNCIL,ASC,SOCIAL SERVICES,PRIVATE,EXTERNAL RESIDENTIAL CARE,734521,130245330,25-Aug-15,"2,755.36",Revenue,HASTINGS & BEXHILL MENCAP SOCIETY,SP0005380
WANDSWORTH COUNCIL,ASC,SOCIAL SERVICES,PRIVATE,EXTERNAL RESIDENTIAL CARE,728807,130245330,18-Aug-15,"3,469.00",Revenue,CSS LTD T/A  THF CARE ESTATES LTD,SP0005682
WANDSWORTH COUNCIL,ASC,SOCIAL SERVICES,PRIVATE,EXTERNAL RESIDENTIAL CARE,729119,130245330,18-Aug-15,"3,469.00",Revenue,CSS LTD T/A  THF CARE ESTATES LTD,SP0005682
WANDSWORTH COUNCIL,ASC,SOCIAL SERVICES,PRIVATE,EXTERNAL RESIDENTIAL CARE,730581,130245330,19-Aug-15,"5,980.80",Revenue,ENHAM,SP0005845
WANDSWORTH COUNCIL,ASC,SOCIAL SERVICES,PRIVATE,EXTERNAL RESIDENTIAL CARE,733630,130245330,24-Aug-15,"7,501.72",Revenue,NORCREST (2000) HOME LTD,SP0008343
WANDSWORTH COUNCIL,ASC,SOCIAL SERVICES,PRIVATE,EXTERNAL RESIDENTIAL CARE,726752,130245330,14-Aug-15,"2,618.36",Revenue,COUNTRY COURT CARE,SP0009215
WANDSWORTH COUNCIL,ASC,SOCIAL SERVICES,PRIVATE,EXTERNAL RESIDENTIAL CARE,733609,130245330,24-Aug-15,"10,566.57",Revenue,SEQUENCE CARE GROUP,SP0009709
WANDSWORTH COUNCIL,ASC,SOCIAL SERVICES,PRIVATE,ONE TO ONE CARE,730842,130246220,19-Aug-15,"2,133.60",Revenue,RAINBOW MEDICAL SERVICES,SP0000037
WANDSWORTH COUNCIL,ASC,SOCIAL SERVICES,PRIVATE,ONE TO ONE CARE,730843,130246220,19-Aug-15,"1,477.40",Revenue,RAINBOW MEDICAL SERVICES,SP0000037
WANDSWORTH COUNCIL,ASC,SOCIAL SERVICES,PRIVATE,ONE TO ONE CARE,717046,130246220,03-Aug-15,979.69,Revenue,FRANCES TAYLOR FOUNDATION,SP0000142
WANDSWORTH COUNCIL,ASC,SOCIAL SERVICES,PRIVATE,ONE TO ONE CARE,730848,130246220,19-Aug-15,720.00,Revenue,THE CHESTNUTS,SP0000182
WANDSWORTH COUNCIL,ASC,SOCIAL SERVICES,PRIVATE,ONE TO ONE CARE,730849,130246220,19-Aug-15,576.00,Revenue,THE CHESTNUTS,SP0000182
WANDSWORTH COUNCIL,ASC,SOCIAL SERVICES,PRIVATE,ONE TO ONE CARE,732858,130246220,21-Aug-15,"1,619.00",Revenue,ASIAN ELDERS SUPPORT SCHEME,SP0000190
WANDSWORTH COUNCIL,ASC,SOCIAL SERVICES,PRIVATE,ONE TO ONE CARE,738826,130246220,28-Aug-15,648.83,Revenue,ST MARYS RESIDENTIAL HOME,SP0000215
WANDSWORTH COUNCIL,ASC,SOCIAL SERVICES,PRIVATE,ONE TO ONE CARE,728793,130246220,18-Aug-15,"1,963.85",Revenue,RESIDENTIAL COMMUNITY CARE,SP0000315
WANDSWORTH COUNCIL,ASC,SOCIAL SERVICES,PRIVATE,ONE TO ONE CARE,725166,130246220,13-Aug-15,"1,383.69",Revenue,VOYAGE CARE LTD,SP0000366
WANDSWORTH COUNCIL,ASC,SOCIAL SERVICES,PRIVATE,ONE TO ONE CARE,730812,130246220,19-Aug-15,"1,062.86",Revenue,VOYAGE CARE LTD,SP0000366
WANDSWORTH COUNCIL,ASC,SOCIAL SERVICES,PRIVATE,ONE TO ONE CARE,720437,130246220,06-Aug-15,"1,350.52",Revenue,MACINTYRE CARE,SP0000473
WANDSWORTH COUNCIL,ASC,SOCIAL SERVICES,PRIVATE,ONE TO ONE CARE,720438,130246220,06-Aug-15,"1,350.52",Revenue,MACINTYRE CARE,SP0000473
WANDSWORTH COUNCIL,ASC,SOCIAL SERVICES,PRIVATE,ONE TO ONE CARE,720439,130246220,06-Aug-15,"1,910.04",Revenue,MACINTYRE CARE,SP0000473
WANDSWORTH COUNCIL,ASC,SOCIAL SERVICES,PRIVATE,ONE TO ONE CARE,720440,130246220,06-Aug-15,"1,350.52",Revenue,MACINTYRE CARE,SP0000473
WANDSWORTH COUNCIL,ASC,SOCIAL SERVICES,PRIVATE,ONE TO ONE CARE,720441,130246220,06-Aug-15,694.56,Revenue,MACINTYRE CARE,SP0000473
WANDSWORTH COUNCIL,ASC,SOCIAL SERVICES,PRIVATE,ONE TO ONE CARE,720435,130246220,06-Aug-15,"1,327.95",Revenue,THE COMMUNITY CARE COMPANY UK LTD,SP0000576
WANDSWORTH COUNCIL,ASC,SOCIAL SERVICES,PRIVATE,ONE TO ONE CARE,720436,130246220,06-Aug-15,"1,164.40",Revenue,THE COMMUNITY CARE COMPANY UK LTD,SP0000576
WANDSWORTH COUNCIL,ASC,SOCIAL SERVICES,PRIVATE,ONE TO ONE CARE,725161,130246220,13-Aug-15,"1,327.95",Revenue,THE COMMUNITY CARE COMPANY UK LTD,SP0000576
WANDSWORTH COUNCIL,ASC,SOCIAL SERVICES,PRIVATE,ONE TO ONE CARE,726698,130246220,14-Aug-15,"1,147.64",Revenue,THE COMMUNITY CARE COMPANY UK LTD,SP0000576
WANDSWORTH COUNCIL,ASC,SOCIAL SERVICES,PRIVATE,ONE TO ONE CARE,729008,130246220,18-Aug-15,"1,308.86",Revenue,THE COMMUNITY CARE COMPANY UK LTD,SP0000576
WANDSWORTH COUNCIL,ASC,SOCIAL SERVICES,PRIVATE,ONE TO ONE CARE,718535,130246220,04-Aug-15,"2,459.52",Revenue,METROPOLITAN HOUSING TRUST,SP0000626
WANDSWORTH COUNCIL,ASC,SOCIAL SERVICES,PRIVATE,ONE TO ONE CARE,722731,130246220,11-Aug-15,"2,459.52",Revenue,METROPOLITAN HOUSING TRUST,SP0000626
WANDSWORTH COUNCIL,ASC,SOCIAL SERVICES,PRIVATE,ONE TO ONE CARE,722732,130246220,11-Aug-15,"2,459.52",Revenue,METROPOLITAN HOUSING TRUST,SP0000626
WANDSWORTH COUNCIL,ASC,SOCIAL SERVICES,PRIVATE,ONE TO ONE CARE,725046,130246220,13-Aug-15,"1,600.44",Revenue,CORICH COMMUNITY CARE LTD,SP0000915
WANDSWORTH COUNCIL,ASC,SOCIAL SERVICES,PRIVATE,ONE TO ONE CARE,729009,130246220,18-Aug-15,"2,884.77",Revenue,DOWNING (CHERTSEY ROAD) LTD,SP0000959
WANDSWORTH COUNCIL,ASC,SOCIAL SERVICES,PRIVATE,ONE TO ONE CARE,736039,130246220,26-Aug-15,"1,597.44",Revenue,TOTTERDOWN,SP0001113
WANDSWORTH COUNCIL,ASC,SOCIAL SERVICES,PRIVATE,ONE TO ONE CARE,734688,130246220,25-Aug-15,173.86,Revenue,FRONTIER SUPPORT SERVICES LTD,SP0001132
WANDSWORTH COUNCIL,ASC,SOCIAL SERVICES,PRIVATE,ONE TO ONE CARE,734692,130246220,25-Aug-15,708.24,Revenue,FRONTIER SUPPORT SERVICES LTD,SP0001132
WANDSWORTH COUNCIL,ASC,SOCIAL SERVICES,PRIVATE,ONE TO ONE CARE,729146,130246220,18-Aug-15,976.56,Revenue,HARROW MENCAP,SP0001347
WANDSWORTH COUNCIL,ASC,SOCIAL SERVICES,PRIVATE,ONE TO ONE CARE,730841,130246220,19-Aug-15,802.08,Revenue,LARKFIELD HALL LTD T/A PEPENBURY,SP0001378
WANDSWORTH COUNCIL,ASC,SOCIAL SERVICES,PRIVATE,ONE TO ONE CARE,729006,130246220,18-Aug-15,"2,018.10",Revenue,ACH OF LONDON LLP,SP0001688
WANDSWORTH COUNCIL,ASC,SOCIAL SERVICES,PRIVATE,ONE TO ONE CARE,728895,130246220,18-Aug-15,324.00,Revenue,THE BRANDON TRUST,SP0005337
WANDSWORTH COUNCIL,ASC,SOCIAL SERVICES,PRIVATE,ONE TO ONE CARE,728927,130246220,18-Aug-15,"1,987.20",Revenue,THE BRANDON TRUST,SP0005337
WANDSWORTH COUNCIL,ASC,SOCIAL SERVICES,PRIVATE,ONE TO ONE CARE,728928,130246220,18-Aug-15,"1,312.00",Revenue,THE BRANDON TRUST,SP0005337
WANDSWORTH COUNCIL,ASC,SOCIAL SERVICES,PRIVATE,ONE TO ONE CARE,728930,130246220,18-Aug-15,"2,450.88",Revenue,THE BRANDON TRUST,SP0005337
WANDSWORTH COUNCIL,ASC,SOCIAL SERVICES,PRIVATE,ONE TO ONE CARE,728979,130246220,18-Aug-15,600.04,Revenue,THE BRANDON TRUST,SP0005337
WANDSWORTH COUNCIL,ASC,SOCIAL SERVICES,PRIVATE,ONE TO ONE CARE,728991,130246220,18-Aug-15,331.20,Revenue,THE BRANDON TRUST,SP0005337
WANDSWORTH COUNCIL,ASC,SOCIAL SERVICES,PRIVATE,ONE TO ONE CARE,728993,130246220,18-Aug-15,331.20,Revenue,THE BRANDON TRUST,SP0005337
WANDSWORTH COUNCIL,ASC,SOCIAL SERVICES,VOL ASS,SUPPORTED HOUSING PROGRAMME,718536,130248030,04-Aug-15,"5,543.72",Revenue,NORWOOD SCHOOLS LTD,SP0000332
WANDSWORTH COUNCIL,ASC,SOCIAL SERVICES,VOL ASS,SUPPORTED HOUSING PROGRAMME,718883,130248030,04-Aug-15,"5,543.72",Revenue,NORWOOD SCHOOLS LTD,SP0000332
WANDSWORTH COUNCIL,ASC,SOCIAL SERVICES,VOL ASS,SUPPORTED HOUSING PROGRAMME,717234,130248030,03-Aug-15,"7,336.00",Revenue,LIFEWAYS COMMUNITY CARE LTD,SP0000364
WANDSWORTH COUNCIL,ASC,SOCIAL SERVICES,VOL ASS,SUPPORTED HOUSING PROGRAMME,729152,130248030,18-Aug-15,"3,885.44",Revenue,LIFEWAYS COMMUNITY CARE LTD,SP0000364
WANDSWORTH COUNCIL,ASC,SOCIAL SERVICES,VOL ASS,SUPPORTED HOUSING PROGRAMME,729153,130248030,18-Aug-15,"2,596.04",Revenue,LIFEWAYS COMMUNITY CARE LTD,SP0000364
WANDSWORTH COUNCIL,ASC,SOCIAL SERVICES,VOL ASS,SUPPORTED HOUSING PROGRAMME,729154,130248030,18-Aug-15,"2,166.24",Revenue,LIFEWAYS COMMUNITY CARE LTD,SP0000364
WANDSWORTH COUNCIL,ASC,SOCIAL SERVICES,VOL ASS,SUPPORTED HOUSING PROGRAMME,729155,130248030,18-Aug-15,"2,227.64",Revenue,LIFEWAYS COMMUNITY CARE LTD,SP0000364
WANDSWORTH COUNCIL,ASC,SOCIAL SERVICES,VOL ASS,SUPPORTED HOUSING PROGRAMME,729156,130248030,18-Aug-15,"1,982.04",Revenue,LIFEWAYS COMMUNITY CARE LTD,SP0000364
WANDSWORTH COUNCIL,ASC,SOCIAL SERVICES,VOL ASS,SUPPORTED HOUSING PROGRAMME,729157,130248030,18-Aug-15,"2,289.04",Revenue,LIFEWAYS COMMUNITY CARE LTD,SP0000364
WANDSWORTH COUNCIL,ASC,SOCIAL SERVICES,VOL ASS,SUPPORTED HOUSING PROGRAMME,729158,130248030,18-Aug-15,"1,982.04",Revenue,LIFEWAYS COMMUNITY CARE LTD,SP0000364
WANDSWORTH COUNCIL,ASC,SOCIAL SERVICES,VOL ASS,SUPPORTED HOUSING PROGRAMME,729159,130248030,18-Aug-15,"2,227.64",Revenue,LIFEWAYS COMMUNITY CARE LTD,SP0000364
WANDSWORTH COUNCIL,ASC,SOCIAL SERVICES,VOL ASS,SUPPORTED HOUSING PROGRAMME,729160,130248030,18-Aug-15,"2,411.84",Revenue,LIFEWAYS COMMUNITY CARE LTD,SP0000364
WANDSWORTH COUNCIL,ASC,SOCIAL SERVICES,VOL ASS,SUPPORTED HOUSING PROGRAMME,729161,130248030,18-Aug-15,"1,736.44",Revenue,LIFEWAYS COMMUNITY CARE LTD,SP0000364
WANDSWORTH COUNCIL,ASC,SOCIAL SERVICES,VOL ASS,SUPPORTED HOUSING PROGRAMME,729162,130248030,18-Aug-15,"1,920.64",Revenue,LIFEWAYS COMMUNITY CARE LTD,SP0000364
WANDSWORTH COUNCIL,ASC,SOCIAL SERVICES,VOL ASS,SUPPORTED HOUSING PROGRAMME,729163,130248030,18-Aug-15,"3,210.04",Revenue,LIFEWAYS COMMUNITY CARE LTD,SP0000364
WANDSWORTH COUNCIL,ASC,SOCIAL SERVICES,VOL ASS,SUPPORTED HOUSING PROGRAMME,729164,130248030,18-Aug-15,"1,142.40",Revenue,LIFEWAYS COMMUNITY CARE LTD,SP0000364
WANDSWORTH COUNCIL,ASC,SOCIAL SERVICES,VOL ASS,SUPPORTED HOUSING PROGRAMME,729167,130248030,18-Aug-15,"3,335.96",Revenue,LIFEWAYS COMMUNITY CARE LTD,SP0000364
WANDSWORTH COUNCIL,ASC,SOCIAL SERVICES,VOL ASS,SUPPORTED HOUSING PROGRAMME,729168,130248030,18-Aug-15,"2,394.20",Revenue,LIFEWAYS COMMUNITY CARE LTD,SP0000364
WANDSWORTH COUNCIL,ASC,SOCIAL SERVICES,VOL ASS,SUPPORTED HOUSING PROGRAMME,729169,130248030,18-Aug-15,"2,551.16",Revenue,LIFEWAYS COMMUNITY CARE LTD,SP0000364
WANDSWORTH COUNCIL,ASC,SOCIAL SERVICES,VOL ASS,SUPPORTED HOUSING PROGRAMME,729170,130248030,18-Aug-15,"3,335.96",Revenue,LIFEWAYS COMMUNITY CARE LTD,SP0000364
WANDSWORTH COUNCIL,ASC,SOCIAL SERVICES,VOL ASS,SUPPORTED HOUSING PROGRAMME,729171,130248030,18-Aug-15,"2,603.48",Revenue,LIFEWAYS COMMUNITY CARE LTD,SP0000364
WANDSWORTH COUNCIL,ASC,SOCIAL SERVICES,VOL ASS,SUPPORTED HOUSING PROGRAMME,729172,130248030,18-Aug-15,"2,969.72",Revenue,LIFEWAYS COMMUNITY CARE LTD,SP0000364
WANDSWORTH COUNCIL,ASC,SOCIAL SERVICES,VOL ASS,SUPPORTED HOUSING PROGRAMME,729173,130248030,18-Aug-15,"2,341.88",Revenue,LIFEWAYS COMMUNITY CARE LTD,SP0000364
WANDSWORTH COUNCIL,ASC,SOCIAL SERVICES,VOL ASS,SUPPORTED HOUSING PROGRAMME,729174,130248030,18-Aug-15,"2,551.16",Revenue,LIFEWAYS COMMUNITY CARE LTD,SP0000364
WANDSWORTH COUNCIL,ASC,SOCIAL SERVICES,VOL ASS,SUPPORTED HOUSING PROGRAMME,729175,130248030,18-Aug-15,"1,444.56",Revenue,LIFEWAYS COMMUNITY CARE LTD,SP0000364
WANDSWORTH COUNCIL,ASC,SOCIAL SERVICES,VOL ASS,SUPPORTED HOUSING PROGRAMME,729176,130248030,18-Aug-15,"2,242.76",Revenue,LIFEWAYS COMMUNITY CARE LTD,SP0000364
WANDSWORTH COUNCIL,ASC,SOCIAL SERVICES,VOL ASS,SUPPORTED HOUSING PROGRAMME,729177,130248030,18-Aug-15,"2,025.24",Revenue,LIFEWAYS COMMUNITY CARE LTD,SP0000364
WANDSWORTH COUNCIL,ASC,SOCIAL SERVICES,VOL ASS,SUPPORTED HOUSING PROGRAMME,729178,130248030,18-Aug-15,"2,025.24",Revenue,LIFEWAYS COMMUNITY CARE LTD,SP0000364
WANDSWORTH COUNCIL,ASC,SOCIAL SERVICES,VOL ASS,SUPPORTED HOUSING PROGRAMME,729179,130248030,18-Aug-15,"2,025.24",Revenue,LIFEWAYS COMMUNITY CARE LTD,SP0000364
WANDSWORTH COUNCIL,ASC,SOCIAL SERVICES,VOL ASS,SUPPORTED HOUSING PROGRAMME,729180,130248030,18-Aug-15,"2,244.28",Revenue,LIFEWAYS COMMUNITY CARE LTD,SP0000364
WANDSWORTH COUNCIL,ASC,SOCIAL SERVICES,VOL ASS,SUPPORTED HOUSING PROGRAMME,729181,130248030,18-Aug-15,"2,518.08",Revenue,LIFEWAYS COMMUNITY CARE LTD,SP0000364
WANDSWORTH COUNCIL,ASC,SOCIAL SERVICES,VOL ASS,SUPPORTED HOUSING PROGRAMME,729182,130248030,18-Aug-15,"2,025.24",Revenue,LIFEWAYS COMMUNITY CARE LTD,SP0000364
WANDSWORTH COUNCIL,ASC,SOCIAL SERVICES,VOL ASS,SUPPORTED HOUSING PROGRAMME,729183,130248030,18-Aug-15,"2,244.28",Revenue,LIFEWAYS COMMUNITY CARE LTD,SP0000364
WANDSWORTH COUNCIL,ASC,SOCIAL SERVICES,VOL ASS,SUPPORTED HOUSING PROGRAMME,729184,130248030,18-Aug-15,"2,345.32",Revenue,LIFEWAYS COMMUNITY CARE LTD,SP0000364
WANDSWORTH COUNCIL,ASC,SOCIAL SERVICES,VOL ASS,SUPPORTED HOUSING PROGRAMME,729185,130248030,18-Aug-15,"2,498.80",Revenue,LIFEWAYS COMMUNITY CARE LTD,SP0000364
WANDSWORTH COUNCIL,ASC,SOCIAL SERVICES,VOL ASS,SUPPORTED HOUSING PROGRAMME,729186,130248030,18-Aug-15,"2,867.20",Revenue,LIFEWAYS COMMUNITY CARE LTD,SP0000364
WANDSWORTH COUNCIL,ASC,SOCIAL SERVICES,VOL ASS,SUPPORTED HOUSING PROGRAMME,737287,130248030,27-Aug-15,"1,687.76",Revenue,C M CARE LTD,SP0000455
WANDSWORTH COUNCIL,ASC,SOCIAL SERVICES,VOL ASS,SUPPORTED HOUSING PROGRAMME,732860,130248030,21-Aug-15,"2,500.00",Revenue,CAREOLINE,SP0000483
WANDSWORTH COUNCIL,ASC,SOCIAL SERVICES,VOL ASS,SUPPORTED HOUSING PROGRAMME,732861,130248030,21-Aug-15,"2,500.00",Revenue,CAREOLINE,SP0000483
WANDSWORTH COUNCIL,ASC,SOCIAL SERVICES,VOL ASS,SUPPORTED HOUSING PROGRAMME,732862,130248030,21-Aug-15,"1,250.00",Revenue,CAREOLINE,SP0000483
WANDSWORTH COUNCIL,ASC,SOCIAL SERVICES,VOL ASS,SUPPORTED HOUSING PROGRAMME,732863,130248030,21-Aug-15,"1,250.00",Revenue,CAREOLINE,SP0000483
WANDSWORTH COUNCIL,ASC,SOCIAL SERVICES,VOL ASS,SUPPORTED HOUSING PROGRAMME,734593,130248030,25-Aug-15,"1,250.00",Revenue,CAREOLINE,SP0000483
WANDSWORTH COUNCIL,ASC,SOCIAL SERVICES,VOL ASS,SUPPORTED HOUSING PROGRAMME,734594,130248030,25-Aug-15,"1,250.00",Revenue,CAREOLINE,SP0000483
WANDSWORTH COUNCIL,ASC,SOCIAL SERVICES,VOL ASS,SUPPORTED HOUSING PROGRAMME,734595,130248030,25-Aug-15,"1,250.00",Revenue,CAREOLINE,SP0000483
WANDSWORTH COUNCIL,ASC,SOCIAL SERVICES,VOL ASS,SUPPORTED HOUSING PROGRAMME,722735,130248030,11-Aug-15,"1,800.00",Revenue,ACT TOO LTD,SP0000855
WANDSWORTH COUNCIL,ASC,SOCIAL SERVICES,VOL ASS,SUPPORTED HOUSING PROGRAMME,722738,130248030,11-Aug-15,"11,760.00",Revenue,ACT TOO LTD,SP0000855
WANDSWORTH COUNCIL,ASC,SOCIAL SERVICES,VOL ASS,SUPPORTED HOUSING PROGRAMME,722740,130248030,11-Aug-15,"1,260.00",Revenue,ACT TOO LTD,SP0000855
WANDSWORTH COUNCIL,ASC,SOCIAL SERVICES,VOL ASS,SUPPORTED HOUSING PROGRAMME,722741,130248030,11-Aug-15,930.00,Revenue,ACT TOO LTD,SP0000855
WANDSWORTH COUNCIL,ASC,SOCIAL SERVICES,VOL ASS,SUPPORTED HOUSING PROGRAMME,722742,130248030,11-Aug-15,"1,440.00",Revenue,ACT TOO LTD,SP0000855
WANDSWORTH COUNCIL,ASC,SOCIAL SERVICES,VOL ASS,SUPPORTED HOUSING PROGRAMME,722743,130248030,11-Aug-15,"1,320.00",Revenue,ACT TOO LTD,SP0000855
WANDSWORTH COUNCIL,ASC,SOCIAL SERVICES,VOL ASS,SUPPORTED HOUSING PROGRAMME,722744,130248030,11-Aug-15,990.00,Revenue,ACT TOO LTD,SP0000855
WANDSWORTH COUNCIL,ASC,SOCIAL SERVICES,VOL ASS,SUPPORTED HOUSING PROGRAMME,722746,130248030,11-Aug-15,720.00,Revenue,ACT TOO LTD,SP0000855
WANDSWORTH COUNCIL,ASC,SOCIAL SERVICES,VOL ASS,SUPPORTED HOUSING PROGRAMME,722747,130248030,11-Aug-15,"1,710.00",Revenue,ACT TOO LTD,SP0000855
WANDSWORTH COUNCIL,ASC,SOCIAL SERVICES,VOL ASS,SUPPORTED HOUSING PROGRAMME,722750,130248030,11-Aug-15,"2,160.00",Revenue,ACT TOO LTD,SP0000855
WANDSWORTH COUNCIL,ASC,SOCIAL SERVICES,VOL ASS,SUPPORTED HOUSING PROGRAMME,722751,130248030,11-Aug-15,"1,350.00",Revenue,ACT TOO LTD,SP0000855
WANDSWORTH COUNCIL,ASC,SOCIAL SERVICES,VOL ASS,SUPPORTED HOUSING PROGRAMME,722755,130248030,11-Aug-15,700.00,Revenue,ACT TOO LTD,SP0000855
WANDSWORTH COUNCIL,ASC,SOCIAL SERVICES,VOL ASS,SUPPORTED HOUSING PROGRAMME,722763,130248030,11-Aug-15,"1,568.00",Revenue,ACT TOO LTD,SP0000855
WANDSWORTH COUNCIL,ASC,SOCIAL SERVICES,VOL ASS,SUPPORTED HOUSING PROGRAMME,722764,130248030,11-Aug-15,784.00,Revenue,ACT TOO LTD,SP0000855
WANDSWORTH COUNCIL,ASC,SOCIAL SERVICES,VOL ASS,SUPPORTED HOUSING PROGRAMME,725163,130248030,13-Aug-15,"5,274.03",Revenue,ST ELIZABETHS CENTRE,SP0001019
WANDSWORTH COUNCIL,ASC,SOCIAL SERVICES,VOL ASS,SUPPORTED HOUSING PROGRAMME,734688,130248030,25-Aug-15,"1,373.18",Revenue,FRONTIER SUPPORT SERVICES LTD,SP0001132
WANDSWORTH COUNCIL,ASC,SOCIAL SERVICES,VOL ASS,SUPPORTED HOUSING PROGRAMME,734689,130248030,25-Aug-15,"1,685.92",Revenue,FRONTIER SUPPORT SERVICES LTD,SP0001132
WANDSWORTH COUNCIL,ASC,SOCIAL SERVICES,VOL ASS,SUPPORTED HOUSING PROGRAMME,734691,130248030,25-Aug-15,"1,251.12",Revenue,FRONTIER SUPPORT SERVICES LTD,SP0001132
WANDSWORTH COUNCIL,ASC,SOCIAL SERVICES,VOL ASS,SUPPORTED HOUSING PROGRAMME,734692,130248030,25-Aug-15,"1,097.60",Revenue,FRONTIER SUPPORT SERVICES LTD,SP0001132
WANDSWORTH COUNCIL,ASC,SOCIAL SERVICES,VOL ASS,SUPPORTED HOUSING PROGRAMME,734693,130248030,25-Aug-15,"1,533.00",Revenue,FRONTIER SUPPORT SERVICES LTD,SP0001132
WANDSWORTH COUNCIL,ASC,SOCIAL SERVICES,VOL ASS,SUPPORTED HOUSING PROGRAMME,734694,130248030,25-Aug-15,"1,864.88",Revenue,FRONTIER SUPPORT SERVICES LTD,SP0001132
WANDSWORTH COUNCIL,ASC,SOCIAL SERVICES,VOL ASS,SUPPORTED HOUSING PROGRAMME,734695,130248030,25-Aug-15,"1,353.32",Revenue,FRONTIER SUPPORT SERVICES LTD,SP0001132
WANDSWORTH COUNCIL,ASC,SOCIAL SERVICES,VOL ASS,SUPPORTED HOUSING PROGRAMME,734696,130248030,25-Aug-15,"1,353.32",Revenue,FRONTIER SUPPORT SERVICES LTD,SP0001132
WANDSWORTH COUNCIL,ASC,SOCIAL SERVICES,VOL ASS,SUPPORTED HOUSING PROGRAMME,734697,130248030,25-Aug-15,"1,097.52",Revenue,FRONTIER SUPPORT SERVICES LTD,SP0001132
WANDSWORTH COUNCIL,ASC,SOCIAL SERVICES,VOL ASS,SUPPORTED HOUSING PROGRAMME,734698,130248030,25-Aug-15,"1,097.56",Revenue,FRONTIER SUPPORT SERVICES LTD,SP0001132
WANDSWORTH COUNCIL,ASC,SOCIAL SERVICES,VOL ASS,SUPPORTED HOUSING PROGRAMME,734699,130248030,25-Aug-15,"15,870.84",Revenue,FRONTIER SUPPORT SERVICES LTD,SP0001132
WANDSWORTH COUNCIL,ASC,SOCIAL SERVICES,VOL ASS,SUPPORTED HOUSING PROGRAMME,734700,130248030,25-Aug-15,657.80,Revenue,FRONTIER SUPPORT SERVICES LTD,SP0001132
WANDSWORTH COUNCIL,ASC,SOCIAL SERVICES,VOL ASS,SUPPORTED HOUSING PROGRAMME,736040,130248030,26-Aug-15,"13,313.52",Revenue,FRONTIER SUPPORT SERVICES LTD,SP0001132
WANDSWORTH COUNCIL,ASC,SOCIAL SERVICES,VOL ASS,SUPPORTED HOUSING PROGRAMME,736042,130248030,26-Aug-15,"2,509.20",Revenue,FRONTIER SUPPORT SERVICES LTD,SP0001132
WANDSWORTH COUNCIL,ASC,SOCIAL SERVICES,VOL ASS,SUPPORTED HOUSING PROGRAMME,725170,130248030,13-Aug-15,"5,937.12",Revenue,INDEPENDENCE HOMES LTD,SP0004378
WANDSWORTH COUNCIL,ASC,SOCIAL SERVICES,VOL ASS,SUPPORTED HOUSING PROGRAMME,725171,130248030,13-Aug-15,"6,215.81",Revenue,INDEPENDENCE HOMES LTD,SP0004378
WANDSWORTH COUNCIL,ASC,,VOL ASS,SUPPORTED HOUSING PROGRAMME,719756,130248030,06-Aug-15,"10,557.40",Revenue,THE BRANDON TRUST,SP0005337
WANDSWORTH COUNCIL,ASC,SOCIAL SERVICES,VOL ASS,SUPPORTED HOUSING PROGRAMME,728890,130248030,18-Aug-15,"1,551.32",Revenue,THE BRANDON TRUST,SP0005337
WANDSWORTH COUNCIL,ASC,SOCIAL SERVICES,VOL ASS,SUPPORTED HOUSING PROGRAMME,728891,130248030,18-Aug-15,"1,504.84",Revenue,THE BRANDON TRUST,SP0005337
WANDSWORTH COUNCIL,ASC,SOCIAL SERVICES,VOL ASS,SUPPORTED HOUSING PROGRAMME,728892,130248030,18-Aug-15,"1,504.84",Revenue,THE BRANDON TRUST,SP0005337
WANDSWORTH COUNCIL,ASC,SOCIAL SERVICES,VOL ASS,SUPPORTED HOUSING PROGRAMME,728893,130248030,18-Aug-15,"1,936.52",Revenue,THE BRANDON TRUST,SP0005337
WANDSWORTH COUNCIL,ASC,SOCIAL SERVICES,VOL ASS,SUPPORTED HOUSING PROGRAMME,728894,130248030,18-Aug-15,"7,764.16",Revenue,THE BRANDON TRUST,SP0005337
WANDSWORTH COUNCIL,ASC,SOCIAL SERVICES,VOL ASS,SUPPORTED HOUSING PROGRAMME,728895,130248030,18-Aug-15,"2,327.04",Revenue,THE BRANDON TRUST,SP0005337
WANDSWORTH COUNCIL,ASC,SOCIAL SERVICES,VOL ASS,SUPPORTED HOUSING PROGRAMME,728896,130248030,18-Aug-15,"2,969.16",Revenue,THE BRANDON TRUST,SP0005337
WANDSWORTH COUNCIL,ASC,SOCIAL SERVICES,VOL ASS,SUPPORTED HOUSING PROGRAMME,728897,130248030,18-Aug-15,"2,979.92",Revenue,THE BRANDON TRUST,SP0005337
WANDSWORTH COUNCIL,ASC,SOCIAL SERVICES,VOL ASS,SUPPORTED HOUSING PROGRAMME,728898,130248030,18-Aug-15,"2,186.04",Revenue,THE BRANDON TRUST,SP0005337
WANDSWORTH COUNCIL,ASC,SOCIAL SERVICES,VOL ASS,SUPPORTED HOUSING PROGRAMME,728899,130248030,18-Aug-15,"2,160.00",Revenue,THE BRANDON TRUST,SP0005337
WANDSWORTH COUNCIL,ASC,SOCIAL SERVICES,VOL ASS,SUPPORTED HOUSING PROGRAMME,728900,130248030,18-Aug-15,"1,125.08",Revenue,THE BRANDON TRUST,SP0005337
WANDSWORTH COUNCIL,ASC,SOCIAL SERVICES,VOL ASS,SUPPORTED HOUSING PROGRAMME,728901,130248030,18-Aug-15,"1,155.88",Revenue,THE BRANDON TRUST,SP0005337
WANDSWORTH COUNCIL,ASC,SOCIAL SERVICES,VOL ASS,SUPPORTED HOUSING PROGRAMME,728902,130248030,18-Aug-15,"1,854.72",Revenue,THE BRANDON TRUST,SP0005337
WANDSWORTH COUNCIL,ASC,SOCIAL SERVICES,VOL ASS,SUPPORTED HOUSING PROGRAMME,728903,130248030,18-Aug-15,"1,380.64",Revenue,THE BRANDON TRUST,SP0005337
WANDSWORTH COUNCIL,ASC,SOCIAL SERVICES,VOL ASS,SUPPORTED HOUSING PROGRAMME,728904,130248030,18-Aug-15,"1,466.16",Revenue,THE BRANDON TRUST,SP0005337
WANDSWORTH COUNCIL,ASC,SOCIAL SERVICES,VOL ASS,SUPPORTED HOUSING PROGRAMME,728905,130248030,18-Aug-15,"1,513.68",Revenue,THE BRANDON TRUST,SP0005337
WANDSWORTH COUNCIL,ASC,SOCIAL SERVICES,VOL ASS,SUPPORTED HOUSING PROGRAMME,728906,130248030,18-Aug-15,"1,513.68",Revenue,THE BRANDON TRUST,SP0005337
WANDSWORTH COUNCIL,ASC,SOCIAL SERVICES,VOL ASS,SUPPORTED HOUSING PROGRAMME,728907,130248030,18-Aug-15,"2,856.96",Revenue,THE BRANDON TRUST,SP0005337
WANDSWORTH COUNCIL,ASC,SOCIAL SERVICES,VOL ASS,SUPPORTED HOUSING PROGRAMME,728908,130248030,18-Aug-15,"2,260.80",Revenue,THE BRANDON TRUST,SP0005337
WANDSWORTH COUNCIL,ASC,SOCIAL SERVICES,VOL ASS,SUPPORTED HOUSING PROGRAMME,728909,130248030,18-Aug-15,"3,453.12",Revenue,THE BRANDON TRUST,SP0005337
WANDSWORTH COUNCIL,ASC,SOCIAL SERVICES,VOL ASS,SUPPORTED HOUSING PROGRAMME,728910,130248030,18-Aug-15,"2,790.72",Revenue,THE BRANDON TRUST,SP0005337
WANDSWORTH COUNCIL,ASC,SOCIAL SERVICES,VOL ASS,SUPPORTED HOUSING PROGRAMME,728912,130248030,18-Aug-15,"1,886.40",Revenue,THE BRANDON TRUST,SP0005337
WANDSWORTH COUNCIL,ASC,SOCIAL SERVICES,VOL ASS,SUPPORTED HOUSING PROGRAMME,728913,130248030,18-Aug-15,"1,797.12",Revenue,THE BRANDON TRUST,SP0005337
WANDSWORTH COUNCIL,ASC,SOCIAL SERVICES,VOL ASS,SUPPORTED HOUSING PROGRAMME,728914,130248030,18-Aug-15,"2,062.08",Revenue,THE BRANDON TRUST,SP0005337
WANDSWORTH COUNCIL,ASC,SOCIAL SERVICES,VOL ASS,SUPPORTED HOUSING PROGRAMME,728915,130248030,18-Aug-15,"3,520.16",Revenue,THE BRANDON TRUST,SP0005337
WANDSWORTH COUNCIL,ASC,SOCIAL SERVICES,VOL ASS,SUPPORTED HOUSING PROGRAMME,728916,130248030,18-Aug-15,"2,580.17",Revenue,THE BRANDON TRUST,SP0005337
WANDSWORTH COUNCIL,ASC,SOCIAL SERVICES,VOL ASS,SUPPORTED HOUSING PROGRAMME,728917,130248030,18-Aug-15,"3,453.12",Revenue,THE BRANDON TRUST,SP0005337
WANDSWORTH COUNCIL,ASC,SOCIAL SERVICES,VOL ASS,SUPPORTED HOUSING PROGRAMME,728918,130248030,18-Aug-15,"1,929.60",Revenue,THE BRANDON TRUST,SP0005337
WANDSWORTH COUNCIL,ASC,SOCIAL SERVICES,VOL ASS,SUPPORTED HOUSING PROGRAMME,728919,130248030,18-Aug-15,"2,923.88",Revenue,THE BRANDON TRUST,SP0005337
WANDSWORTH COUNCIL,ASC,SOCIAL SERVICES,VOL ASS,SUPPORTED HOUSING PROGRAMME,728920,130248030,18-Aug-15,"4,687.20",Revenue,THE BRANDON TRUST,SP0005337
WANDSWORTH COUNCIL,ASC,SOCIAL SERVICES,VOL ASS,SUPPORTED HOUSING PROGRAMME,728921,130248030,18-Aug-15,"4,688.56",Revenue,THE BRANDON TRUST,SP0005337
WANDSWORTH COUNCIL,ASC,SOCIAL SERVICES,VOL ASS,SUPPORTED HOUSING PROGRAMME,728922,130248030,18-Aug-15,"3,320.64",Revenue,THE BRANDON TRUST,SP0005337
WANDSWORTH COUNCIL,ASC,SOCIAL SERVICES,VOL ASS,SUPPORTED HOUSING PROGRAMME,728923,130248030,18-Aug-15,"3,702.20",Revenue,THE BRANDON TRUST,SP0005337
WANDSWORTH COUNCIL,ASC,SOCIAL SERVICES,VOL ASS,SUPPORTED HOUSING PROGRAMME,728924,130248030,18-Aug-15,"1,465.92",Revenue,THE BRANDON TRUST,SP0005337
WANDSWORTH COUNCIL,ASC,SOCIAL SERVICES,VOL ASS,SUPPORTED HOUSING PROGRAMME,728925,130248030,18-Aug-15,"3,718.08",Revenue,THE BRANDON TRUST,SP0005337
WANDSWORTH COUNCIL,ASC,SOCIAL SERVICES,VOL ASS,SUPPORTED HOUSING PROGRAMME,728926,130248030,18-Aug-15,"3,121.92",Revenue,THE BRANDON TRUST,SP0005337
WANDSWORTH COUNCIL,ASC,SOCIAL SERVICES,VOL ASS,SUPPORTED HOUSING PROGRAMME,728927,130248030,18-Aug-15,"5,688.08",Revenue,THE BRANDON TRUST,SP0005337
WANDSWORTH COUNCIL,ASC,SOCIAL SERVICES,VOL ASS,SUPPORTED HOUSING PROGRAMME,728928,130248030,18-Aug-15,"5,983.44",Revenue,THE BRANDON TRUST,SP0005337
WANDSWORTH COUNCIL,ASC,SOCIAL SERVICES,VOL ASS,SUPPORTED HOUSING PROGRAMME,728929,130248030,18-Aug-15,"4,827.60",Revenue,THE BRANDON TRUST,SP0005337
WANDSWORTH COUNCIL,ASC,SOCIAL SERVICES,VOL ASS,SUPPORTED HOUSING PROGRAMME,728930,130248030,18-Aug-15,"3,324.96",Revenue,THE BRANDON TRUST,SP0005337
WANDSWORTH COUNCIL,ASC,SOCIAL SERVICES,VOL ASS,SUPPORTED HOUSING PROGRAMME,728931,130248030,18-Aug-15,"2,886.04",Revenue,THE BRANDON TRUST,SP0005337
WANDSWORTH COUNCIL,ASC,SOCIAL SERVICES,VOL ASS,SUPPORTED HOUSING PROGRAMME,728932,130248030,18-Aug-15,"2,856.96",Revenue,THE BRANDON TRUST,SP0005337
WANDSWORTH COUNCIL,ASC,SOCIAL SERVICES,VOL ASS,SUPPORTED HOUSING PROGRAMME,728933,130248030,18-Aug-15,"2,128.32",Revenue,THE BRANDON TRUST,SP0005337
WANDSWORTH COUNCIL,ASC,SOCIAL SERVICES,VOL ASS,SUPPORTED HOUSING PROGRAMME,728934,130248030,18-Aug-15,"6,198.76",Revenue,THE BRANDON TRUST,SP0005337
WANDSWORTH COUNCIL,ASC,SOCIAL SERVICES,VOL ASS,SUPPORTED HOUSING PROGRAMME,728935,130248030,18-Aug-15,"1,465.92",Revenue,THE BRANDON TRUST,SP0005337
WANDSWORTH COUNCIL,ASC,SOCIAL SERVICES,VOL ASS,SUPPORTED HOUSING PROGRAMME,728936,130248030,18-Aug-15,"1,548.72",Revenue,THE BRANDON TRUST,SP0005337
WANDSWORTH COUNCIL,ASC,SOCIAL SERVICES,VOL ASS,SUPPORTED HOUSING PROGRAMME,728937,130248030,18-Aug-15,"2,592.60",Revenue,THE BRANDON TRUST,SP0005337
WANDSWORTH COUNCIL,ASC,SOCIAL SERVICES,VOL ASS,SUPPORTED HOUSING PROGRAMME,728938,130248030,18-Aug-15,"3,564.56",Revenue,THE BRANDON TRUST,SP0005337
WANDSWORTH COUNCIL,ASC,SOCIAL SERVICES,VOL ASS,SUPPORTED HOUSING PROGRAMME,728939,130248030,18-Aug-15,"3,416.80",Revenue,THE BRANDON TRUST,SP0005337
WANDSWORTH COUNCIL,ASC,SOCIAL SERVICES,VOL ASS,SUPPORTED HOUSING PROGRAMME,728940,130248030,18-Aug-15,"2,848.72",Revenue,THE BRANDON TRUST,SP0005337
WANDSWORTH COUNCIL,ASC,SOCIAL SERVICES,VOL ASS,SUPPORTED HOUSING PROGRAMME,728941,130248030,18-Aug-15,"2,327.24",Revenue,THE BRANDON TRUST,SP0005337
WANDSWORTH COUNCIL,ASC,SOCIAL SERVICES,VOL ASS,SUPPORTED HOUSING PROGRAMME,728942,130248030,18-Aug-15,"2,327.24",Revenue,THE BRANDON TRUST,SP0005337
WANDSWORTH COUNCIL,ASC,SOCIAL SERVICES,VOL ASS,SUPPORTED HOUSING PROGRAMME,728943,130248030,18-Aug-15,"2,065.12",Revenue,THE BRANDON TRUST,SP0005337
WANDSWORTH COUNCIL,ASC,SOCIAL SERVICES,VOL ASS,SUPPORTED HOUSING PROGRAMME,728959,130248030,18-Aug-15,"1,499.04",Revenue,THE BRANDON TRUST,SP0005337
WANDSWORTH COUNCIL,ASC,SOCIAL SERVICES,VOL ASS,SUPPORTED HOUSING PROGRAMME,728964,130248030,18-Aug-15,591.04,Revenue,THE BRANDON TRUST,SP0005337
WANDSWORTH COUNCIL,ASC,SOCIAL SERVICES,VOL ASS,SUPPORTED HOUSING PROGRAMME,728967,130248030,18-Aug-15,"1,034.48",Revenue,THE BRANDON TRUST,SP0005337
WANDSWORTH COUNCIL,ASC,SOCIAL SERVICES,VOL ASS,SUPPORTED HOUSING PROGRAMME,728980,130248030,18-Aug-15,"1,385.04",Revenue,THE BRANDON TRUST,SP0005337
WANDSWORTH COUNCIL,ASC,SOCIAL SERVICES,VOL ASS,SUPPORTED HOUSING PROGRAMME,728986,130248030,18-Aug-15,"1,625.36",Revenue,THE BRANDON TRUST,SP0005337
WANDSWORTH COUNCIL,ASC,SOCIAL SERVICES,VOL ASS,SUPPORTED HOUSING PROGRAMME,728987,130248030,18-Aug-15,"1,674.84",Revenue,THE BRANDON TRUST,SP0005337
WANDSWORTH COUNCIL,ASC,SOCIAL SERVICES,VOL ASS,SUPPORTED HOUSING PROGRAMME,728988,130248030,18-Aug-15,"2,405.96",Revenue,THE BRANDON TRUST,SP0005337
WANDSWORTH COUNCIL,ASC,SOCIAL SERVICES,VOL ASS,SUPPORTED HOUSING PROGRAMME,728991,130248030,18-Aug-15,"2,459.52",Revenue,THE BRANDON TRUST,SP0005337
WANDSWORTH COUNCIL,ASC,SOCIAL SERVICES,VOL ASS,SUPPORTED HOUSING PROGRAMME,728992,130248030,18-Aug-15,"3,883.68",Revenue,THE BRANDON TRUST,SP0005337
WANDSWORTH COUNCIL,ASC,SOCIAL SERVICES,VOL ASS,SUPPORTED HOUSING PROGRAMME,728993,130248030,18-Aug-15,"2,618.48",Revenue,THE BRANDON TRUST,SP0005337
WANDSWORTH COUNCIL,ASC,SOCIAL SERVICES,VOL ASS,SUPPORTED HOUSING PROGRAMME,728994,130248030,18-Aug-15,"1,730.88",Revenue,THE BRANDON TRUST,SP0005337
WANDSWORTH COUNCIL,ASC,SOCIAL SERVICES,VOL ASS,SUPPORTED HOUSING PROGRAMME,729002,130248030,18-Aug-15,"1,465.92",Revenue,THE BRANDON TRUST,SP0005337
WANDSWORTH COUNCIL,ASC,SOCIAL SERVICES,VOL ASS,SUPPORTED HOUSING PROGRAMME,729004,130248030,18-Aug-15,"2,631.48",Revenue,THE BRANDON TRUST,SP0005337
WANDSWORTH COUNCIL,ASC,SOCIAL SERVICES,VOL ASS,SUPPORTED HOUSING PROGRAMME,738828,130248030,28-Aug-15,"6,120.00",Revenue,RELIABLE PERSONNEL LTD,SP0005657
WANDSWORTH COUNCIL,ASC,SOCIAL SERVICES,VOL ASS,SUPPORTED HOUSING PROGRAMME,718538,130248030,04-Aug-15,570.76,Revenue,MCCALLUM CARE LTD CAREMARK (WANDSWORTH),SP0006036
WANDSWORTH COUNCIL,ASC,SOCIAL SERVICES,VOL ASS,SUPPORTED HOUSING PROGRAMME,734592,130248030,25-Aug-15,570.76,Revenue,MCCALLUM CARE LTD CAREMARK (WANDSWORTH),SP0006036
WANDSWORTH COUNCIL,ASC,SOCIAL SERVICES,VOL ASS,SUPPORTED HOUSING PROGRAMME,730840,130248030,19-Aug-15,"4,400.00",Revenue,MORTON GARDENS,SP0008639
WANDSWORTH COUNCIL,ASC,SOCIAL SERVICES,DIRECT,DIRECT PAYMENTS,725325,130250380,13-Aug-15,821.84,Revenue,HARINGEY ASSOCIATION FOR INDEPENDENT LIV,SP0000222
WANDSWORTH COUNCIL,ASC,SOCIAL SERVICES,DIRECT,DIRECT PAYMENTS,725691,130250380,13-Aug-15,"1,665.84",Revenue,WESTMINSTER MIND,SP0005471
WANDSWORTH COUNCIL,ASC,SOCIAL SERVICES,DIRECT,DIRECT PAYMENTS,725651,130250380,13-Aug-15,838.12,Revenue,VIBRANCE,SP0005489
WANDSWORTH COUNCIL,ASC,SOCIAL SERVICES,DIRECT,DIRECT PAYMENTS,725357,130250380,13-Aug-15,"3,176.28",Revenue,I DECIDE LTD (DIRECT PAYMENT),SP0006159
WANDSWORTH COUNCIL,ASC,SOCIAL SERVICES,DIRECT,DIRECT PAYMENTS,725362,130250380,13-Aug-15,"1,884.96",Revenue,I DECIDE LTD (DIRECT PAYMENT),SP0006159
WANDSWORTH COUNCIL,ASC,SOCIAL SERVICES,CUSTOMER & CLIENT RECPTS - EXT,CL CONT EXT RESIDEN S28A 100%,729091,130280680,18-Aug-15,-505.20,Revenue,ELEANOR NURSING & SOCIAL CARE,SP0000110
WANDSWORTH COUNCIL,ASC,SOCIAL SERVICES,CUSTOMER & CLIENT RECPTS - EXT,CL CONT EXT RESIDEN S28A 100%,729092,130280680,18-Aug-15,-505.20,Revenue,ELEANOR NURSING & SOCIAL CARE,SP0000110
WANDSWORTH COUNCIL,ASC,SOCIAL SERVICES,CUSTOMER & CLIENT RECPTS - EXT,CL CONT EXT RESIDEN S28A 100%,738714,130280680,28-Aug-15,-548.92,Revenue,ST MARYS RESIDENTIAL HOME,SP0000215
WANDSWORTH COUNCIL,ASC,SOCIAL SERVICES,CUSTOMER & CLIENT RECPTS - EXT,CL CONT EXT RESIDEN S28A 100%,729102,130280680,18-Aug-15,-546.04,Revenue,VOYAGE CARE LTD,SP0000366
WANDSWORTH COUNCIL,ASC,SOCIAL SERVICES,CUSTOMER & CLIENT RECPTS - EXT,CL CONT EXT RESIDEN S28A 100%,729110,130280680,18-Aug-15,-356.28,Revenue,VOYAGE CARE LTD,SP0000366
WANDSWORTH COUNCIL,ASC,SOCIAL SERVICES,CUSTOMER & CLIENT RECPTS - EXT,CL CONT EXTERNAL RESIDENT S28A,734525,130280710,25-Aug-15,-321.80,Revenue,SURREY & BORDERS PARTNERSHIP NHS TRUST,SP0000501
WANDSWORTH COUNCIL,ASC,SOCIAL SERVICES,CUSTOMER & CLIENT RECPTS - EXT,CL CONT EXTERNAL RESIDENT S28A,725074,130280710,13-Aug-15,-344.79,Revenue,PARKGATE MANOR,SP0000521
WANDSWORTH COUNCIL,ASC,SOCIAL SERVICES,CUSTOMER & CLIENT RECPTS - EXT,CL CONT EXTERNAL RESIDENTIAL,726606,130280720,14-Aug-15,-400.60,Revenue,CMG HOMES LTD,SP0000075
WANDSWORTH COUNCIL,ASC,SOCIAL SERVICES,CUSTOMER & CLIENT RECPTS - EXT,CL CONT EXTERNAL RESIDENTIAL,726608,130280720,14-Aug-15,-400.60,Revenue,CMG HOMES LTD,SP0000075
WANDSWORTH COUNCIL,ASC,SOCIAL SERVICES,CUSTOMER & CLIENT RECPTS - EXT,CL CONT EXTERNAL RESIDENTIAL,726609,130280720,14-Aug-15,-117.86,Revenue,CMG HOMES LTD,SP0000075
WANDSWORTH COUNCIL,ASC,SOCIAL SERVICES,CUSTOMER & CLIENT RECPTS - EXT,CL CONT EXTERNAL RESIDENTIAL,726610,130280720,14-Aug-15,-321.80,Revenue,CMG HOMES LTD,SP0000075
WANDSWORTH COUNCIL,ASC,SOCIAL SERVICES,CUSTOMER & CLIENT RECPTS - EXT,CL CONT EXTERNAL RESIDENTIAL,726611,130280720,14-Aug-15,-321.80,Revenue,CMG HOMES LTD,SP0000075
WANDSWORTH COUNCIL,ASC,SOCIAL SERVICES,CUSTOMER & CLIENT RECPTS - EXT,CL CONT EXTERNAL RESIDENTIAL,726612,130280720,14-Aug-15,-321.80,Revenue,CMG HOMES LTD,SP0000075
WANDSWORTH COUNCIL,ASC,SOCIAL SERVICES,CUSTOMER & CLIENT RECPTS - EXT,CL CONT EXTERNAL RESIDENTIAL,726613,130280720,14-Aug-15,-505.20,Revenue,CMG HOMES LTD,SP0000075
WANDSWORTH COUNCIL,ASC,SOCIAL SERVICES,CUSTOMER & CLIENT RECPTS - EXT,CL CONT EXTERNAL RESIDENTIAL,726614,130280720,14-Aug-15,-321.80,Revenue,CMG HOMES LTD,SP0000075
WANDSWORTH COUNCIL,ASC,SOCIAL SERVICES,CUSTOMER & CLIENT RECPTS - EXT,CL CONT EXTERNAL RESIDENTIAL,729084,130280720,18-Aug-15,-400.60,Revenue,CMG HOMES LTD,SP0000075
WANDSWORTH COUNCIL,ASC,SOCIAL SERVICES,CUSTOMER & CLIENT RECPTS - EXT,CL CONT EXTERNAL RESIDENTIAL,729085,130280720,18-Aug-15,-85.95,Revenue,CMG HOMES LTD,SP0000075
WANDSWORTH COUNCIL,ASC,SOCIAL SERVICES,CUSTOMER & CLIENT RECPTS - EXT,CL CONT EXTERNAL RESIDENTIAL,729087,130280720,18-Aug-15,-400.60,Revenue,CMG HOMES LTD,SP0000075
WANDSWORTH COUNCIL,ASC,SOCIAL SERVICES,CUSTOMER & CLIENT RECPTS - EXT,CL CONT EXTERNAL RESIDENTIAL,729088,130280720,18-Aug-15,-146.14,Revenue,CMG HOMES LTD,SP0000075
WANDSWORTH COUNCIL,ASC,SOCIAL SERVICES,CUSTOMER & CLIENT RECPTS - EXT,CL CONT EXTERNAL RESIDENTIAL,729089,130280720,18-Aug-15,-321.80,Revenue,CMG HOMES LTD,SP0000075
WANDSWORTH COUNCIL,ASC,SOCIAL SERVICES,CUSTOMER & CLIENT RECPTS - EXT,CL CONT EXTERNAL RESIDENTIAL,729090,130280720,18-Aug-15,-505.20,Revenue,CMG HOMES LTD,SP0000075
WANDSWORTH COUNCIL,ASC,SOCIAL SERVICES,CUSTOMER & CLIENT RECPTS - EXT,CL CONT EXTERNAL RESIDENTIAL,729093,130280720,18-Aug-15,-321.25,Revenue,CMG HOMES LTD,SP0000075
WANDSWORTH COUNCIL,ASC,SOCIAL SERVICES,CUSTOMER & CLIENT RECPTS - EXT,CL CONT EXTERNAL RESIDENTIAL,729097,130280720,18-Aug-15,-321.80,Revenue,CMG HOMES LTD,SP0000075
WANDSWORTH COUNCIL,ASC,SOCIAL SERVICES,CUSTOMER & CLIENT RECPTS - EXT,CL CONT EXTERNAL RESIDENTIAL,734515,130280720,25-Aug-15,-208.74,Revenue,CMG HOMES LTD,SP0000075
WANDSWORTH COUNCIL,ASC,SOCIAL SERVICES,CUSTOMER & CLIENT RECPTS - EXT,CL CONT EXTERNAL RESIDENTIAL,734516,130280720,25-Aug-15,-343.80,Revenue,CMG HOMES LTD,SP0000075
WANDSWORTH COUNCIL,ASC,SOCIAL SERVICES,CUSTOMER & CLIENT RECPTS - EXT,CL CONT EXTERNAL RESIDENTIAL,734517,130280720,25-Aug-15,-321.80,Revenue,CMG HOMES LTD,SP0000075
WANDSWORTH COUNCIL,ASC,SOCIAL SERVICES,CUSTOMER & CLIENT RECPTS - EXT,CL CONT EXTERNAL RESIDENTIAL,734518,130280720,25-Aug-15,-321.80,Revenue,CMG HOMES LTD,SP0000075
WANDSWORTH COUNCIL,ASC,SOCIAL SERVICES,CUSTOMER & CLIENT RECPTS - EXT,CL CONT EXTERNAL RESIDENTIAL,734519,130280720,25-Aug-15,-359.80,Revenue,CMG HOMES LTD,SP0000075
WANDSWORTH COUNCIL,ASC,SOCIAL SERVICES,CUSTOMER & CLIENT RECPTS - EXT,CL CONT EXTERNAL RESIDENTIAL,728798,130280720,18-Aug-15,-356.28,Revenue,COUNTRY CARE,SP0000090
WANDSWORTH COUNCIL,ASC,SOCIAL SERVICES,CUSTOMER & CLIENT RECPTS - EXT,CL CONT EXTERNAL RESIDENTIAL,730553,130280720,19-Aug-15,-405.66,Revenue,NATIONAL SOCIETY FOR EPILEPSY,SP0000120
WANDSWORTH COUNCIL,ASC,SOCIAL SERVICES,CUSTOMER & CLIENT RECPTS - EXT,CL CONT EXTERNAL RESIDENTIAL,726837,130280720,14-Aug-15,-321.80,Revenue,SANCTUARY CARE LTD,SP0000121
WANDSWORTH COUNCIL,ASC,SOCIAL SERVICES,CUSTOMER & CLIENT RECPTS - EXT,CL CONT EXTERNAL RESIDENTIAL,733629,130280720,24-Aug-15,-356.28,Revenue,CENTRUST CARE HOMES LTD,SP0000141
WANDSWORTH COUNCIL,ASC,SOCIAL SERVICES,CUSTOMER & CLIENT RECPTS - EXT,CL CONT EXTERNAL RESIDENTIAL,717208,130280720,03-Aug-15,-356.28,Revenue,FRANCES TAYLOR FOUNDATION,SP0000142
WANDSWORTH COUNCIL,ASC,SOCIAL SERVICES,CUSTOMER & CLIENT RECPTS - EXT,CL CONT EXTERNAL RESIDENTIAL,717209,130280720,03-Aug-15,-344.79,Revenue,FRANCES TAYLOR FOUNDATION,SP0000142
WANDSWORTH COUNCIL,ASC,SOCIAL SERVICES,CUSTOMER & CLIENT RECPTS - EXT,CL CONT EXTERNAL RESIDENTIAL,717213,130280720,03-Aug-15,-356.27,Revenue,FRANCES TAYLOR FOUNDATION,SP0000142
WANDSWORTH COUNCIL,ASC,SOCIAL SERVICES,CUSTOMER & CLIENT RECPTS - EXT,CL CONT EXTERNAL RESIDENTIAL,717214,130280720,03-Aug-15,-356.27,Revenue,FRANCES TAYLOR FOUNDATION,SP0000142
WANDSWORTH COUNCIL,ASC,SOCIAL SERVICES,CUSTOMER & CLIENT RECPTS - EXT,CL CONT EXTERNAL RESIDENTIAL,717215,130280720,03-Aug-15,-356.27,Revenue,FRANCES TAYLOR FOUNDATION,SP0000142
WANDSWORTH COUNCIL,ASC,SOCIAL SERVICES,CUSTOMER & CLIENT RECPTS - EXT,CL CONT EXTERNAL RESIDENTIAL,717216,130280720,03-Aug-15,-356.27,Revenue,FRANCES TAYLOR FOUNDATION,SP0000142
WANDSWORTH COUNCIL,ASC,SOCIAL SERVICES,CUSTOMER & CLIENT RECPTS - EXT,CL CONT EXTERNAL RESIDENTIAL,733628,130280720,24-Aug-15,-356.28,Revenue,TANGLEWOOD CARE HOME,SP0000167
WANDSWORTH COUNCIL,ASC,SOCIAL SERVICES,CUSTOMER & CLIENT RECPTS - EXT,CL CONT EXTERNAL RESIDENTIAL,730587,130280720,19-Aug-15,-159.70,Revenue,THE CHESTNUTS,SP0000182
WANDSWORTH COUNCIL,ASC,SOCIAL SERVICES,CUSTOMER & CLIENT RECPTS - EXT,CL CONT EXTERNAL RESIDENTIAL,733610,130280720,24-Aug-15,432.00,Revenue,TRELOAR SCHOOL,SP0000200
WANDSWORTH COUNCIL,ASC,SOCIAL SERVICES,CUSTOMER & CLIENT RECPTS - EXT,CL CONT EXTERNAL RESIDENTIAL,717202,130280720,03-Aug-15,-321.80,Revenue,ORCHARD VALE TRUST,SP0000214
WANDSWORTH COUNCIL,ASC,SOCIAL SERVICES,CUSTOMER & CLIENT RECPTS - EXT,CL CONT EXTERNAL RESIDENTIAL,732752,130280720,21-Aug-15,-321.80,Revenue,ORCHARD VALE TRUST,SP0000214
WANDSWORTH COUNCIL,ASC,SOCIAL SERVICES,CUSTOMER & CLIENT RECPTS - EXT,CL CONT EXTERNAL RESIDENTIAL,717205,130280720,03-Aug-15,-478.78,Revenue,ST MARYS RESIDENTIAL HOME,SP0000215
WANDSWORTH COUNCIL,ASC,SOCIAL SERVICES,CUSTOMER & CLIENT RECPTS - EXT,CL CONT EXTERNAL RESIDENTIAL,717206,130280720,03-Aug-15,-559.33,Revenue,ST MARYS RESIDENTIAL HOME,SP0000215
WANDSWORTH COUNCIL,ASC,SOCIAL SERVICES,CUSTOMER & CLIENT RECPTS - EXT,CL CONT EXTERNAL RESIDENTIAL,738705,130280720,28-Aug-15,-275.32,Revenue,ST MARYS RESIDENTIAL HOME,SP0000215
WANDSWORTH COUNCIL,ASC,SOCIAL SERVICES,CUSTOMER & CLIENT RECPTS - EXT,CL CONT EXTERNAL RESIDENTIAL,738706,130280720,28-Aug-15,-356.28,Revenue,ST MARYS RESIDENTIAL HOME,SP0000215
WANDSWORTH COUNCIL,ASC,SOCIAL SERVICES,CUSTOMER & CLIENT RECPTS - EXT,CL CONT EXTERNAL RESIDENTIAL,738707,130280720,28-Aug-15,-559.33,Revenue,ST MARYS RESIDENTIAL HOME,SP0000215
WANDSWORTH COUNCIL,ASC,SOCIAL SERVICES,CUSTOMER & CLIENT RECPTS - EXT,CL CONT EXTERNAL RESIDENTIAL,738708,130280720,28-Aug-15,-356.28,Revenue,ST MARYS RESIDENTIAL HOME,SP0000215
WANDSWORTH COUNCIL,ASC,SOCIAL SERVICES,CUSTOMER & CLIENT RECPTS - EXT,CL CONT EXTERNAL RESIDENTIAL,738709,130280720,28-Aug-15,-356.28,Revenue,ST MARYS RESIDENTIAL HOME,SP0000215
WANDSWORTH COUNCIL,ASC,SOCIAL SERVICES,CUSTOMER & CLIENT RECPTS - EXT,CL CONT EXTERNAL RESIDENTIAL,738710,130280720,28-Aug-15,-356.28,Revenue,ST MARYS RESIDENTIAL HOME,SP0000215
WANDSWORTH COUNCIL,ASC,SOCIAL SERVICES,CUSTOMER & CLIENT RECPTS - EXT,CL CONT EXTERNAL RESIDENTIAL,738711,130280720,28-Aug-15,-559.33,Revenue,ST MARYS RESIDENTIAL HOME,SP0000215
WANDSWORTH COUNCIL,ASC,SOCIAL SERVICES,CUSTOMER & CLIENT RECPTS - EXT,CL CONT EXTERNAL RESIDENTIAL,738713,130280720,28-Aug-15,-790.19,Revenue,ST MARYS RESIDENTIAL HOME,SP0000215
WANDSWORTH COUNCIL,ASC,SOCIAL SERVICES,CUSTOMER & CLIENT RECPTS - EXT,CL CONT EXTERNAL RESIDENTIAL,738715,130280720,28-Aug-15,-585.90,Revenue,ST MARYS RESIDENTIAL HOME,SP0000215
WANDSWORTH COUNCIL,ASC,SOCIAL SERVICES,CUSTOMER & CLIENT RECPTS - EXT,CL CONT EXTERNAL RESIDENTIAL,738716,130280720,28-Aug-15,"-1,497.61",Revenue,ST MARYS RESIDENTIAL HOME,SP0000215
WANDSWORTH COUNCIL,ASC,SOCIAL SERVICES,CUSTOMER & CLIENT RECPTS - EXT,CL CONT EXTERNAL RESIDENTIAL,738717,130280720,28-Aug-15,-264.34,Revenue,ST MARYS RESIDENTIAL HOME,SP0000215
WANDSWORTH COUNCIL,ASC,SOCIAL SERVICES,CUSTOMER & CLIENT RECPTS - EXT,CL CONT EXTERNAL RESIDENTIAL,717222,130280720,03-Aug-15,-171.97,Revenue,NAS SERVICES LIMITED,SP0000217
WANDSWORTH COUNCIL,ASC,SOCIAL SERVICES,CUSTOMER & CLIENT RECPTS - EXT,CL CONT EXTERNAL RESIDENTIAL,717223,130280720,03-Aug-15,-321.80,Revenue,NAS SERVICES LIMITED,SP0000217
WANDSWORTH COUNCIL,ASC,SOCIAL SERVICES,CUSTOMER & CLIENT RECPTS - EXT,CL CONT EXTERNAL RESIDENTIAL,717224,130280720,03-Aug-15,-321.80,Revenue,NAS SERVICES LIMITED,SP0000217
WANDSWORTH COUNCIL,ASC,SOCIAL SERVICES,CUSTOMER & CLIENT RECPTS - EXT,CL CONT EXTERNAL RESIDENTIAL,717225,130280720,03-Aug-15,-321.80,Revenue,NAS SERVICES LIMITED,SP0000217
WANDSWORTH COUNCIL,ASC,SOCIAL SERVICES,CUSTOMER & CLIENT RECPTS - EXT,CL CONT EXTERNAL RESIDENTIAL,717226,130280720,03-Aug-15,-321.80,Revenue,NAS SERVICES LIMITED,SP0000217
WANDSWORTH COUNCIL,ASC,SOCIAL SERVICES,CUSTOMER & CLIENT RECPTS - EXT,CL CONT EXTERNAL RESIDENTIAL,725078,130280720,13-Aug-15,-321.80,Revenue,HAYDON PARK LODGE LTD,SP0000231
WANDSWORTH COUNCIL,ASC,SOCIAL SERVICES,CUSTOMER & CLIENT RECPTS - EXT,CL CONT EXTERNAL RESIDENTIAL,735794,130280720,26-Aug-15,-638.48,Revenue,CAMERON LODGE LIMITED,SP0000271
WANDSWORTH COUNCIL,ASC,SOCIAL SERVICES,CUSTOMER & CLIENT RECPTS - EXT,CL CONT EXTERNAL RESIDENTIAL,730566,130280720,19-Aug-15,-405.66,Revenue,BROOKDALE CARE,SP0000282
WANDSWORTH COUNCIL,ASC,SOCIAL SERVICES,CUSTOMER & CLIENT RECPTS - EXT,CL CONT EXTERNAL RESIDENTIAL,718302,130280720,04-Aug-15,-321.80,Revenue,CRAEGMOOR FACILITIES CO LTD,SP0000306
WANDSWORTH COUNCIL,ASC,SOCIAL SERVICES,CUSTOMER & CLIENT RECPTS - EXT,CL CONT EXTERNAL RESIDENTIAL,728793,130280720,18-Aug-15,-356.28,Revenue,RESIDENTIAL COMMUNITY CARE,SP0000315
WANDSWORTH COUNCIL,ASC,SOCIAL SERVICES,CUSTOMER & CLIENT RECPTS - EXT,CL CONT EXTERNAL RESIDENTIAL,725061,130280720,13-Aug-15,-321.80,Revenue,DOLPHIN HOMES LTD,SP0000331
WANDSWORTH COUNCIL,ASC,SOCIAL SERVICES,CUSTOMER & CLIENT RECPTS - EXT,CL CONT EXTERNAL RESIDENTIAL,725062,130280720,13-Aug-15,-321.80,Revenue,DOLPHIN HOMES LTD,SP0000331
WANDSWORTH COUNCIL,ASC,SOCIAL SERVICES,CUSTOMER & CLIENT RECPTS - EXT,CL CONT EXTERNAL RESIDENTIAL,718272,130280720,04-Aug-15,-321.80,Revenue,NORWOOD SCHOOLS LTD,SP0000332
WANDSWORTH COUNCIL,ASC,SOCIAL SERVICES,CUSTOMER & CLIENT RECPTS - EXT,CL CONT EXTERNAL RESIDENTIAL,718273,130280720,04-Aug-15,-321.80,Revenue,NORWOOD SCHOOLS LTD,SP0000332
WANDSWORTH COUNCIL,ASC,SOCIAL SERVICES,CUSTOMER & CLIENT RECPTS - EXT,CL CONT EXTERNAL RESIDENTIAL,718732,130280720,04-Aug-15,-559.32,Revenue,THE MANOR,SP0000340
WANDSWORTH COUNCIL,ASC,SOCIAL SERVICES,CUSTOMER & CLIENT RECPTS - EXT,CL CONT EXTERNAL RESIDENTIAL,728799,130280720,18-Aug-15,-559.33,Revenue,HEYWOODS GRANGE LTD,SP0000361
WANDSWORTH COUNCIL,ASC,SOCIAL SERVICES,CUSTOMER & CLIENT RECPTS - EXT,CL CONT EXTERNAL RESIDENTIAL,728835,130280720,18-Aug-15,-570.75,Revenue,VOYAGE CARE LTD,SP0000366
WANDSWORTH COUNCIL,ASC,SOCIAL SERVICES,CUSTOMER & CLIENT RECPTS - EXT,CL CONT EXTERNAL RESIDENTIAL,728836,130280720,18-Aug-15,-552.34,Revenue,VOYAGE CARE LTD,SP0000366
WANDSWORTH COUNCIL,ASC,SOCIAL SERVICES,CUSTOMER & CLIENT RECPTS - EXT,CL CONT EXTERNAL RESIDENTIAL,728837,130280720,18-Aug-15,-570.76,Revenue,VOYAGE CARE LTD,SP0000366
WANDSWORTH COUNCIL,ASC,SOCIAL SERVICES,CUSTOMER & CLIENT RECPTS - EXT,CL CONT EXTERNAL RESIDENTIAL,729103,130280720,18-Aug-15,-570.75,Revenue,VOYAGE CARE LTD,SP0000366
WANDSWORTH COUNCIL,ASC,SOCIAL SERVICES,CUSTOMER & CLIENT RECPTS - EXT,CL CONT EXTERNAL RESIDENTIAL,729106,130280720,18-Aug-15,-400.60,Revenue,VOYAGE CARE LTD,SP0000366
WANDSWORTH COUNCIL,ASC,SOCIAL SERVICES,CUSTOMER & CLIENT RECPTS - EXT,CL CONT EXTERNAL RESIDENTIAL,729107,130280720,18-Aug-15,-356.28,Revenue,VOYAGE CARE LTD,SP0000366
WANDSWORTH COUNCIL,ASC,SOCIAL SERVICES,CUSTOMER & CLIENT RECPTS - EXT,CL CONT EXTERNAL RESIDENTIAL,729109,130280720,18-Aug-15,-224.84,Revenue,VOYAGE CARE LTD,SP0000366
WANDSWORTH COUNCIL,ASC,SOCIAL SERVICES,CUSTOMER & CLIENT RECPTS - EXT,CL CONT EXTERNAL RESIDENTIAL,730561,130280720,19-Aug-15,-93.63,Revenue,VOYAGE CARE LTD,SP0000366
WANDSWORTH COUNCIL,ASC,SOCIAL SERVICES,CUSTOMER & CLIENT RECPTS - EXT,CL CONT EXTERNAL RESIDENTIAL,730584,130280720,19-Aug-15,-356.28,Revenue,ST DAVIDS CARE IN THE COMMUNITY,SP0000379
WANDSWORTH COUNCIL,ASC,SOCIAL SERVICES,CUSTOMER & CLIENT RECPTS - EXT,CL CONT EXTERNAL RESIDENTIAL,730585,130280720,19-Aug-15,-356.28,Revenue,ST DAVIDS CARE IN THE COMMUNITY,SP0000379
WANDSWORTH COUNCIL,ASC,SOCIAL SERVICES,CUSTOMER & CLIENT RECPTS - EXT,CL CONT EXTERNAL RESIDENTIAL,730586,130280720,19-Aug-15,-356.28,Revenue,ST DAVIDS CARE IN THE COMMUNITY,SP0000379
WANDSWORTH COUNCIL,ASC,SOCIAL SERVICES,CUSTOMER & CLIENT RECPTS - EXT,CL CONT EXTERNAL RESIDENTIAL,730575,130280720,19-Aug-15,-356.28,Revenue,ESSEX CARE CONSORTIUM,SP0000387
WANDSWORTH COUNCIL,ASC,SOCIAL SERVICES,CUSTOMER & CLIENT RECPTS - EXT,CL CONT EXTERNAL RESIDENTIAL,718303,130280720,04-Aug-15,-321.80,Revenue,POTENSIAL LTD,SP0000395
WANDSWORTH COUNCIL,ASC,SOCIAL SERVICES,CUSTOMER & CLIENT RECPTS - EXT,CL CONT EXTERNAL RESIDENTIAL,717203,130280720,03-Aug-15,-321.80,Revenue,KENILWORTH RESIDENTIAL HOME,SP0000432
WANDSWORTH COUNCIL,ASC,SOCIAL SERVICES,CUSTOMER & CLIENT RECPTS - EXT,CL CONT EXTERNAL RESIDENTIAL,717204,130280720,03-Aug-15,-505.20,Revenue,KENILWORTH RESIDENTIAL HOME,SP0000432
WANDSWORTH COUNCIL,ASC,SOCIAL SERVICES,CUSTOMER & CLIENT RECPTS - EXT,CL CONT EXTERNAL RESIDENTIAL,738731,130280720,28-Aug-15,-333.30,Revenue,THE WELL HOUSE,SP0000448
WANDSWORTH COUNCIL,ASC,SOCIAL SERVICES,CUSTOMER & CLIENT RECPTS - EXT,CL CONT EXTERNAL RESIDENTIAL,738732,130280720,28-Aug-15,-379.48,Revenue,THE WELL HOUSE,SP0000448
WANDSWORTH COUNCIL,ASC,SOCIAL SERVICES,CUSTOMER & CLIENT RECPTS - EXT,CL CONT EXTERNAL RESIDENTIAL,721489,130280720,07-Aug-15,-321.80,Revenue,MACINTYRE CARE,SP0000473
WANDSWORTH COUNCIL,ASC,SOCIAL SERVICES,CUSTOMER & CLIENT RECPTS - EXT,CL CONT EXTERNAL RESIDENTIAL,721490,130280720,07-Aug-15,-321.80,Revenue,MACINTYRE CARE,SP0000473
WANDSWORTH COUNCIL,ASC,SOCIAL SERVICES,CUSTOMER & CLIENT RECPTS - EXT,CL CONT EXTERNAL RESIDENTIAL,721491,130280720,07-Aug-15,-505.20,Revenue,MACINTYRE CARE,SP0000473
WANDSWORTH COUNCIL,ASC,SOCIAL SERVICES,CUSTOMER & CLIENT RECPTS - EXT,CL CONT EXTERNAL RESIDENTIAL,721493,130280720,07-Aug-15,-321.80,Revenue,MACINTYRE CARE,SP0000473
WANDSWORTH COUNCIL,ASC,SOCIAL SERVICES,CUSTOMER & CLIENT RECPTS - EXT,CL CONT EXTERNAL RESIDENTIAL,721494,130280720,07-Aug-15,-321.80,Revenue,MACINTYRE CARE,SP0000473
WANDSWORTH COUNCIL,ASC,SOCIAL SERVICES,CUSTOMER & CLIENT RECPTS - EXT,CL CONT EXTERNAL RESIDENTIAL,721495,130280720,07-Aug-15,-366.40,Revenue,MACINTYRE CARE,SP0000473
WANDSWORTH COUNCIL,ASC,SOCIAL SERVICES,CUSTOMER & CLIENT RECPTS - EXT,CL CONT EXTERNAL RESIDENTIAL,721496,130280720,07-Aug-15,-321.80,Revenue,MACINTYRE CARE,SP0000473
WANDSWORTH COUNCIL,ASC,SOCIAL SERVICES,CUSTOMER & CLIENT RECPTS - EXT,CL CONT EXTERNAL RESIDENTIAL,721497,130280720,07-Aug-15,-321.80,Revenue,MACINTYRE CARE,SP0000473
WANDSWORTH COUNCIL,ASC,SOCIAL SERVICES,CUSTOMER & CLIENT RECPTS - EXT,CL CONT EXTERNAL RESIDENTIAL,721498,130280720,07-Aug-15,-321.80,Revenue,MACINTYRE CARE,SP0000473
WANDSWORTH COUNCIL,ASC,SOCIAL SERVICES,CUSTOMER & CLIENT RECPTS - EXT,CL CONT EXTERNAL RESIDENTIAL,721499,130280720,07-Aug-15,-321.80,Revenue,MACINTYRE CARE,SP0000473
WANDSWORTH COUNCIL,ASC,SOCIAL SERVICES,CUSTOMER & CLIENT RECPTS - EXT,CL CONT EXTERNAL RESIDENTIAL,721500,130280720,07-Aug-15,-409.80,Revenue,MACINTYRE CARE,SP0000473
WANDSWORTH COUNCIL,ASC,SOCIAL SERVICES,CUSTOMER & CLIENT RECPTS - EXT,CL CONT EXTERNAL RESIDENTIAL,721501,130280720,07-Aug-15,-321.80,Revenue,MACINTYRE CARE,SP0000473
WANDSWORTH COUNCIL,ASC,SOCIAL SERVICES,CUSTOMER & CLIENT RECPTS - EXT,CL CONT EXTERNAL RESIDENTIAL,721502,130280720,07-Aug-15,-505.20,Revenue,MACINTYRE CARE,SP0000473
WANDSWORTH COUNCIL,ASC,SOCIAL SERVICES,CUSTOMER & CLIENT RECPTS - EXT,CL CONT EXTERNAL RESIDENTIAL,721503,130280720,07-Aug-15,-505.20,Revenue,MACINTYRE CARE,SP0000473
WANDSWORTH COUNCIL,ASC,SOCIAL SERVICES,CUSTOMER & CLIENT RECPTS - EXT,CL CONT EXTERNAL RESIDENTIAL,721507,130280720,07-Aug-15,-505.20,Revenue,MACINTYRE CARE,SP0000473
WANDSWORTH COUNCIL,ASC,SOCIAL SERVICES,CUSTOMER & CLIENT RECPTS - EXT,CL CONT EXTERNAL RESIDENTIAL,721508,130280720,07-Aug-15,-505.20,Revenue,MACINTYRE CARE,SP0000473
WANDSWORTH COUNCIL,ASC,SOCIAL SERVICES,CUSTOMER & CLIENT RECPTS - EXT,CL CONT EXTERNAL RESIDENTIAL,721510,130280720,07-Aug-15,-524.64,Revenue,MACINTYRE CARE,SP0000473
WANDSWORTH COUNCIL,ASC,SOCIAL SERVICES,CUSTOMER & CLIENT RECPTS - EXT,CL CONT EXTERNAL RESIDENTIAL,721511,130280720,07-Aug-15,-321.80,Revenue,MACINTYRE CARE,SP0000473
WANDSWORTH COUNCIL,ASC,SOCIAL SERVICES,CUSTOMER & CLIENT RECPTS - EXT,CL CONT EXTERNAL RESIDENTIAL,721512,130280720,07-Aug-15,-321.80,Revenue,MACINTYRE CARE,SP0000473
WANDSWORTH COUNCIL,ASC,SOCIAL SERVICES,CUSTOMER & CLIENT RECPTS - EXT,CL CONT EXTERNAL RESIDENTIAL,721513,130280720,07-Aug-15,-528.72,Revenue,MACINTYRE CARE,SP0000473
WANDSWORTH COUNCIL,ASC,SOCIAL SERVICES,CUSTOMER & CLIENT RECPTS - EXT,CL CONT EXTERNAL RESIDENTIAL,721514,130280720,07-Aug-15,-321.80,Revenue,MACINTYRE CARE,SP0000473
WANDSWORTH COUNCIL,ASC,SOCIAL SERVICES,CUSTOMER & CLIENT RECPTS - EXT,CL CONT EXTERNAL RESIDENTIAL,734526,130280720,25-Aug-15,-505.20,Revenue,SURREY & BORDERS PARTNERSHIP NHS TRUST,SP0000501
WANDSWORTH COUNCIL,ASC,SOCIAL SERVICES,CUSTOMER & CLIENT RECPTS - EXT,CL CONT EXTERNAL RESIDENTIAL,732741,130280720,21-Aug-15,-356.28,Revenue,AIMS CARE PARTNERSHIP,SP0000561
WANDSWORTH COUNCIL,ASC,SOCIAL SERVICES,CUSTOMER & CLIENT RECPTS - EXT,CL CONT EXTERNAL RESIDENTIAL,730583,130280720,19-Aug-15,-433.56,Revenue,SEEABILITY,SP0000572
WANDSWORTH COUNCIL,ASC,SOCIAL SERVICES,CUSTOMER & CLIENT RECPTS - EXT,CL CONT EXTERNAL RESIDENTIAL,718299,130280720,04-Aug-15,-356.27,Revenue,THE COMMUNITY CARE COMPANY UK LTD,SP0000576
WANDSWORTH COUNCIL,ASC,SOCIAL SERVICES,CUSTOMER & CLIENT RECPTS - EXT,CL CONT EXTERNAL RESIDENTIAL,726617,130280720,14-Aug-15,-344.79,Revenue,THE COMMUNITY CARE COMPANY UK LTD,SP0000576
WANDSWORTH COUNCIL,ASC,SOCIAL SERVICES,CUSTOMER & CLIENT RECPTS - EXT,CL CONT EXTERNAL RESIDENTIAL,728795,130280720,18-Aug-15,-559.33,Revenue,THE COMMUNITY CARE COMPANY UK LTD,SP0000576
WANDSWORTH COUNCIL,ASC,SOCIAL SERVICES,CUSTOMER & CLIENT RECPTS - EXT,CL CONT EXTERNAL RESIDENTIAL,728796,130280720,18-Aug-15,-356.28,Revenue,THE COMMUNITY CARE COMPANY UK LTD,SP0000576
WANDSWORTH COUNCIL,ASC,SOCIAL SERVICES,CUSTOMER & CLIENT RECPTS - EXT,CL CONT EXTERNAL RESIDENTIAL,728797,130280720,18-Aug-15,-356.28,Revenue,THE COMMUNITY CARE COMPANY UK LTD,SP0000576
WANDSWORTH COUNCIL,ASC,SOCIAL SERVICES,CUSTOMER & CLIENT RECPTS - EXT,CL CONT EXTERNAL RESIDENTIAL,730549,130280720,19-Aug-15,-356.28,Revenue,THE COMMUNITY CARE COMPANY UK LTD,SP0000576
WANDSWORTH COUNCIL,ASC,SOCIAL SERVICES,CUSTOMER & CLIENT RECPTS - EXT,CL CONT EXTERNAL RESIDENTIAL,730576,130280720,19-Aug-15,-356.28,Revenue,THE COMMUNITY CARE COMPANY UK LTD,SP0000576
WANDSWORTH COUNCIL,ASC,SOCIAL SERVICES,CUSTOMER & CLIENT RECPTS - EXT,CL CONT EXTERNAL RESIDENTIAL,733691,130280720,24-Aug-15,-356.28,Revenue,BIRCC,SP0000584
WANDSWORTH COUNCIL,ASC,SOCIAL SERVICES,CUSTOMER & CLIENT RECPTS - EXT,CL CONT EXTERNAL RESIDENTIAL,729122,130280720,18-Aug-15,-443.53,Revenue,THE REGARD PARTNERSHIP,SP0000588
WANDSWORTH COUNCIL,ASC,SOCIAL SERVICES,CUSTOMER & CLIENT RECPTS - EXT,CL CONT EXTERNAL RESIDENTIAL,729123,130280720,18-Aug-15,-443.53,Revenue,THE REGARD PARTNERSHIP,SP0000588
WANDSWORTH COUNCIL,ASC,SOCIAL SERVICES,CUSTOMER & CLIENT RECPTS - EXT,CL CONT EXTERNAL RESIDENTIAL,729124,130280720,18-Aug-15,-356.27,Revenue,THE REGARD PARTNERSHIP,SP0000588
WANDSWORTH COUNCIL,ASC,SOCIAL SERVICES,CUSTOMER & CLIENT RECPTS - EXT,CL CONT EXTERNAL RESIDENTIAL,729125,130280720,18-Aug-15,-575.00,Revenue,THE REGARD PARTNERSHIP,SP0000588
WANDSWORTH COUNCIL,ASC,SOCIAL SERVICES,CUSTOMER & CLIENT RECPTS - EXT,CL CONT EXTERNAL RESIDENTIAL,729126,130280720,18-Aug-15,-443.53,Revenue,THE REGARD PARTNERSHIP,SP0000588
WANDSWORTH COUNCIL,ASC,SOCIAL SERVICES,CUSTOMER & CLIENT RECPTS - EXT,CL CONT EXTERNAL RESIDENTIAL,733684,130280720,24-Aug-15,-443.52,Revenue,THE REGARD PARTNERSHIP,SP0000588
WANDSWORTH COUNCIL,ASC,SOCIAL SERVICES,CUSTOMER & CLIENT RECPTS - EXT,CL CONT EXTERNAL RESIDENTIAL,733685,130280720,24-Aug-15,-356.28,Revenue,THE REGARD PARTNERSHIP,SP0000588
WANDSWORTH COUNCIL,ASC,SOCIAL SERVICES,CUSTOMER & CLIENT RECPTS - EXT,CL CONT EXTERNAL RESIDENTIAL,733686,130280720,24-Aug-15,-575.01,Revenue,THE REGARD PARTNERSHIP,SP0000588
WANDSWORTH COUNCIL,ASC,SOCIAL SERVICES,CUSTOMER & CLIENT RECPTS - EXT,CL CONT EXTERNAL RESIDENTIAL,733687,130280720,24-Aug-15,-443.52,Revenue,THE REGARD PARTNERSHIP,SP0000588
WANDSWORTH COUNCIL,ASC,SOCIAL SERVICES,CUSTOMER & CLIENT RECPTS - EXT,CL CONT EXTERNAL RESIDENTIAL,733688,130280720,24-Aug-15,-443.52,Revenue,THE REGARD PARTNERSHIP,SP0000588
WANDSWORTH COUNCIL,ASC,SOCIAL SERVICES,CUSTOMER & CLIENT RECPTS - EXT,CL CONT EXTERNAL RESIDENTIAL,719259,130280720,05-Aug-15,-321.80,Revenue,EVERGREEN PARTNERSHIP,SP0000597
WANDSWORTH COUNCIL,ASC,SOCIAL SERVICES,CUSTOMER & CLIENT RECPTS - EXT,CL CONT EXTERNAL RESIDENTIAL,738681,130280720,28-Aug-15,-321.80,Revenue,LAETUS LODGE,SP0000600
WANDSWORTH COUNCIL,ASC,SOCIAL SERVICES,CUSTOMER & CLIENT RECPTS - EXT,CL CONT EXTERNAL RESIDENTIAL,738683,130280720,28-Aug-15,-400.60,Revenue,LAETUS LODGE,SP0000600
WANDSWORTH COUNCIL,ASC,SOCIAL SERVICES,CUSTOMER & CLIENT RECPTS - EXT,CL CONT EXTERNAL RESIDENTIAL,738685,130280720,28-Aug-15,-366.40,Revenue,LAETUS LODGE,SP0000600
WANDSWORTH COUNCIL,ASC,SOCIAL SERVICES,CUSTOMER & CLIENT RECPTS - EXT,CL CONT EXTERNAL RESIDENTIAL,738686,130280720,28-Aug-15,-321.80,Revenue,LAETUS LODGE,SP0000600
WANDSWORTH COUNCIL,ASC,SOCIAL SERVICES,CUSTOMER & CLIENT RECPTS - EXT,CL CONT EXTERNAL RESIDENTIAL,738687,130280720,28-Aug-15,-319.40,Revenue,LAETUS LODGE,SP0000600
WANDSWORTH COUNCIL,ASC,SOCIAL SERVICES,CUSTOMER & CLIENT RECPTS - EXT,CL CONT EXTERNAL RESIDENTIAL,733596,130280720,24-Aug-15,-356.28,Revenue,MENCAP,SP0000604
WANDSWORTH COUNCIL,ASC,SOCIAL SERVICES,CUSTOMER & CLIENT RECPTS - EXT,CL CONT EXTERNAL RESIDENTIAL,733597,130280720,24-Aug-15,-356.28,Revenue,MENCAP,SP0000604
WANDSWORTH COUNCIL,ASC,SOCIAL SERVICES,CUSTOMER & CLIENT RECPTS - EXT,CL CONT EXTERNAL RESIDENTIAL,733601,130280720,24-Aug-15,-356.28,Revenue,MENCAP,SP0000604
WANDSWORTH COUNCIL,ASC,SOCIAL SERVICES,CUSTOMER & CLIENT RECPTS - EXT,CL CONT EXTERNAL RESIDENTIAL,726958,130280720,14-Aug-15,-204.76,Revenue,BUPA CARE SERVICES BACS RECEIPTS,SP0000644
WANDSWORTH COUNCIL,ASC,SOCIAL SERVICES,CUSTOMER & CLIENT RECPTS - EXT,CL CONT EXTERNAL RESIDENTIAL,725038,130280720,13-Aug-15,-356.27,Revenue,SUSSEX AUTISTIC COMMUNITY TRUST(CARE SER,SP0000652
WANDSWORTH COUNCIL,ASC,SOCIAL SERVICES,CUSTOMER & CLIENT RECPTS - EXT,CL CONT EXTERNAL RESIDENTIAL,725039,130280720,13-Aug-15,-356.28,Revenue,SUSSEX AUTISTIC COMMUNITY TRUST(CARE SER,SP0000652
WANDSWORTH COUNCIL,ASC,SOCIAL SERVICES,CUSTOMER & CLIENT RECPTS - EXT,CL CONT EXTERNAL RESIDENTIAL,725087,130280720,13-Aug-15,-321.80,Revenue,LIVABILITY,SP0000669
WANDSWORTH COUNCIL,ASC,SOCIAL SERVICES,CUSTOMER & CLIENT RECPTS - EXT,CL CONT EXTERNAL RESIDENTIAL,732753,130280720,21-Aug-15,-321.80,Revenue,LOVING CARE LTD,SP0000670
WANDSWORTH COUNCIL,ASC,SOCIAL SERVICES,CUSTOMER & CLIENT RECPTS - EXT,CL CONT EXTERNAL RESIDENTIAL,732754,130280720,21-Aug-15,-321.80,Revenue,LOVING CARE LTD,SP0000670
WANDSWORTH COUNCIL,ASC,SOCIAL SERVICES,CUSTOMER & CLIENT RECPTS - EXT,CL CONT EXTERNAL RESIDENTIAL,732755,130280720,21-Aug-15,-321.80,Revenue,LOVING CARE LTD,SP0000670
WANDSWORTH COUNCIL,ASC,SOCIAL SERVICES,CUSTOMER & CLIENT RECPTS - EXT,CL CONT EXTERNAL RESIDENTIAL,732756,130280720,21-Aug-15,-339.36,Revenue,LOVING CARE LTD,SP0000670
WANDSWORTH COUNCIL,ASC,SOCIAL SERVICES,CUSTOMER & CLIENT RECPTS - EXT,CL CONT EXTERNAL RESIDENTIAL,732757,130280720,21-Aug-15,-321.80,Revenue,LOVING CARE LTD,SP0000670
WANDSWORTH COUNCIL,ASC,SOCIAL SERVICES,CUSTOMER & CLIENT RECPTS - EXT,CL CONT EXTERNAL RESIDENTIAL,732758,130280720,21-Aug-15,-321.80,Revenue,LOVING CARE LTD,SP0000670
WANDSWORTH COUNCIL,ASC,SOCIAL SERVICES,CUSTOMER & CLIENT RECPTS - EXT,CL CONT EXTERNAL RESIDENTIAL,732759,130280720,21-Aug-15,-321.80,Revenue,LOVING CARE LTD,SP0000670
WANDSWORTH COUNCIL,ASC,SOCIAL SERVICES,CUSTOMER & CLIENT RECPTS - EXT,CL CONT EXTERNAL RESIDENTIAL,730590,130280720,19-Aug-15,-505.20,Revenue,WHITMORE VALE HOUSING ASSOCIATION LTD,SP0000694
WANDSWORTH COUNCIL,ASC,SOCIAL SERVICES,CUSTOMER & CLIENT RECPTS - EXT,CL CONT EXTERNAL RESIDENTIAL,729114,130280720,18-Aug-15,-356.28,Revenue,THE MANOR HOUSE,SP0000728
WANDSWORTH COUNCIL,ASC,SOCIAL SERVICES,CUSTOMER & CLIENT RECPTS - EXT,CL CONT EXTERNAL RESIDENTIAL,718300,130280720,04-Aug-15,-548.93,Revenue,RALEIGH HOUSE LTD,SP0000760
WANDSWORTH COUNCIL,ASC,SOCIAL SERVICES,CUSTOMER & CLIENT RECPTS - EXT,CL CONT EXTERNAL RESIDENTIAL,718301,130280720,04-Aug-15,-548.93,Revenue,RALEIGH HOUSE LTD,SP0000760
WANDSWORTH COUNCIL,ASC,SOCIAL SERVICES,CUSTOMER & CLIENT RECPTS - EXT,CL CONT EXTERNAL RESIDENTIAL,718734,130280720,04-Aug-15,-559.33,Revenue,RALEIGH HOUSE LTD,SP0000760
WANDSWORTH COUNCIL,ASC,SOCIAL SERVICES,CUSTOMER & CLIENT RECPTS - EXT,CL CONT EXTERNAL RESIDENTIAL,718735,130280720,04-Aug-15,-559.33,Revenue,RALEIGH HOUSE LTD,SP0000760
WANDSWORTH COUNCIL,ASC,SOCIAL SERVICES,CUSTOMER & CLIENT RECPTS - EXT,CL CONT EXTERNAL RESIDENTIAL,734512,130280720,25-Aug-15,-366.40,Revenue,WHITE ROSE CARE,SP0000780
WANDSWORTH COUNCIL,ASC,SOCIAL SERVICES,CUSTOMER & CLIENT RECPTS - EXT,CL CONT EXTERNAL RESIDENTIAL,734513,130280720,25-Aug-15,-366.40,Revenue,WHITE ROSE CARE,SP0000780
WANDSWORTH COUNCIL,ASC,SOCIAL SERVICES,CUSTOMER & CLIENT RECPTS - EXT,CL CONT EXTERNAL RESIDENTIAL,734514,130280720,25-Aug-15,-366.40,Revenue,WHITE ROSE CARE,SP0000780
WANDSWORTH COUNCIL,ASC,SOCIAL SERVICES,CUSTOMER & CLIENT RECPTS - EXT,CL CONT EXTERNAL RESIDENTIAL,728802,130280720,18-Aug-15,-506.88,Revenue,GLENCARE GROUP,SP0000791
WANDSWORTH COUNCIL,ASC,SOCIAL SERVICES,CUSTOMER & CLIENT RECPTS - EXT,CL CONT EXTERNAL RESIDENTIAL,728803,130280720,18-Aug-15,-321.80,Revenue,GLENCARE GROUP,SP0000791
WANDSWORTH COUNCIL,ASC,SOCIAL SERVICES,CUSTOMER & CLIENT RECPTS - EXT,CL CONT EXTERNAL RESIDENTIAL,728824,130280720,18-Aug-15,-321.80,Revenue,GLENCARE GROUP,SP0000791
WANDSWORTH COUNCIL,ASC,SOCIAL SERVICES,CUSTOMER & CLIENT RECPTS - EXT,CL CONT EXTERNAL RESIDENTIAL,722714,130280720,11-Aug-15,-321.80,Revenue,FREEWAYS TRUST LTD,SP0000793
WANDSWORTH COUNCIL,ASC,SOCIAL SERVICES,CUSTOMER & CLIENT RECPTS - EXT,CL CONT EXTERNAL RESIDENTIAL,722715,130280720,11-Aug-15,-321.80,Revenue,FREEWAYS TRUST LTD,SP0000793
WANDSWORTH COUNCIL,ASC,SOCIAL SERVICES,CUSTOMER & CLIENT RECPTS - EXT,CL CONT EXTERNAL RESIDENTIAL,725051,130280720,13-Aug-15,-321.80,Revenue,UNITED RESPONSE,SP0000797
WANDSWORTH COUNCIL,ASC,SOCIAL SERVICES,CUSTOMER & CLIENT RECPTS - EXT,CL CONT EXTERNAL RESIDENTIAL,725058,130280720,13-Aug-15,-321.80,Revenue,PROSPECTS,SP0000800
WANDSWORTH COUNCIL,ASC,SOCIAL SERVICES,CUSTOMER & CLIENT RECPTS - EXT,CL CONT EXTERNAL RESIDENTIAL,721515,130280720,07-Aug-15,-356.27,Revenue,BEECH LODGE,SP0000807
WANDSWORTH COUNCIL,ASC,SOCIAL SERVICES,CUSTOMER & CLIENT RECPTS - EXT,CL CONT EXTERNAL RESIDENTIAL,721516,130280720,07-Aug-15,-356.27,Revenue,BEECH LODGE,SP0000807
WANDSWORTH COUNCIL,ASC,SOCIAL SERVICES,CUSTOMER & CLIENT RECPTS - EXT,CL CONT EXTERNAL RESIDENTIAL,721517,130280720,07-Aug-15,-356.27,Revenue,BEECH LODGE,SP0000807
WANDSWORTH COUNCIL,ASC,SOCIAL SERVICES,CUSTOMER & CLIENT RECPTS - EXT,CL CONT EXTERNAL RESIDENTIAL,733623,130280720,24-Aug-15,-356.28,Revenue,BEECH LODGE,SP0000807
WANDSWORTH COUNCIL,ASC,SOCIAL SERVICES,CUSTOMER & CLIENT RECPTS - EXT,CL CONT EXTERNAL RESIDENTIAL,733624,130280720,24-Aug-15,-356.28,Revenue,BEECH LODGE,SP0000807
WANDSWORTH COUNCIL,ASC,SOCIAL SERVICES,CUSTOMER & CLIENT RECPTS - EXT,CL CONT EXTERNAL RESIDENTIAL,733625,130280720,24-Aug-15,-356.28,Revenue,BEECH LODGE,SP0000807
WANDSWORTH COUNCIL,ASC,SOCIAL SERVICES,CUSTOMER & CLIENT RECPTS - EXT,CL CONT EXTERNAL RESIDENTIAL,726628,130280720,14-Aug-15,-368.50,Revenue,FIRCROFT,SP0000840
WANDSWORTH COUNCIL,ASC,SOCIAL SERVICES,CUSTOMER & CLIENT RECPTS - EXT,CL CONT EXTERNAL RESIDENTIAL,730578,130280720,19-Aug-15,-353.63,Revenue,STALLCOMBE HOUSE,SP0000843
WANDSWORTH COUNCIL,ASC,SOCIAL SERVICES,CUSTOMER & CLIENT RECPTS - EXT,CL CONT EXTERNAL RESIDENTIAL,730579,130280720,19-Aug-15,-353.62,Revenue,STALLCOMBE HOUSE,SP0000843
WANDSWORTH COUNCIL,ASC,SOCIAL SERVICES,CUSTOMER & CLIENT RECPTS - EXT,CL CONT EXTERNAL RESIDENTIAL,721479,130280720,07-Aug-15,-443.53,Revenue,SCOPE,SP0000852
WANDSWORTH COUNCIL,ASC,SOCIAL SERVICES,CUSTOMER & CLIENT RECPTS - EXT,CL CONT EXTERNAL RESIDENTIAL,721480,130280720,07-Aug-15,-380.63,Revenue,SCOPE,SP0000852
WANDSWORTH COUNCIL,ASC,SOCIAL SERVICES,CUSTOMER & CLIENT RECPTS - EXT,CL CONT EXTERNAL RESIDENTIAL,730592,130280720,19-Aug-15,-443.52,Revenue,SCOPE,SP0000852
WANDSWORTH COUNCIL,ASC,SOCIAL SERVICES,CUSTOMER & CLIENT RECPTS - EXT,CL CONT EXTERNAL RESIDENTIAL,730593,130280720,19-Aug-15,-380.64,Revenue,SCOPE,SP0000852
WANDSWORTH COUNCIL,ASC,SOCIAL SERVICES,CUSTOMER & CLIENT RECPTS - EXT,CL CONT EXTERNAL RESIDENTIAL,728813,130280720,18-Aug-15,-356.28,Revenue,ASHCROFT CARE SERVICES,SP0000872
WANDSWORTH COUNCIL,ASC,SOCIAL SERVICES,CUSTOMER & CLIENT RECPTS - EXT,CL CONT EXTERNAL RESIDENTIAL,725034,130280720,13-Aug-15,-356.28,Revenue,229 MITCHAM LANE LTD,SP0000884
WANDSWORTH COUNCIL,ASC,SOCIAL SERVICES,CUSTOMER & CLIENT RECPTS - EXT,CL CONT EXTERNAL RESIDENTIAL,725036,130280720,13-Aug-15,-356.28,Revenue,229 MITCHAM LANE LTD,SP0000884
WANDSWORTH COUNCIL,ASC,SOCIAL SERVICES,CUSTOMER & CLIENT RECPTS - EXT,CL CONT EXTERNAL RESIDENTIAL,725037,130280720,13-Aug-15,-356.28,Revenue,229 MITCHAM LANE LTD,SP0000884
WANDSWORTH COUNCIL,ASC,SOCIAL SERVICES,CUSTOMER & CLIENT RECPTS - EXT,CL CONT EXTERNAL RESIDENTIAL,734527,130280720,25-Aug-15,-319.40,Revenue,WINSLOW COURT,SP0000886
WANDSWORTH COUNCIL,ASC,SOCIAL SERVICES,CUSTOMER & CLIENT RECPTS - EXT,CL CONT EXTERNAL RESIDENTIAL,738704,130280720,28-Aug-15,-321.80,Revenue,WINSLOW COURT,SP0000886
WANDSWORTH COUNCIL,ASC,SOCIAL SERVICES,CUSTOMER & CLIENT RECPTS - EXT,CL CONT EXTERNAL RESIDENTIAL,730574,130280720,19-Aug-15,-405.66,Revenue,TRACS,SP0000914
WANDSWORTH COUNCIL,ASC,SOCIAL SERVICES,CUSTOMER & CLIENT RECPTS - EXT,CL CONT EXTERNAL RESIDENTIAL,730570,130280720,19-Aug-15,-356.28,Revenue,HILL PARK AUTISTIC TRUST,SP0000926
WANDSWORTH COUNCIL,ASC,SOCIAL SERVICES,CUSTOMER & CLIENT RECPTS - EXT,CL CONT EXTERNAL RESIDENTIAL,725081,130280720,13-Aug-15,-321.80,Revenue,MISSION CARE,SP0000958
WANDSWORTH COUNCIL,ASC,SOCIAL SERVICES,CUSTOMER & CLIENT RECPTS - EXT,CL CONT EXTERNAL RESIDENTIAL,728820,130280720,18-Aug-15,-353.62,Revenue,DOWNING (CHERTSEY ROAD) LTD,SP0000959
WANDSWORTH COUNCIL,ASC,SOCIAL SERVICES,CUSTOMER & CLIENT RECPTS - EXT,CL CONT EXTERNAL RESIDENTIAL,721518,130280720,07-Aug-15,-356.27,Revenue,CHERRY LODGE,SP0000965
WANDSWORTH COUNCIL,ASC,SOCIAL SERVICES,CUSTOMER & CLIENT RECPTS - EXT,CL CONT EXTERNAL RESIDENTIAL,733626,130280720,24-Aug-15,-356.28,Revenue,CHERRY LODGE,SP0000965
WANDSWORTH COUNCIL,ASC,SOCIAL SERVICES,CUSTOMER & CLIENT RECPTS - EXT,CL CONT EXTERNAL RESIDENTIAL,735323,130280720,26-Aug-15,-321.80,Revenue,RIDGEWOOD CARE SERVICES LTD,SP0000969
WANDSWORTH COUNCIL,ASC,SOCIAL SERVICES,CUSTOMER & CLIENT RECPTS - EXT,CL CONT EXTERNAL RESIDENTIAL,735324,130280720,26-Aug-15,-400.60,Revenue,RIDGEWOOD CARE SERVICES LTD,SP0000969
WANDSWORTH COUNCIL,ASC,SOCIAL SERVICES,CUSTOMER & CLIENT RECPTS - EXT,CL CONT EXTERNAL RESIDENTIAL,725070,130280720,13-Aug-15,-356.27,Revenue,LEONARD CHESHIRE,SP0000976
WANDSWORTH COUNCIL,ASC,SOCIAL SERVICES,CUSTOMER & CLIENT RECPTS - EXT,CL CONT EXTERNAL RESIDENTIAL,732739,130280720,21-Aug-15,-356.28,Revenue,CREDITON CARE & SUPPORT HOMES,SP0000998
WANDSWORTH COUNCIL,ASC,SOCIAL SERVICES,CUSTOMER & CLIENT RECPTS - EXT,CL CONT EXTERNAL RESIDENTIAL,725052,130280720,13-Aug-15,-321.80,Revenue,THE HOME FARM TRUST LTD,SP0001048
WANDSWORTH COUNCIL,ASC,SOCIAL SERVICES,CUSTOMER & CLIENT RECPTS - EXT,CL CONT EXTERNAL RESIDENTIAL,725053,130280720,13-Aug-15,-522.00,Revenue,THE HOME FARM TRUST LTD,SP0001048
WANDSWORTH COUNCIL,ASC,SOCIAL SERVICES,CUSTOMER & CLIENT RECPTS - EXT,CL CONT EXTERNAL RESIDENTIAL,725054,130280720,13-Aug-15,-505.20,Revenue,THE HOME FARM TRUST LTD,SP0001048
WANDSWORTH COUNCIL,ASC,SOCIAL SERVICES,CUSTOMER & CLIENT RECPTS - EXT,CL CONT EXTERNAL RESIDENTIAL,728821,130280720,18-Aug-15,-505.20,Revenue,THE HOME FARM TRUST LTD,SP0001048
WANDSWORTH COUNCIL,ASC,SOCIAL SERVICES,CUSTOMER & CLIENT RECPTS - EXT,CL CONT EXTERNAL RESIDENTIAL,725055,130280720,13-Aug-15,-321.80,Revenue,ALLIED CARE (MHS) LTD,SP0001069
WANDSWORTH COUNCIL,ASC,SOCIAL SERVICES,CUSTOMER & CLIENT RECPTS - EXT,CL CONT EXTERNAL RESIDENTIAL,730563,130280720,19-Aug-15,-275.50,Revenue,ALLIED CARE (MHS) LTD,SP0001069
WANDSWORTH COUNCIL,ASC,SOCIAL SERVICES,CUSTOMER & CLIENT RECPTS - EXT,CL CONT EXTERNAL RESIDENTIAL,729105,130280720,18-Aug-15,-356.28,Revenue,ILG LTD,SP0001103
WANDSWORTH COUNCIL,ASC,SOCIAL SERVICES,CUSTOMER & CLIENT RECPTS - EXT,CL CONT EXTERNAL RESIDENTIAL,738690,130280720,28-Aug-15,-366.40,Revenue,TOTTERDOWN,SP0001113
WANDSWORTH COUNCIL,ASC,SOCIAL SERVICES,CUSTOMER & CLIENT RECPTS - EXT,CL CONT EXTERNAL RESIDENTIAL,729100,130280720,18-Aug-15,-443.52,Revenue,SUSSEX HEALTH CARE,SP0001115
WANDSWORTH COUNCIL,ASC,SOCIAL SERVICES,CUSTOMER & CLIENT RECPTS - EXT,CL CONT EXTERNAL RESIDENTIAL,730565,130280720,19-Aug-15,-443.52,Revenue,SUSSEX HEALTH CARE,SP0001115
WANDSWORTH COUNCIL,ASC,SOCIAL SERVICES,CUSTOMER & CLIENT RECPTS - EXT,CL CONT EXTERNAL RESIDENTIAL,730594,130280720,19-Aug-15,-405.66,Revenue,LONDON CARE PARTNERSHIP LTD,SP0001138
WANDSWORTH COUNCIL,ASC,SOCIAL SERVICES,CUSTOMER & CLIENT RECPTS - EXT,CL CONT EXTERNAL RESIDENTIAL,730595,130280720,19-Aug-15,-299.02,Revenue,LONDON CARE PARTNERSHIP LTD,SP0001138
WANDSWORTH COUNCIL,ASC,SOCIAL SERVICES,CUSTOMER & CLIENT RECPTS - EXT,CL CONT EXTERNAL RESIDENTIAL,730596,130280720,19-Aug-15,-356.28,Revenue,LONDON CARE PARTNERSHIP LTD,SP0001138
WANDSWORTH COUNCIL,ASC,SOCIAL SERVICES,CUSTOMER & CLIENT RECPTS - EXT,CL CONT EXTERNAL RESIDENTIAL,730597,130280720,19-Aug-15,-443.52,Revenue,LONDON CARE PARTNERSHIP LTD,SP0001138
WANDSWORTH COUNCIL,ASC,SOCIAL SERVICES,CUSTOMER & CLIENT RECPTS - EXT,CL CONT EXTERNAL RESIDENTIAL,730598,130280720,19-Aug-15,-213.46,Revenue,LONDON CARE PARTNERSHIP LTD,SP0001138
WANDSWORTH COUNCIL,ASC,SOCIAL SERVICES,CUSTOMER & CLIENT RECPTS - EXT,CL CONT EXTERNAL RESIDENTIAL,725079,130280720,13-Aug-15,-356.28,Revenue,HOME FROM HOME CARE LIMITED,SP0001373
WANDSWORTH COUNCIL,ASC,SOCIAL SERVICES,CUSTOMER & CLIENT RECPTS - EXT,CL CONT EXTERNAL RESIDENTIAL,730577,130280720,19-Aug-15,-366.40,Revenue,LARKFIELD HALL LTD T/A PEPENBURY,SP0001378
WANDSWORTH COUNCIL,ASC,SOCIAL SERVICES,CUSTOMER & CLIENT RECPTS - EXT,CL CONT EXTERNAL RESIDENTIAL,725088,130280720,13-Aug-15,-405.66,Revenue,ROOKERY HOVE PRIORY,SP0001498
WANDSWORTH COUNCIL,ASC,SOCIAL SERVICES,CUSTOMER & CLIENT RECPTS - EXT,CL CONT EXTERNAL RESIDENTIAL,726629,130280720,14-Aug-15,-321.80,Revenue,MCCH SOCIETY LIMITED,SP0001531
WANDSWORTH COUNCIL,ASC,SOCIAL SERVICES,CUSTOMER & CLIENT RECPTS - EXT,CL CONT EXTERNAL RESIDENTIAL,726630,130280720,14-Aug-15,-321.80,Revenue,MCCH SOCIETY LIMITED,SP0001531
WANDSWORTH COUNCIL,ASC,SOCIAL SERVICES,CUSTOMER & CLIENT RECPTS - EXT,CL CONT EXTERNAL RESIDENTIAL,726631,130280720,14-Aug-15,-321.80,Revenue,MCCH SOCIETY LIMITED,SP0001531
WANDSWORTH COUNCIL,ASC,SOCIAL SERVICES,CUSTOMER & CLIENT RECPTS - EXT,CL CONT EXTERNAL RESIDENTIAL,726632,130280720,14-Aug-15,-321.80,Revenue,MCCH SOCIETY LIMITED,SP0001531
WANDSWORTH COUNCIL,ASC,SOCIAL SERVICES,CUSTOMER & CLIENT RECPTS - EXT,CL CONT EXTERNAL RESIDENTIAL,728817,130280720,18-Aug-15,-559.32,Revenue,CARE UNLIMITED GROUP LTD,SP0001575
WANDSWORTH COUNCIL,ASC,SOCIAL SERVICES,CUSTOMER & CLIENT RECPTS - EXT,CL CONT EXTERNAL RESIDENTIAL,725086,130280720,13-Aug-15,-391.71,Revenue,NUTLEY HALL LTD,SP0001581
WANDSWORTH COUNCIL,ASC,SOCIAL SERVICES,CUSTOMER & CLIENT RECPTS - EXT,CL CONT EXTERNAL RESIDENTIAL,728790,130280720,18-Aug-15,-146.14,Revenue,ACH OF LONDON LLP,SP0001688
WANDSWORTH COUNCIL,ASC,SOCIAL SERVICES,CUSTOMER & CLIENT RECPTS - EXT,CL CONT EXTERNAL RESIDENTIAL,728791,130280720,18-Aug-15,-443.52,Revenue,ACH OF LONDON LLP,SP0001688
WANDSWORTH COUNCIL,ASC,SOCIAL SERVICES,CUSTOMER & CLIENT RECPTS - EXT,CL CONT EXTERNAL RESIDENTIAL,734522,130280720,25-Aug-15,-356.28,Revenue,PATHWAY HEALTHCARE,SP0001779
WANDSWORTH COUNCIL,ASC,SOCIAL SERVICES,CUSTOMER & CLIENT RECPTS - EXT,CL CONT EXTERNAL RESIDENTIAL,726616,130280720,14-Aug-15,-321.80,Revenue,THE BRANDON TRUST,SP0005337
WANDSWORTH COUNCIL,ASC,SOCIAL SERVICES,CUSTOMER & CLIENT RECPTS - EXT,CL CONT EXTERNAL RESIDENTIAL,730581,130280720,19-Aug-15,-400.60,Revenue,ENHAM,SP0005845
WANDSWORTH COUNCIL,ASC,SOCIAL SERVICES,CUSTOMER & CLIENT RECPTS - EXT,CL CONT EXTERNAL RESIDENTIAL,733630,130280720,24-Aug-15,-321.80,Revenue,NORCREST (2000) HOME LTD,SP0008343
WANDSWORTH COUNCIL,ASC,SOCIAL SERVICES,CUSTOMER & CLIENT RECPTS - EXT,CL CONT EXTERNAL RESIDENTIAL,726752,130280720,14-Aug-15,-996.44,Revenue,COUNTRY COURT CARE,SP0009215
WANDSWORTH COUNCIL,ASC,SOCIAL SERVICES,CUSTOMER & CLIENT RECPTS - EXT,CLIENT CONTS EXTERNAL NURSING,728827,130280820,18-Aug-15,-321.80,Revenue,WINGHAM COURT,SP0000025
WANDSWORTH COUNCIL,ASC,SOCIAL SERVICES,CUSTOMER & CLIENT RECPTS - EXT,CLIENT CONTS EXTERNAL NURSING,728787,130280820,18-Aug-15,-321.80,Revenue,VOYAGE CARE LTD,SP0000366
WANDSWORTH COUNCIL,ASC,SOCIAL SERVICES,CUSTOMER & CLIENT RECPTS - EXT,CLIENT CONTS EXTERNAL NURSING,728788,130280820,18-Aug-15,-321.80,Revenue,VOYAGE CARE LTD,SP0000366
WANDSWORTH COUNCIL,ASC,SOCIAL SERVICES,CUSTOMER & CLIENT RECPTS - EXT,CLIENT CONTS EXTERNAL NURSING,728789,130280820,18-Aug-15,-321.80,Revenue,VOYAGE CARE LTD,SP0000366
WANDSWORTH COUNCIL,ASC,SOCIAL SERVICES,CUSTOMER & CLIENT RECPTS - EXT,CLIENT CONTS EXTERNAL NURSING,729104,130280820,18-Aug-15,-382.85,Revenue,VOYAGE CARE LTD,SP0000366
WANDSWORTH COUNCIL,ASC,SOCIAL SERVICES,CUSTOMER & CLIENT RECPTS - EXT,CLIENT CONTS EXTERNAL NURSING,732747,130280820,21-Aug-15,-505.20,Revenue,YEW TREE NURSING HOME,SP0000454
WANDSWORTH COUNCIL,ASC,SOCIAL SERVICES,CUSTOMER & CLIENT RECPTS - EXT,CLIENT CONTS EXTERNAL NURSING,738730,130280820,28-Aug-15,-505.20,Revenue,YEW TREE NURSING HOME,SP0000454
WANDSWORTH COUNCIL,ASC,SOCIAL SERVICES,CUSTOMER & CLIENT RECPTS - EXT,CLIENT CONTS EXTERNAL NURSING,730573,130280820,19-Aug-15,-405.66,Revenue,SUSSEX HEALTH CARE,SP0001115
WANDSWORTH COUNCIL,ASC,SOCIAL SERVICES,CUSTOMER & CLIENT RECPTS - EXT,CLIENT CONTS EXTERNAL NURSING,726826,130280820,14-Aug-15,-505.20,Revenue,YORK COURT CARE HOME,SP0006091
WANDSWORTH COUNCIL,ASC,SOCIAL SERVICES,CUSTOMER & CLIENT RECPTS - EXT,RNCC,728827,130284120,18-Aug-15,-448.00,Revenue,WINGHAM COURT,SP0000025
WANDSWORTH COUNCIL,ASC,SOCIAL SERVICES,CUSTOMER & CLIENT RECPTS - EXT,RNCC,728787,130284120,18-Aug-15,-448.00,Revenue,VOYAGE CARE LTD,SP0000366
WANDSWORTH COUNCIL,ASC,SOCIAL SERVICES,CUSTOMER & CLIENT RECPTS - EXT,RNCC,728788,130284120,18-Aug-15,-448.00,Revenue,VOYAGE CARE LTD,SP0000366
WANDSWORTH COUNCIL,ASC,SOCIAL SERVICES,CUSTOMER & CLIENT RECPTS - EXT,RNCC,728789,130284120,18-Aug-15,-448.00,Revenue,VOYAGE CARE LTD,SP0000366
WANDSWORTH COUNCIL,ASC,SOCIAL SERVICES,CUSTOMER & CLIENT RECPTS - EXT,RNCC,732747,130284120,21-Aug-15,-448.00,Revenue,YEW TREE NURSING HOME,SP0000454
WANDSWORTH COUNCIL,ASC,SOCIAL SERVICES,CUSTOMER & CLIENT RECPTS - EXT,RNCC,738730,130284120,28-Aug-15,-448.00,Revenue,YEW TREE NURSING HOME,SP0000454
WANDSWORTH COUNCIL,ASC,SOCIAL SERVICES,CUSTOMER & CLIENT RECPTS - EXT,RNCC,726801,130284120,14-Aug-15,-448.00,Revenue,TRINITY COURT NURSING HOME,SP0001001
WANDSWORTH COUNCIL,ASC,SOCIAL SERVICES,CUSTOMER & CLIENT RECPTS - EXT,RNCC,726826,130284120,14-Aug-15,-448.00,Revenue,YORK COURT CARE HOME,SP0006091
WANDSWORTH COUNCIL,ASC,,GRANTS & SUBSCRIPTIONS,CONTRACTS TO VOLUNTARY ORGS,728719,136237550,19-Aug-15,922.70,Revenue,WANDSWORTH MENCAP,SP0000834
WANDSWORTH COUNCIL,ASC,,GRANTS & SUBSCRIPTIONS,CONTRACTS TO VOLUNTARY ORGS,728721,136237550,19-Aug-15,922.70,Revenue,WANDSWORTH MENCAP,SP0000834
WANDSWORTH COUNCIL,ASC,,GRANTS & SUBSCRIPTIONS,CONTRACTS TO VOLUNTARY ORGS,735057,136237550,26-Aug-15,922.70,Revenue,WANDSWORTH MENCAP,SP0000834
WANDSWORTH COUNCIL,ASC,,GRANTS & SUBSCRIPTIONS,CONTRACTS TO VOLUNTARY ORGS,735058,136237550,26-Aug-15,922.70,Revenue,WANDSWORTH MENCAP,SP0000834
WANDSWORTH COUNCIL,PH,SOCIAL SERVICES,PRIVATE,EXTERNAL RESIDENTIAL CARE,728792,140145330,18-Aug-15,"3,109.65",Revenue,BROADREACH HOUSE,SP0001195
WANDSWORTH COUNCIL,PH,SOCIAL SERVICES,PRIVATE,EXTERNAL RESIDENTIAL CARE,730554,140145330,19-Aug-15,628.58,Revenue,MOUNT CARMEL,SP0001309
WANDSWORTH COUNCIL,PH,SOCIAL SERVICES,PRIVATE,EXTERNAL RESIDENTIAL CARE,730556,140145330,19-Aug-15,"2,380.23",Revenue,MOUNT CARMEL,SP0001309
WANDSWORTH COUNCIL,PH,SOCIAL SERVICES,PRIVATE,EXTERNAL RESIDENTIAL CARE,730557,140145330,19-Aug-15,"2,657.15",Revenue,MOUNT CARMEL,SP0001309
WANDSWORTH COUNCIL,PH,SOCIAL SERVICES,PRIVATE,EXTERNAL RESIDENTIAL CARE,717199,140145330,03-Aug-15,"2,728.00",Revenue,KENWARD TRUST,SP0001418
WANDSWORTH COUNCIL,PH,SOCIAL SERVICES,PRIVATE,EXTERNAL RESIDENTIAL CARE,721519,140145330,07-Aug-15,"1,118.94",Revenue,WESTERN COUNSELLING SERVICES,SP0001629
WANDSWORTH COUNCIL,PH,SOCIAL SERVICES,PRIVATE,EXTERNAL RESIDENTIAL CARE,732736,140145330,21-Aug-15,"2,655.28",Revenue,WESTCLIFFE HOUSE LTD,SP0006356
WANDSWORTH COUNCIL,PH,SOCIAL SERVICES,CUSTOMER & CLIENT RECPTS - EXT,CL CONT EXTERNAL RESIDENTIAL,728792,140180720,18-Aug-15,-429.22,Revenue,BROADREACH HOUSE,SP0001195
WANDSWORTH COUNCIL,PH,SOCIAL SERVICES,CUSTOMER & CLIENT RECPTS - EXT,CL CONT EXTERNAL RESIDENTIAL,730554,140180720,19-Aug-15,-55.09,Revenue,MOUNT CARMEL,SP0001309
WANDSWORTH COUNCIL,PH,SOCIAL SERVICES,CUSTOMER & CLIENT RECPTS - EXT,CL CONT EXTERNAL RESIDENTIAL,730556,140180720,19-Aug-15,-213.46,Revenue,MOUNT CARMEL,SP0001309
WANDSWORTH COUNCIL,PH,SOCIAL SERVICES,CUSTOMER & CLIENT RECPTS - EXT,CL CONT EXTERNAL RESIDENTIAL,730557,140180720,19-Aug-15,-213.46,Revenue,MOUNT CARMEL,SP0001309
WANDSWORTH COUNCIL,PH,SOCIAL SERVICES,CUSTOMER & CLIENT RECPTS - EXT,CL CONT EXTERNAL RESIDENTIAL,721519,140180720,07-Aug-15,-193.29,Revenue,WESTERN COUNSELLING SERVICES,SP0001629
WANDSWORTH COUNCIL,PH,SOCIAL SERVICES,CUSTOMER & CLIENT RECPTS - EXT,CL CONT EXTERNAL RESIDENTIAL,732736,140180720,21-Aug-15,1.86,Revenue,WESTCLIFFE HOUSE LTD,SP0006356
WANDSWORTH COUNCIL,ASC,,DIRECT2,AGENCY STAFF,722231,140400510,19-Aug-15,"2,696.06",Revenue,SOUTH WEST LONDON & ST GEORGES MENTAL HE,SP0000358
WANDSWORTH COUNCIL,ASC,SOCIAL SERVICES,OTHER AGENCIES,EXTERNAL OUTREACH,734684,140543330,25-Aug-15,"2,430.80",Revenue,SIGNHEALTH,SP0000496
WANDSWORTH COUNCIL,ASC,SOCIAL SERVICES,OTHER AGENCIES,EXTERNAL OUTREACH,720423,140543330,06-Aug-15,919.60,Revenue,ACTION ON HEARING LOSS,SP0001359
WANDSWORTH COUNCIL,ASC,SOCIAL SERVICES,PRIVATE,EXTERNAL RESIDENTIAL CARE,733602,140545330,24-Aug-15,"6,038.36",Revenue,SIGNHEALTH,SP0000496
WANDSWORTH COUNCIL,ASC,SOCIAL SERVICES,PRIVATE,EXTERNAL RESIDENTIAL CARE,733603,140545330,24-Aug-15,"7,041.92",Revenue,SIGNHEALTH,SP0000496
WANDSWORTH COUNCIL,ASC,SOCIAL SERVICES,PRIVATE,EXTERNAL RESIDENTIAL CARE,733604,140545330,24-Aug-15,"5,950.76",Revenue,SIGNHEALTH,SP0000496
WANDSWORTH COUNCIL,ASC,SOCIAL SERVICES,PRIVATE,EXTERNAL RESIDENTIAL CARE,722717,140545330,11-Aug-15,"4,800.00",Revenue,ACTION ON HEARING LOSS,SP0000563
WANDSWORTH COUNCIL,ASC,SOCIAL SERVICES,PRIVATE,EXTERNAL RESIDENTIAL CARE,721485,140545330,07-Aug-15,"3,398.72",Revenue,ACTION ON HEARING LOSS,SP0001359
WANDSWORTH COUNCIL,ASC,SOCIAL SERVICES,PRIVATE,EXTERNAL RESIDENTIAL CARE,725075,140545330,13-Aug-15,"9,972.60",Revenue,BUTTERFLYS CARE HOMES LTD,SP0008006
WANDSWORTH COUNCIL,ASC,SOCIAL SERVICES,PRIVATE,EXTERNAL RESIDENTIAL CARE,725076,140545330,13-Aug-15,"10,511.04",Revenue,BUTTERFLYS CARE HOMES LTD,SP0008006
WANDSWORTH COUNCIL,ASC,SOCIAL SERVICES,PRIVATE,EXTERNAL RESIDENTIAL CARE,725077,140545330,13-Aug-15,"10,511.04",Revenue,BUTTERFLYS CARE HOMES LTD,SP0008006
WANDSWORTH COUNCIL,ASC,SOCIAL SERVICES,"EQUIPMENT, FURNITURE & MATS",PURCHASE OF HOUSEHOLD EQUIP,734583,142030360,25-Aug-15,"1,256.25",Revenue,SAFESTORE LTD,SP0000936
WANDSWORTH COUNCIL,ASC,SOCIAL SERVICES,PRIVATE,EXTERNAL DAYCARE,721783,142045290,07-Aug-15,891.45,Revenue,SHARE COMMUNITY,SP0000329
WANDSWORTH COUNCIL,ASC,SOCIAL SERVICES,PRIVATE,EXTERNAL DAYCARE,730803,142045290,19-Aug-15,726.00,Revenue,TOGETHER WORKING FOR WELLBEING,SP0000950
WANDSWORTH COUNCIL,ASC,SOCIAL SERVICES,PRIVATE,EXTERNAL DAYCARE,722727,142045290,11-Aug-15,"2,000.00",Revenue,MOSAIC CLUBHOUSE,SP0008847
WANDSWORTH COUNCIL,ASC,SOCIAL SERVICES,PRIVATE,EXTERNAL HOMECARE,733843,142045300,24-Aug-15,930.43,Revenue,HOLISTIC COMMUNITY CARE LTD,SP0000032
WANDSWORTH COUNCIL,ASC,SOCIAL SERVICES,PRIVATE,EXTERNAL HOMECARE,733884,142045300,24-Aug-15,510.44,Revenue,HOLISTIC COMMUNITY CARE LTD,SP0000032
WANDSWORTH COUNCIL,ASC,SOCIAL SERVICES,PRIVATE,EXTERNAL HOMECARE,721536,142045300,07-Aug-15,506.54,Revenue,LONDON HOMECARE LTD,SP0009029
WANDSWORTH COUNCIL,ASC,SOCIAL SERVICES,PRIVATE,EXTERNAL HOMECARE,721560,142045300,07-Aug-15,798.53,Revenue,LONDON HOMECARE LTD,SP0009029
WANDSWORTH COUNCIL,ASC,SOCIAL SERVICES,PRIVATE,EXTERNAL HOMECARE,721658,142045300,07-Aug-15,984.49,Revenue,LONDON HOMECARE LTD,SP0009029
WANDSWORTH COUNCIL,ASC,SOCIAL SERVICES,PRIVATE,EXTERNAL HOMECARE,729131,142045300,18-Aug-15,594.00,Revenue,PROFESSIONAL CARE SUPPORT SERVICES LTD,SP0010033
WANDSWORTH COUNCIL,ASC,SOCIAL SERVICES,PRIVATE,EXTERNAL HOMECARE,729132,142045300,18-Aug-15,744.00,Revenue,PROFESSIONAL CARE SUPPORT SERVICES LTD,SP0010033
WANDSWORTH COUNCIL,ASC,SOCIAL SERVICES,PRIVATE,EXTERNAL HOMECARE,729133,142045300,18-Aug-15,708.00,Revenue,PROFESSIONAL CARE SUPPORT SERVICES LTD,SP0010033
WANDSWORTH COUNCIL,ASC,SOCIAL SERVICES,PRIVATE,EXTERNAL NURSING CARE,726794,142045310,14-Aug-15,"3,169.92",Revenue,TRINITY COURT NURSING HOME,SP0001001
WANDSWORTH COUNCIL,ASC,SOCIAL SERVICES,PRIVATE,EXTERNAL NURSING CARE,726814,142045310,14-Aug-15,"3,333.00",Revenue,TRINITY COURT NURSING HOME,SP0001001
WANDSWORTH COUNCIL,ASC,SOCIAL SERVICES,PRIVATE,EXTERNAL NURSING CARE,726815,142045310,14-Aug-15,"2,856.28",Revenue,TRINITY COURT NURSING HOME,SP0001001
WANDSWORTH COUNCIL,ASC,SOCIAL SERVICES,PRIVATE,EXTERNAL RESIDENTIAL CARE,726615,142045330,14-Aug-15,"7,782.08",Revenue,CMG HOMES LTD,SP0000075
WANDSWORTH COUNCIL,ASC,SOCIAL SERVICES,PRIVATE,EXTERNAL RESIDENTIAL CARE,729098,142045330,18-Aug-15,"7,782.08",Revenue,CMG HOMES LTD,SP0000075
WANDSWORTH COUNCIL,ASC,SOCIAL SERVICES,PRIVATE,EXTERNAL RESIDENTIAL CARE,726778,142045330,14-Aug-15,"2,421.64",Revenue,RICHARD CUSDEN HOMES LTD,SP0000268
WANDSWORTH COUNCIL,ASC,SOCIAL SERVICES,PRIVATE,EXTERNAL RESIDENTIAL CARE,726736,142045330,14-Aug-15,"2,424.00",Revenue,JOYCARE HOME SERVICES LTD,SP0000339
WANDSWORTH COUNCIL,ASC,SOCIAL SERVICES,PRIVATE,EXTERNAL RESIDENTIAL CARE,733679,142045330,24-Aug-15,"2,490.50",Revenue,ASTRA HOMES LTD,SP0000374
WANDSWORTH COUNCIL,ASC,SOCIAL SERVICES,PRIVATE,EXTERNAL RESIDENTIAL CARE,733680,142045330,24-Aug-15,"2,490.50",Revenue,ASTRA HOMES LTD,SP0000374
WANDSWORTH COUNCIL,ASC,SOCIAL SERVICES,PRIVATE,EXTERNAL RESIDENTIAL CARE,733681,142045330,24-Aug-15,"2,795.54",Revenue,ASTRA HOMES LTD,SP0000374
WANDSWORTH COUNCIL,ASC,SOCIAL SERVICES,PRIVATE,EXTERNAL RESIDENTIAL CARE,730572,142045330,19-Aug-15,"3,131.00",Revenue,REDACTED PERSONAL DATA,SP0000408
WANDSWORTH COUNCIL,ASC,SOCIAL SERVICES,PRIVATE,EXTERNAL RESIDENTIAL CARE,725032,142045330,13-Aug-15,"5,092.99",Revenue,229 MITCHAM LANE LTD,SP0000884
WANDSWORTH COUNCIL,ASC,SOCIAL SERVICES,PRIVATE,EXTERNAL RESIDENTIAL CARE,732750,142045330,21-Aug-15,"2,504.80",Revenue,QUANTUM CARE LTD,SP0001151
WANDSWORTH COUNCIL,ASC,SOCIAL SERVICES,PRIVATE,EXTERNAL RESIDENTIAL CARE,725064,142045330,13-Aug-15,"2,460.06",Revenue,DEEPDENE CARE LTD,SP0001199
WANDSWORTH COUNCIL,ASC,SOCIAL SERVICES,PRIVATE,EXTERNAL RESIDENTIAL CARE,725065,142045330,13-Aug-15,"3,058.99",Revenue,DEEPDENE CARE LTD,SP0001199
WANDSWORTH COUNCIL,ASC,SOCIAL SERVICES,PRIVATE,EXTERNAL RESIDENTIAL CARE,725066,142045330,13-Aug-15,"2,228.71",Revenue,DEEPDENE CARE LTD,SP0001199
WANDSWORTH COUNCIL,ASC,SOCIAL SERVICES,PRIVATE,EXTERNAL RESIDENTIAL CARE,725067,142045330,13-Aug-15,"3,156.15",Revenue,DEEPDENE CARE LTD,SP0001199
WANDSWORTH COUNCIL,ASC,SOCIAL SERVICES,PRIVATE,EXTERNAL RESIDENTIAL CARE,725068,142045330,13-Aug-15,"2,228.68",Revenue,DEEPDENE CARE LTD,SP0001199
WANDSWORTH COUNCIL,ASC,SOCIAL SERVICES,PRIVATE,EXTERNAL RESIDENTIAL CARE,733637,142045330,24-Aug-15,"2,460.07",Revenue,DEEPDENE CARE LTD,SP0001199
WANDSWORTH COUNCIL,ASC,SOCIAL SERVICES,PRIVATE,EXTERNAL RESIDENTIAL CARE,733640,142045330,24-Aug-15,"3,058.99",Revenue,DEEPDENE CARE LTD,SP0001199
WANDSWORTH COUNCIL,ASC,SOCIAL SERVICES,PRIVATE,EXTERNAL RESIDENTIAL CARE,733641,142045330,24-Aug-15,"2,228.72",Revenue,DEEPDENE CARE LTD,SP0001199
WANDSWORTH COUNCIL,ASC,SOCIAL SERVICES,PRIVATE,EXTERNAL RESIDENTIAL CARE,733642,142045330,24-Aug-15,"3,156.16",Revenue,DEEPDENE CARE LTD,SP0001199
WANDSWORTH COUNCIL,ASC,SOCIAL SERVICES,PRIVATE,EXTERNAL RESIDENTIAL CARE,733643,142045330,24-Aug-15,"2,228.68",Revenue,DEEPDENE CARE LTD,SP0001199
WANDSWORTH COUNCIL,ASC,SOCIAL SERVICES,PRIVATE,EXTERNAL RESIDENTIAL CARE,733645,142045330,24-Aug-15,"3,281.30",Revenue,REDACTED PERSONAL DATA,SP0001200
WANDSWORTH COUNCIL,ASC,SOCIAL SERVICES,PRIVATE,EXTERNAL RESIDENTIAL CARE,733646,142045330,24-Aug-15,"3,393.00",Revenue,REDACTED PERSONAL DATA,SP0001200
WANDSWORTH COUNCIL,ASC,SOCIAL SERVICES,PRIVATE,EXTERNAL RESIDENTIAL CARE,733655,142045330,24-Aug-15,"2,171.38",Revenue,CROWNWISE LTD,SP0001202
WANDSWORTH COUNCIL,ASC,SOCIAL SERVICES,PRIVATE,EXTERNAL RESIDENTIAL CARE,733671,142045330,24-Aug-15,"4,424.00",Revenue,ADMIRAL HEALTHCARE LTD,SP0001227
WANDSWORTH COUNCIL,ASC,SOCIAL SERVICES,PRIVATE,EXTERNAL RESIDENTIAL CARE,733605,142045330,24-Aug-15,"9,531.48",Revenue,ENIGMA CARE LTD,SP0001228
WANDSWORTH COUNCIL,ASC,SOCIAL SERVICES,PRIVATE,EXTERNAL RESIDENTIAL CARE,733606,142045330,24-Aug-15,"9,531.48",Revenue,ENIGMA CARE LTD,SP0001228
WANDSWORTH COUNCIL,ASC,SOCIAL SERVICES,PRIVATE,EXTERNAL RESIDENTIAL CARE,726625,142045330,14-Aug-15,"3,050.00",Revenue,ABBEY HOUSE,SP0001434
WANDSWORTH COUNCIL,ASC,SOCIAL SERVICES,PRIVATE,EXTERNAL RESIDENTIAL CARE,726626,142045330,14-Aug-15,"4,000.00",Revenue,ABBEY HOUSE,SP0001434
WANDSWORTH COUNCIL,ASC,SOCIAL SERVICES,PRIVATE,EXTERNAL RESIDENTIAL CARE,738739,142045330,28-Aug-15,900.00,Revenue,ROSENMANOR LTD,SP0001457
WANDSWORTH COUNCIL,ASC,SOCIAL SERVICES,PRIVATE,EXTERNAL RESIDENTIAL CARE,729096,142045330,18-Aug-15,"5,400.00",Revenue,LONA LODGE,SP0001570
WANDSWORTH COUNCIL,ASC,SOCIAL SERVICES,PRIVATE,EXTERNAL RESIDENTIAL CARE,735795,142045330,26-Aug-15,"6,868.00",Revenue,KIMBERLEY RD,SP0005694
WANDSWORTH COUNCIL,ASC,SOCIAL SERVICES,PRIVATE,EXTERNAL RESIDENTIAL CARE,738720,142045330,28-Aug-15,"3,912.86",Revenue,ROSEMANOR HOPTON,SP0006162
WANDSWORTH COUNCIL,ASC,SOCIAL SERVICES,PRIVATE,EXTERNAL RESIDENTIAL CARE,738721,142045330,28-Aug-15,"3,675.71",Revenue,ROSEMANOR HOPTON,SP0006162
WANDSWORTH COUNCIL,ASC,SOCIAL SERVICES,PRIVATE,EXTERNAL RESIDENTIAL CARE,738722,142045330,28-Aug-15,"3,675.71",Revenue,ROSEMANOR HOPTON,SP0006162
WANDSWORTH COUNCIL,ASC,SOCIAL SERVICES,PRIVATE,EXTERNAL RESIDENTIAL CARE,726621,142045330,14-Aug-15,"3,454.33",Revenue,ASSURANCE CARE SERVICES LTD,SP0006652
WANDSWORTH COUNCIL,ASC,SOCIAL SERVICES,PRIVATE,EXTERNAL RESIDENTIAL CARE,732740,142045330,21-Aug-15,"3,054.03",Revenue,PRIMROSE HOUSE RESIDENTIAL HOME,SP0008026
WANDSWORTH COUNCIL,ASC,SOCIAL SERVICES,PRIVATE,EXTERNAL RESIDENTIAL CARE,732760,142045330,21-Aug-15,"7,971.34",Revenue,LANCASTER LODGE,SP0009668
WANDSWORTH COUNCIL,ASC,SOCIAL SERVICES,PRIVATE,EXTERNAL RESIDENTIAL CARE,733599,142045330,24-Aug-15,"7,971.34",Revenue,LANCASTER LODGE,SP0009668
WANDSWORTH COUNCIL,ASC,SOCIAL SERVICES,PRIVATE,EXTERNAL RESIDENTIAL CARE,733600,142045330,24-Aug-15,"7,971.34",Revenue,LANCASTER LODGE,SP0009668
WANDSWORTH COUNCIL,ASC,SOCIAL SERVICES,PRIVATE,EXTERNAL RESIDENTIAL CARE,733598,142045330,24-Aug-15,"4,413.73",Revenue,FIRST CARE LODGE,SP0009965
WANDSWORTH COUNCIL,ASC,SOCIAL SERVICES,PRIVATE,EXTERNAL RESI RESPITE CARE,728805,142045340,18-Aug-15,"3,885.71",Revenue,CARE UK COMMUNITY PARTNERSHIP,SP0001022
WANDSWORTH COUNCIL,ASC,SOCIAL SERVICES,PRIVATE,EXTERNAL RESI RESPITE CARE,728806,142045340,18-Aug-15,"3,400.00",Revenue,CARE UK COMMUNITY PARTNERSHIP,SP0001022
WANDSWORTH COUNCIL,ASC,SOCIAL SERVICES,VOL ASS,SUPPORTED HOUSING PROGRAMME,733677,142048030,24-Aug-15,"1,009.18",Revenue,ASTRA HOMES LTD,SP0000374
WANDSWORTH COUNCIL,ASC,SOCIAL SERVICES,VOL ASS,SUPPORTED HOUSING PROGRAMME,734679,142048030,25-Aug-15,"1,545.57",Revenue,ASTRA HOMES LTD,SP0000374
WANDSWORTH COUNCIL,ASC,SOCIAL SERVICES,VOL ASS,SUPPORTED HOUSING PROGRAMME,734680,142048030,25-Aug-15,"1,678.43",Revenue,ASTRA HOMES LTD,SP0000374
WANDSWORTH COUNCIL,ASC,SOCIAL SERVICES,VOL ASS,SUPPORTED HOUSING PROGRAMME,737262,142048030,27-Aug-15,983.76,Revenue,C M CARE LTD,SP0000455
WANDSWORTH COUNCIL,ASC,SOCIAL SERVICES,VOL ASS,SUPPORTED HOUSING PROGRAMME,737263,142048030,27-Aug-15,473.20,Revenue,C M CARE LTD,SP0000455
WANDSWORTH COUNCIL,ASC,SOCIAL SERVICES,VOL ASS,SUPPORTED HOUSING PROGRAMME,737264,142048030,27-Aug-15,"1,516.56",Revenue,C M CARE LTD,SP0000455
WANDSWORTH COUNCIL,ASC,SOCIAL SERVICES,VOL ASS,SUPPORTED HOUSING PROGRAMME,737271,142048030,27-Aug-15,432.00,Revenue,C M CARE LTD,SP0000455
WANDSWORTH COUNCIL,ASC,SOCIAL SERVICES,VOL ASS,SUPPORTED HOUSING PROGRAMME,737272,142048030,27-Aug-15,"1,896.36",Revenue,C M CARE LTD,SP0000455
WANDSWORTH COUNCIL,ASC,SOCIAL SERVICES,VOL ASS,SUPPORTED HOUSING PROGRAMME,737276,142048030,27-Aug-15,"1,803.00",Revenue,C M CARE LTD,SP0000455
WANDSWORTH COUNCIL,ASC,SOCIAL SERVICES,VOL ASS,SUPPORTED HOUSING PROGRAMME,737281,142048030,27-Aug-15,"1,803.00",Revenue,C M CARE LTD,SP0000455
WANDSWORTH COUNCIL,ASC,SOCIAL SERVICES,VOL ASS,SUPPORTED HOUSING PROGRAMME,718284,142048030,04-Aug-15,543.88,Revenue,THE RICHMOND FELLOWSHIP,SP0000621
WANDSWORTH COUNCIL,ASC,SOCIAL SERVICES,VOL ASS,SUPPORTED HOUSING PROGRAMME,718285,142048030,04-Aug-15,543.88,Revenue,THE RICHMOND FELLOWSHIP,SP0000621
WANDSWORTH COUNCIL,ASC,SOCIAL SERVICES,VOL ASS,SUPPORTED HOUSING PROGRAMME,738736,142048030,28-Aug-15,543.88,Revenue,THE RICHMOND FELLOWSHIP,SP0000621
WANDSWORTH COUNCIL,ASC,SOCIAL SERVICES,VOL ASS,SUPPORTED HOUSING PROGRAMME,738737,142048030,28-Aug-15,543.88,Revenue,THE RICHMOND FELLOWSHIP,SP0000621
WANDSWORTH COUNCIL,ASC,SOCIAL SERVICES,VOL ASS,SUPPORTED HOUSING PROGRAMME,733648,142048030,24-Aug-15,"1,450.00",Revenue,CROWNWISE LTD,SP0001202
WANDSWORTH COUNCIL,ASC,SOCIAL SERVICES,CUSTOMER & CLIENT RECPTS - EXT,CL CONT EXT RESIDENTIAL RESP,728805,142080690,18-Aug-15,-228.57,Revenue,CARE UK COMMUNITY PARTNERSHIP,SP0001022
WANDSWORTH COUNCIL,ASC,SOCIAL SERVICES,CUSTOMER & CLIENT RECPTS - EXT,CL CONT EXT RESIDENTIAL RESP,728806,142080690,18-Aug-15,-200.00,Revenue,CARE UK COMMUNITY PARTNERSHIP,SP0001022
WANDSWORTH COUNCIL,ASC,SOCIAL SERVICES,CUSTOMER & CLIENT RECPTS - EXT,CL CONT EXTERNAL RESIDENTIAL,726736,142080720,14-Aug-15,-441.20,Revenue,JOYCARE HOME SERVICES LTD,SP0000339
WANDSWORTH COUNCIL,ASC,SOCIAL SERVICES,CUSTOMER & CLIENT RECPTS - EXT,CL CONT EXTERNAL RESIDENTIAL,733681,142080720,24-Aug-15,-559.33,Revenue,ASTRA HOMES LTD,SP0000374
WANDSWORTH COUNCIL,ASC,SOCIAL SERVICES,CUSTOMER & CLIENT RECPTS - EXT,CL CONT EXTERNAL RESIDENTIAL,730572,142080720,19-Aug-15,-419.43,Revenue,REDACTED PERSONAL DATA,SP0000408
WANDSWORTH COUNCIL,ASC,SOCIAL SERVICES,CUSTOMER & CLIENT RECPTS - EXT,CL CONT EXTERNAL RESIDENTIAL,732750,142080720,21-Aug-15,-559.33,Revenue,QUANTUM CARE LTD,SP0001151
WANDSWORTH COUNCIL,ASC,SOCIAL SERVICES,CUSTOMER & CLIENT RECPTS - EXT,CL CONT EXTERNAL RESIDENTIAL,725064,142080720,13-Aug-15,-559.32,Revenue,DEEPDENE CARE LTD,SP0001199
WANDSWORTH COUNCIL,ASC,SOCIAL SERVICES,CUSTOMER & CLIENT RECPTS - EXT,CL CONT EXTERNAL RESIDENTIAL,725066,142080720,13-Aug-15,-559.32,Revenue,DEEPDENE CARE LTD,SP0001199
WANDSWORTH COUNCIL,ASC,SOCIAL SERVICES,CUSTOMER & CLIENT RECPTS - EXT,CL CONT EXTERNAL RESIDENTIAL,725067,142080720,13-Aug-15,-559.32,Revenue,DEEPDENE CARE LTD,SP0001199
WANDSWORTH COUNCIL,ASC,SOCIAL SERVICES,CUSTOMER & CLIENT RECPTS - EXT,CL CONT EXTERNAL RESIDENTIAL,733637,142080720,24-Aug-15,-559.33,Revenue,DEEPDENE CARE LTD,SP0001199
WANDSWORTH COUNCIL,ASC,SOCIAL SERVICES,CUSTOMER & CLIENT RECPTS - EXT,CL CONT EXTERNAL RESIDENTIAL,733641,142080720,24-Aug-15,-559.33,Revenue,DEEPDENE CARE LTD,SP0001199
WANDSWORTH COUNCIL,ASC,SOCIAL SERVICES,CUSTOMER & CLIENT RECPTS - EXT,CL CONT EXTERNAL RESIDENTIAL,733642,142080720,24-Aug-15,-559.33,Revenue,DEEPDENE CARE LTD,SP0001199
WANDSWORTH COUNCIL,ASC,SOCIAL SERVICES,CUSTOMER & CLIENT RECPTS - EXT,CL CONT EXTERNAL RESIDENTIAL,733645,142080720,24-Aug-15,-631.50,Revenue,REDACTED PERSONAL DATA,SP0001200
